Departmental Family,Entity,Date,Expense Type,Expense Area,Supplier,Transaction Number,Amount
Department for Work and Pensions,Corporate,31-Aug-12,ACCOMMODATION,COO,TELEREAL TRILLIUM,2026570844,"31,922,646"
Department for Work and Pensions,European Social Fund,22-Aug-12,INTRA DWP PAYABLES,STR,DEPARTMENT FOR WORK & PENSIONS,5000001136,"16,823,442"
Department for Work and Pensions,Corporate,14-Aug-12,HOSTING,COO,HP ENTERPRISE SERVICES UK LTD,2026345033,"13,412,681"
Department for Work and Pensions,Corporate,14-Aug-12,COMPUTER SERVICES,COO,HP ENTERPRISE SERVICES UK LTD,2026345033,"7,628,029"
Department for Work and Pensions,European Social Fund,14-Aug-12,INTRA DWP PAYABLES,STR,EUROPEAN COMMISSION,3008395,"7,481,693"
Department for Work and Pensions,Corporate,16-Aug-12,ACCOMMODATION COSTS,COO,TELEREAL TRILLIUM,2026411594,"7,230,447"
Department for Work and Pensions,European Social Fund,14-Aug-12,INTRA DWP PAYABLES,STR,EUROPEAN COMMISSION,3008396,"7,073,663"
Department for Work and Pensions,Corporate,14-Aug-12,NETWORK,COO,BT GLOBAL SERVICES,2026342885,"6,328,013"
Department for Work and Pensions,Corporate,14-Aug-12,COMPUTER SERVICES,COO,ACCENTURE UK LTD,2026342740,"5,493,831"
Department for Work and Pensions,Corporate,29-Aug-12,BANKING AND ENCASHMENT COSTS,COO,POST OFFICE LTD,1005416,"5,411,583"
Department for Work and Pensions,Corporate,23-Aug-12,BANKING AND ENCASHMENT COSTS,COO,POST OFFICE LTD,1005411,"5,374,244"
Department for Work and Pensions,Corporate,31-Aug-12,ACCOMMODATION,COO,TELEREAL TRILLIUM,2026570846,"5,085,680"
Department for Work and Pensions,Employment Programmes,14-Aug-12,GRANTS IN AID,STR,REMPLOY LTD,1005394,"5,000,000"
Department for Work and Pensions,Corporate,29-Aug-12,COMPUTER SERVICES,COO,CURAM SOFTWARE UK LTD,2026514867,"4,582,700"
Department for Work and Pensions,Corporate,22-Aug-12,EMPLOYMENT PROGRAMMES,COO,NEST CORPORATION,2003388,"4,500,000"
Department for Work and Pensions,Corporate,08-Aug-12,GRANTS IN AID,COO,THE PENSIONS REGULATOR,1005390,"4,500,000"
Department for Work and Pensions,Corporate,31-Aug-12,TRADE DEBTORS,Excluded,TELEREAL TRILLIUM,2026570844,"4,312,721"
Department for Work and Pensions,Corporate,22-Aug-12,MEDICAL SERVICES,COO,ATOS HEALTHCARE,2026432803,"4,127,093"
Department for Work and Pensions,Corporate,16-Aug-12,ACCOMMODATION COSTS,COO,TELEREAL TRILLIUM,2026411594,"4,050,798"
Department for Work and Pensions,Corporate,14-Aug-12,COMPUTER SERVICES,COO,IBM UNITED KINGDOM LTD,2026345099,"4,017,512"
Department for Work and Pensions,Corporate,14-Aug-12,COMPUTER SERVICES,COO,HP ENTERPRISE SERVICES UK LTD,2026345033,"3,782,910"
Department for Work and Pensions,Corporate,13-Aug-12,AOS CONTRACTED OUT SERVICES,COO,BALFOUR BEATTY WORKPLACE LTD,2026338266,"3,434,385"
Department for Work and Pensions,Corporate,14-Aug-12,COMPUTER SERVICES,COO,BT GLOBAL SERVICES,2026342885,"3,111,698"
Department for Work and Pensions,Corporate,14-Aug-12,APPS DEV,COO,HP ENTERPRISE SERVICES UK LTD,2026345033,"2,874,810"
Department for Work and Pensions,European Social Fund,06-Aug-12,ESF Expenditure,STR,WEST MIDLANDS LEARNING & SKILLS COUNCIL,5000001125,"2,809,403"
Department for Work and Pensions,Corporate,28-Aug-12,COMPUTER SERVICES,COO,ACCENTURE UK LTD,2026498811,"2,697,877"
Department for Work and Pensions,Corporate,29-Aug-12,MEDICAL SERVICES,COO,ATOS HEALTHCARE,2026509555,"2,516,105"
Department for Work and Pensions,Corporate,15-Aug-12,HOSTING,COO,HP ENTERPRISE SERVICES UK LTD,2026369734,"2,428,077"
Department for Work and Pensions,Corporate,22-Aug-12,MEDICAL SERVICES,COO,ATOS HEALTHCARE,2026432803,"2,393,647"
Department for Work and Pensions,Employment Programmes,30-Aug-12,GRANTS IN AID,STR,REMPLOY LTD,2026567250,"2,350,000"
Department for Work and Pensions,Corporate,29-Aug-12,IS/IT,COO,CURAM SOFTWARE UK LTD,2026514867,"2,111,550"
Department for Work and Pensions,Corporate,22-Aug-12,HOSTING,COO,HP ENTERPRISE SERVICES UK LTD,2026448838,"2,073,937"
Department for Work and Pensions,Corporate,08-Aug-12,SIAM,COO,HP ENTERPRISE SERVICES UK LTD,2026289440,"1,945,527"
Department for Work and Pensions,Corporate,20-Aug-12,Accommodation Costs,COO,EDF ENERGY 1 LTD SCC UTILITIES ONLY,2026419428,"1,841,524"
Department for Work and Pensions,Corporate,14-Aug-12,COMPUTER SERVICES,COO,HP ENTERPRISE SERVICES UK LTD,2026345033,"1,662,971"
Department for Work and Pensions,Corporate,31-Aug-12,ACCOMMODATION,COO,TELEREAL TRILLIUM,2026570844,"1,638,074"
Department for Work and Pensions,Corporate,20-Aug-12,IS/IT,COO,HP ENTERPRISE SERVICES UK LTD,2026419634,"1,479,411"
Department for Work and Pensions,Corporate,10-Aug-12,ACCOMMODATION COSTS,COO,TELEREAL TRILLIUM,2026336807,"1,418,652"
Department for Work and Pensions,Corporate,24-Aug-12,COMPUTER SERVICES,COO,IBM UNITED KINGDOM LTD,2026496182,"1,399,577"
Department for Work and Pensions,Corporate,14-Aug-12,COMPUTER SERVICES,COO,HP ENTERPRISE SERVICES UK LTD,2026345033,"1,336,730"
Department for Work and Pensions,Corporate,31-Aug-12,ACCOMMODATION,COO,TELEREAL TRILLIUM,2026570844,"1,240,227"
Department for Work and Pensions,Corporate,03-Aug-12,COMPUTER SERVICES,COO,ACCENTURE UK LTD,2026254590,"1,168,421"
Department for Work and Pensions,Corporate,13-Aug-12,POSTAGE,COO,TNT UK LTD,2026341369,"1,127,098"
Department for Work and Pensions,Corporate,08-Aug-12,COMPUTER SERVICES,COO,XEROX UK LTD 3W,2026325097,"1,100,232"
Department for Work and Pensions,Corporate,21-Aug-12,TELEPHONE AND POSTAGE,COO,UK MAIL,2026427147,"1,067,943"
Department for Work and Pensions,Corporate,07-Aug-12,OTHER GOODS AND SERVICES,COO,VALUATION OFFICE AGENCY,2003370,"1,058,333"
Department for Work and Pensions,Housing Benefits,14-Aug-12,Housing Benefit Admin,COO,BIRMINGHAM CITY COUNCIL,2026348929,"998,076"
Department for Work and Pensions,Corporate,14-Aug-12,COMPUTER SERVICES,COO,ACCENTURE UK LTD,2026342740,"987,665"
Department for Work and Pensions,Corporate,06-Aug-12,TELEPHONE AND POSTAGE,COO,ROYAL MAIL GROUP PLC,2026261829,"983,648"
Department for Work and Pensions,Corporate,14-Aug-12,COMPUTER SERVICES,COO,BT GLOBAL SERVICES,2026342885,"955,012"
Department for Work and Pensions,Corporate,31-Aug-12,TRADE DEBTORS,Excluded,TELEREAL TRILLIUM,2026570846,"949,680"
Department for Work and Pensions,Corporate,16-Aug-12,COMPUTER SERVICES,COO,BT GLOBAL SERVICES,2026408944,"936,988"
Department for Work and Pensions,Corporate,10-Aug-12,CONTRACTED OUT SERVICES,COO,XEROX UK LTD 3W,2026336903,"923,400"
Department for Work and Pensions,Corporate,15-Aug-12,ACCOMMODATION,COO,TELEREAL TRILLIUM,2026404258,"835,507"
Department for Work and Pensions,Corporate,08-Aug-12,ACCOMMODATION COSTS,COO,TELEREAL TRILLIUM,2026323665,"821,899"
Department for Work and Pensions,Housing Benefits,14-Aug-12,Housing Benefit Admin,COO,CITY OF GLASGOW,2026348977,"713,066"
Department for Work and Pensions,Corporate,14-Aug-12,COMPUTER SERVICES,COO,BT GLOBAL SERVICES,2026342885,"692,722"
Department for Work and Pensions,Corporate,16-Aug-12,OTHER MAJOR CONTRACTS,COO,SANTANDER,1005397,"687,704"
Department for Work and Pensions,Corporate,24-Aug-12,COMPUTER SERVICES,COO,IBM UNITED KINGDOM LTD,2026496182,"583,328"
Department for Work and Pensions,Corporate,14-Aug-12,COMPUTER SERVICES,COO,HP ENTERPRISE SERVICES UK LTD,2026345033,"568,576"
Department for Work and Pensions,Housing Benefits,14-Aug-12,Housing Benefit Admin,COO,LIVERPOOL CITY COUNCIL,2026349079,"564,545"
Department for Work and Pensions,Corporate,31-Aug-12,ACCOMMODATION,COO,TELEREAL TRILLIUM,2026570844,"550,770"
Department for Work and Pensions,Corporate,08-Aug-12,COMPUTER SERVICES,COO,HP ENTERPRISE SERVICES UK LTD,2026289440,"542,601"
Department for Work and Pensions,SHARED SERVICES,07-Aug-12,COMPUTER SERVICES,COO,FUJITSU SERVICES LTD,2026265348,"536,000"
Department for Work and Pensions,Housing Benefits,14-Aug-12,Housing Benefit Admin,COO,LEEDS CITY COUNCIL,2026349074,"535,800"
Department for Work and Pensions,Corporate,08-Aug-12,COMPUTER SERVICES,COO,ACCENTURE UK LTD,2026273859,"531,895"
Department for Work and Pensions,Corporate,31-Aug-12,ACCOMMODATION,COO,TELEREAL TRILLIUM,2026570844,"528,639"
Department for Work and Pensions,Corporate,28-Aug-12,COMPUTER SERVICES,COO,ACCENTURE UK LTD,2026498812,"521,579"
Department for Work and Pensions,Housing Benefits,14-Aug-12,Housing Benefit Admin,COO,MANCHESTER CITY COUNCIL,2026349112,"507,919"
Department for Work and Pensions,Corporate,06-Aug-12,COMPUTER SERVICES,COO,IBM UNITED KINGDOM LTD,2026260813,"504,407"
Department for Work and Pensions,Corporate,08-Aug-12,Financial Assets,COO,CDFA,2026279135,"500,000"
Department for Work and Pensions,Corporate,08-Aug-12,Financial Assets,COO,THE FIVE LAMPS ORGANISATION,2026323667,"500,000"
Department for Work and Pensions,Corporate,14-Aug-12,COMPUTER SERVICES,COO,HP ENTERPRISE SERVICES UK LTD,2026345033,"496,494"
Department for Work and Pensions,Corporate,24-Aug-12,COMPUTER SERVICES,COO,IBM UNITED KINGDOM LTD,2026496182,"484,399"
Department for Work and Pensions,Corporate,14-Aug-12,AOS CONTRACTED OUT SERVICES,COO,SERCO PUBLIC SERVICES LTD,2026347631,"467,068"
Department for Work and Pensions,European Social Fund,17-Aug-12,ESF Expenditure,STR,SKILLS FUNDING AGENCY,5000001133,"454,308"
Department for Work and Pensions,Corporate,23-Aug-12,COMPUTER SERVICES,COO,ATOS ORIGIN IT SERVICES UK LTD,2026488547,"435,076"
Department for Work and Pensions,Housing Benefits,14-Aug-12,Housing Benefit Admin,COO,BRADFORD METROPOLITAN BOROUGH COUNCIL,2026348942,"417,430"
Department for Work and Pensions,Housing Benefits,14-Aug-12,Housing Benefit Admin,COO,DURHAM COUNCIL,2026349006,"403,465"
Department for Work and Pensions,Corporate,31-Aug-12,ACCOMMODATION,COO,TELEREAL TRILLIUM,2026570846,"399,130"
Department for Work and Pensions,Corporate,08-Aug-12,COMPUTER SERVICES,COO,HP ENTERPRISE SERVICES UK LTD,2026289440,"395,897"
Department for Work and Pensions,Employment Programmes,10-Aug-12,EP PROVIDER PAYMENT - NON-WORK PROGRAMME,COO,A4E LTD,2026333319,"388,862"
Department for Work and Pensions,Housing Benefits,14-Aug-12,Housing Benefit Admin,COO,LONDON BOROUGH OF TOWER HAMLETS,2026349105,"387,971"
Department for Work and Pensions,Corporate,20-Aug-12,COMPUTER SERVICES,COO,ACCENTURE UK LTD,2026417283,"383,342"
Department for Work and Pensions,Corporate,08-Aug-12,COMPUTER SERVICES,COO,ACCENTURE UK LTD,2026273859,"383,231"
Department for Work and Pensions,Corporate,28-Aug-12,CONTRACTED OUT SERVICES,COO,CAPITA BUSINESS SERVICES LTD,2026499228,"378,965"
Department for Work and Pensions,Corporate,02-Aug-12,ACCOMMODATION COSTS,COO,TELEREAL TRILLIUM,2026252788,"374,347"
Department for Work and Pensions,Housing Benefits,14-Aug-12,Housing Benefit Admin,COO,SHEFFIELD CITY COUNCIL,2026349192,"372,954"
Department for Work and Pensions,Housing Benefits,14-Aug-12,Housing Benefit Admin,COO,LONDON BOROUGH OF LAMBETH,2026349097,"369,806"
Department for Work and Pensions,Housing Benefits,14-Aug-12,Housing Benefit Admin,COO,LONDON BOROUGH OF LEWISHAM,2026349098,"365,854"
Department for Work and Pensions,Corporate,17-Aug-12,COMPUTER SERVICES,COO,ORANGE PCS LTD,2026415664,"364,819"
Department for Work and Pensions,Employment Programmes,31-Aug-12,EP PROVIDER PAYMENT - NON-WORK PROGRAMME,COO,SHAW TRUST,2026570760,"364,564"
Department for Work and Pensions,Housing Benefits,14-Aug-12,Housing Benefit Admin,COO,HACKNEY LBC,2026349045,"364,264"
Department for Work and Pensions,Housing Benefits,14-Aug-12,Housing Benefit Admin,COO,CORNWALL COUNCIL,2026348986,"354,246"
Department for Work and Pensions,Housing Benefits,14-Aug-12,Housing Benefit Admin,COO,BRISTOL CITY COUNCIL,2026348948,"353,494"
Department for Work and Pensions,Housing Benefits,14-Aug-12,Housing Benefit Admin,COO,LONDON BOROUGH OF SOUTHWARK,2026349103,"352,875"
Department for Work and Pensions,Corporate,31-Aug-12,ACCOMMODATION,COO,TELEREAL TRILLIUM,2026570848,"352,763"
Department for Work and Pensions,SHARED SERVICES,29-Aug-12,COMPUTER SERVICES,COO,FUJITSU SERVICES LTD,2026521847,"352,254"
Department for Work and Pensions,Corporate,10-Aug-12,APPS DEV,COO,HP ENTERPRISE SERVICES UK LTD,2026335503,"349,937"
Department for Work and Pensions,Corporate,02-Aug-12,PRINCES YOUTH TRUST,COO,NHS LANARKSHIRE,2026251828,"344,500"
Department for Work and Pensions,Corporate,14-Aug-12,COMPUTER SERVICES,COO,HP ENTERPRISE SERVICES UK LTD,2026345033,"341,315"
Department for Work and Pensions,Corporate,20-Aug-12,COMPUTER SERVICES,COO,ACCENTURE UK LTD,2026417283,"338,187"
Department for Work and Pensions,Corporate,20-Aug-12,COMPUTER SERVICES,COO,IBM UNITED KINGDOM LTD,2026419668,"334,477"
Department for Work and Pensions,Corporate,22-Aug-12,ACCESS TO WORK,COO,RBLI ROYAL BRITISH LEGION INDUSTRIES LTD,2026474451,"334,465"
Department for Work and Pensions,Corporate,14-Aug-12,APPS DEV,COO,HP ENTERPRISE SERVICES UK LTD,2026345033,"328,442"
Department for Work and Pensions,Corporate,28-Aug-12,CONTRACTED OUT SERVICES,COO,CAPITA BUSINESS SERVICES LTD,2026499228,"328,180"
Department for Work and Pensions,Corporate,29-Aug-12,Accommodation Costs,COO,SCOTTISHPOWER,2026557181,"327,202"
Department for Work and Pensions,Housing Benefits,14-Aug-12,Housing Benefit Admin,COO,EDINBURGH DISTRICT COUNCIL,2026349023,"326,872"
Department for Work and Pensions,SHARED SERVICES,16-Aug-12,COMPUTER SERVICES,COO,FUJITSU SERVICES LTD,2026409600,"320,536"
Department for Work and Pensions,Corporate,21-Aug-12,ACCOMMODATION COSTS,COO,TELEREAL TRILLIUM,2026427128,"320,462"
Department for Work and Pensions,Corporate,31-Aug-12,ACCOMMODATION,COO,TELEREAL TRILLIUM,2026570844,"308,466"
Department for Work and Pensions,Housing Benefits,14-Aug-12,Housing Benefit Admin,COO,LONDON BOROUGH OF NEWHAM,2026349100,"307,497"
Department for Work and Pensions,Corporate,08-Aug-12,IS/IT,COO,TRUSTMARQUE SOLUTIONS LTD,2026323683,"306,486"
Department for Work and Pensions,Housing Benefits,14-Aug-12,Housing Benefit Admin,COO,LONDON BOROUGH OF BRENT,2026349083,"304,136"
Department for Work and Pensions,Corporate,23-Aug-12,COMPUTER SERVICES,COO,ATOS ORIGIN IT SERVICES UK LTD,2026488547,"303,791"
Department for Work and Pensions,Housing Benefits,14-Aug-12,Housing Benefit Admin,COO,CROYDON PEO%,2026348993,"294,989"
Department for Work and Pensions,European Social Fund,03-Aug-12,ESF Expenditure,STR,NATIONAL OFFENDER MANAGEMENT SERVICES,5000001121,"291,910"
Department for Work and Pensions,Housing Benefits,14-Aug-12,Housing Benefit Admin,COO,SANDWELL BOROUGH COUNCIL,2026349185,"289,864"
Department for Work and Pensions,Employment Programmes,31-Aug-12,EP PROVIDER PAYMENT - NON-WORK PROGRAMME,COO,WORKING LINKS,2026570936,"288,849"
Department for Work and Pensions,Corporate,08-Aug-12,COMPUTER SERVICES,COO,ACCENTURE UK LTD,2026273858,"287,782"
Department for Work and Pensions,Corporate,31-Aug-12,ACCOMMODATION,COO,TELEREAL TRILLIUM,2026570844,"287,397"
Department for Work and Pensions,Housing Benefits,14-Aug-12,Housing Benefit Admin,COO,LONDON BOROUGH OF ENFIELD,2026349087,"287,280"
Department for Work and Pensions,European Social Fund,02-Aug-12,ESF Expenditure,STR,CORNWALL COLLEGE,5000001115,"284,875"
Department for Work and Pensions,Corporate,13-Aug-12,APPS DEV,COO,HP ENTERPRISE SERVICES UK LTD,2026339733,"283,000"
Department for Work and Pensions,European Social Fund,17-Aug-12,ESF Expenditure,STR,SOUTH WEST DWP,5000001134,"281,535"
Department for Work and Pensions,Housing Benefits,14-Aug-12,Housing Benefit Admin,COO,KIRKLEES METROPOLITAN BOROUGH COUNCIL,2026349071,"280,071"
Department for Work and Pensions,Housing Benefits,14-Aug-12,Housing Benefit Admin,COO,LONDON BOROUGH OF HARINGEY,2026349090,"278,903"
Department for Work and Pensions,Corporate,28-Aug-12,COMPUTER SERVICES,COO,ACCENTURE UK LTD,2026498811,"278,455"
Department for Work and Pensions,Housing Benefits,14-Aug-12,Housing Benefit Admin,COO,LONDON BOROUGH OF ISLINGTON,2026349095,"276,636"
Department for Work and Pensions,Corporate,31-Aug-12,ACCOMMODATION,COO,TELEREAL TRILLIUM,2026570846,"276,454"
Department for Work and Pensions,Housing Benefits,14-Aug-12,Housing Benefit Admin,COO,LONDON BOROUGH OF EALING,2026349086,"274,156"
Department for Work and Pensions,Housing Benefits,14-Aug-12,Housing Benefit Admin,COO,NOTTINGHAM CITY COUNCIL,2026349149,"272,395"
Department for Work and Pensions,Corporate,20-Aug-12,COMPUTER SERVICES,COO,IBM UNITED KINGDOM LTD,2026419668,"269,117"
Department for Work and Pensions,European Social Fund,02-Aug-12,ESF Expenditure,STR,UNIVERSITY OF EXETER,5000001119,"267,771"
Department for Work and Pensions,Corporate,02-Aug-12,PRINCES YOUTH TRUST,COO,RHYL CITY STRATEGY PATHFINDER,2026252221,"267,500"
Department for Work and Pensions,Housing Benefits,14-Aug-12,Housing Benefit Admin,COO,LEICESTER CITY COUNCIL,2026349075,"267,299"
Department for Work and Pensions,Corporate,14-Aug-12,COMPUTER SERVICES,COO,HP ENTERPRISE SERVICES UK LTD,2026345033,"264,855"
Department for Work and Pensions,Corporate,13-Aug-12,AOS CONTRACTED OUT SERVICES,COO,BALFOUR BEATTY WORKPLACE LTD,2026338266,"264,426"
Department for Work and Pensions,Housing Benefits,14-Aug-12,Housing Benefit Admin,COO,SUNDERLAND CITY COUNCIL,2026349231,"263,528"
Department for Work and Pensions,Employment Programmes,31-Aug-12,EP PROVIDER PAYMENT - NON-WORK PROGRAMME,COO,SEETEC BUSINESS TECHNOLOGY CENTRE LTD,2026570757,"262,824"
Department for Work and Pensions,Housing Benefits,14-Aug-12,Housing Benefit Admin,COO,COVENTRY CITY COUNCIL,2026348990,"262,571"
Department for Work and Pensions,Corporate,22-Aug-12,IS/IT,COO,SPECIALIST COMPUTER CENTRES PLC,2026481507,"261,268"
Department for Work and Pensions,Housing Benefits,14-Aug-12,Housing Benefit Admin,COO,WALSALL BOROUGH COUNCIL,2026349258,"260,889"
Department for Work and Pensions,Corporate,06-Aug-12,TELEPHONE AND POSTAGE,COO,ROYAL MAIL GROUP PLC,2026261829,"260,883"
Department for Work and Pensions,Housing Benefits,14-Aug-12,Housing Benefit Admin,COO,NORTH LANARKSHIRE COUNCIL,2026349139,"260,527"
Department for Work and Pensions,Housing Benefits,14-Aug-12,Housing Benefit Admin,COO,LONDON BOROUGH OF GREENWICH,2026349088,"260,388"
Department for Work and Pensions,Employment Programmes,31-Aug-12,EP PROVIDER PAYMENT - NON-WORK PROGRAMME,COO,THE PLUSS ORGANISATION,2026570856,"259,811"
Department for Work and Pensions,Employment Programmes,14-Aug-12,RESIDENTIAL TRAINING,COO,FINCHALE TRAINING COLLEGE,2026344746,"257,145"
Department for Work and Pensions,Housing Benefits,14-Aug-12,Housing Benefit Admin,COO,WAKEFIELD METROPOLITAN DISTRICT COUNCIL,2026349257,"256,594"
Department for Work and Pensions,Housing Benefits,14-Aug-12,Housing Benefit Admin,COO,WIRRAL BOROUGH COUNCIL,2026349280,"255,116"
Department for Work and Pensions,Housing Benefits,14-Aug-12,Housing Benefit Admin,COO,LONDON BOROUGH OF WANDSWORTH,2026349107,"254,126"
Department for Work and Pensions,Employment Programmes,31-Aug-12,EP PROVIDER PAYMENT - NON-WORK PROGRAMME,COO,SHAW TRUST,2026570760,"253,868"
Department for Work and Pensions,Housing Benefits,14-Aug-12,Housing Benefit Admin,COO,BRIGHTON & HOVE COUNCIL,2026348947,"249,874"
Department for Work and Pensions,Housing Benefits,14-Aug-12,Housing Benefit Admin,COO,CARDIFF CITY COUNCIL,2026348960,"249,187"
Department for Work and Pensions,Housing Benefits,14-Aug-12,Housing Benefit Admin,COO,KINGSTON UPON HULL CITY COUNCIL,2026349070,"249,070"
Department for Work and Pensions,Corporate,10-Aug-12,APPS DEV,COO,HP ENTERPRISE SERVICES UK LTD,2026335503,"247,673"
Department for Work and Pensions,Housing Benefits,14-Aug-12,Housing Benefit Admin,COO,FIFE COUNCIL,2026349032,"242,250"
Department for Work and Pensions,Corporate,02-Aug-12,COMPUTER SERVICES,COO,TELEFONICA O2,2026252786,"242,209"
Department for Work and Pensions,Employment Programmes,31-Aug-12,EP PROVIDER PAYMENT - NON-WORK PROGRAMME,COO,SHAW TRUST,2026570760,"242,051"
Department for Work and Pensions,Housing Benefits,14-Aug-12,Housing Benefit Admin,COO,LONDON BOROUGH OF CAMDEN,2026349085,"241,619"
Department for Work and Pensions,Housing Benefits,14-Aug-12,Housing Benefit Admin,COO,SALFORD CITY COUNCIL,2026349184,"239,018"
Department for Work and Pensions,Employment Programmes,31-Aug-12,EP PROVIDER PAYMENT - NON-WORK PROGRAMME,COO,SHAW TRUST,2026570760,"238,856"
Department for Work and Pensions,Corporate,08-Aug-12,OTHER EXPENDITURE,COO,ACCENTURE UK LTD,2026273859,"238,807"
Department for Work and Pensions,Housing Benefits,14-Aug-12,Housing Benefit Admin,COO,WOLVERHAMPTON CITY COUNCIL,2026349283,"237,951"
Department for Work and Pensions,Housing Benefits,14-Aug-12,Housing Benefit Admin,COO,DONCASTER METROPOLITAN BOROUGH COUNCIL,2026349001,"236,669"
Department for Work and Pensions,Housing Benefits,14-Aug-12,Housing Benefit Admin,COO,CITY OF WESTMINSTER,2026348978,"235,200"
Department for Work and Pensions,Housing Benefits,14-Aug-12,Housing Benefit Admin,COO,LONDON BOROUGH OF BARNET,2026349081,"234,401"
Department for Work and Pensions,Corporate,23-Aug-12,COMPUTER SERVICES,COO,ATOS ORIGIN IT SERVICES UK LTD,2026488547,"234,031"
Department for Work and Pensions,Housing Benefits,14-Aug-12,Housing Benefit Admin,COO,NEWCASTLE CITY COUNCIL,2026349129,"233,580"
Department for Work and Pensions,European Social Fund,06-Aug-12,ESF Expenditure,STR,CORNWALL COLLEGE,5000001123,"232,313"
Department for Work and Pensions,European Social Fund,31-Aug-12,ESF Expenditure,STR,WEST MIDLANDS DWP,5000001145,"228,965"
Department for Work and Pensions,Corporate,14-Aug-12,APPS DEV,COO,HP ENTERPRISE SERVICES UK LTD,2026345033,"227,946"
Department for Work and Pensions,Corporate,17-Aug-12,INTRA DWP PAYABLES,Excluded,DWP,2003385,"227,100"
Department for Work and Pensions,Employment Programmes,31-Aug-12,EP PROVIDER PAYMENT - NON-WORK PROGRAMME,COO,THE PLUSS ORGANISATION,2026570856,"226,053"
Department for Work and Pensions,Housing Benefits,14-Aug-12,Housing Benefit Admin,COO,WIGAN BOROUGH COUNCIL,2026349276,"223,621"
Department for Work and Pensions,Housing Benefits,14-Aug-12,Housing Benefit Admin,COO,LONDON BOROUGH OF WALTHAM FOREST,2026349106,"222,537"
Department for Work and Pensions,Employment Programmes,14-Aug-12,RESIDENTIAL TRAINING,COO,ST LOYES COLLEGE FOUNDATION,2026347650,"218,003"
Department for Work and Pensions,Housing Benefits,14-Aug-12,Housing Benefit Admin,COO,BOLTON METROPOLITAN BOROUGH COUNCIL,2026348935,"217,867"
Department for Work and Pensions,Employment Programmes,10-Aug-12,RESIDENTIAL TRAINING,COO,QUEEN ELIZABETHS FOUNDATION TRAINING COLLEGE,2026336355,"216,335"
Department for Work and Pensions,Housing Benefits,14-Aug-12,Housing Benefit Admin,COO,SOUTH LANARKSHIRE COUNCIL,2026349207,"215,286"
Department for Work and Pensions,Corporate,13-Aug-12,CONTRACTED OUT OFFICE SERVICES,COO,BALFOUR BEATTY WORKPLACE LTD,2026338266,"214,855"
Department for Work and Pensions,Housing Benefits,14-Aug-12,Housing Benefit Admin,COO,WILTSHIRE COUNCIL,2026349277,"214,362"
Department for Work and Pensions,Employment Programmes,31-Aug-12,EP PROVIDER PAYMENT - NON-WORK PROGRAMME,COO,SHAW TRUST,2026570760,"214,265"
Department for Work and Pensions,Employment Programmes,31-Aug-12,EP PROVIDER PAYMENT - NON-WORK PROGRAMME,COO,SHAW TRUST,2026570760,"213,808"
Department for Work and Pensions,Employment Programmes,31-Aug-12,EP PROVIDER PAYMENT - NON-WORK PROGRAMME,COO,ADVANCE HOUSING & SUPPORT LTD,2026568924,"212,902"
Department for Work and Pensions,Corporate,15-Aug-12,COMPUTER SERVICES,COO,HP ENTERPRISE SERVICES UK LTD,2026369734,"212,071"
Department for Work and Pensions,Housing Benefits,14-Aug-12,Housing Benefit Admin,COO,DUDLEY METROPOLITAN BOROUGH COUNCIL,2026349003,"210,568"
Department for Work and Pensions,Housing Benefits,14-Aug-12,Housing Benefit Admin,COO,STOKE ON TRENT CITY COUNCIL,2026349227,"209,942"
Department for Work and Pensions,Corporate,22-Aug-12,COMPUTER SERVICES,COO,ACCENTURE UK LTD,2026432763,"207,550"
Department for Work and Pensions,Employment Programmes,31-Aug-12,EP PROVIDER PAYMENT - NON-WORK PROGRAMME,COO,WORKING LINKS,2026570936,"206,459"
Department for Work and Pensions,Corporate,28-Aug-12,MISCELLANEOUS EXPENDITURE,COO,OFFICE FOR NATIONAL STATISTICS,2026502850,"206,250"
Department for Work and Pensions,Housing Benefits,14-Aug-12,Housing Benefit Admin,COO,NORTHUMBERLAND COUNCIL,2026349147,"204,167"
Department for Work and Pensions,Employment Programmes,31-Aug-12,EP PROVIDER PAYMENT - NON-WORK PROGRAMME,COO,SHAW TRUST,2026570760,"203,313"
Department for Work and Pensions,Housing Benefits,14-Aug-12,Housing Benefit Admin,COO,PLYMOUTH CITY COUNCIL,2026349159,"198,080"
Department for Work and Pensions,Housing Benefits,14-Aug-12,Housing Benefit Admin,COO,SEFTON METROPOLITAN BOROUGH COUNCIL,2026349189,"195,940"
Department for Work and Pensions,Corporate,22-Aug-12,NETWORK,COO,BT GLOBAL SERVICES,2026433691,"192,163"
Department for Work and Pensions,Employment Programmes,31-Aug-12,EP PROVIDER PAYMENT - NON-WORK PROGRAMME,COO,SHAW TRUST,2026570760,"192,104"
Department for Work and Pensions,European Social Fund,30-Aug-12,ESF Expenditure,STR,LUTON BOROUGH COUNCIL,5000001140,"191,486"
Department for Work and Pensions,Corporate,23-Aug-12,COMPUTER SERVICES,COO,ATOS ORIGIN IT SERVICES UK LTD,2026488547,"191,214"
Department for Work and Pensions,Housing Benefits,14-Aug-12,Housing Benefit Admin,COO,LONDON BOROUGH OF HOUNSLOW,2026349094,"188,853"
Department for Work and Pensions,Housing Benefits,14-Aug-12,Housing Benefit Admin,COO,LONDON BOROUGH OF HILLINGDON,2026349093,"188,783"
Department for Work and Pensions,Corporate,08-Aug-12,ACCOMMODATION COSTS,COO,TELEREAL TRILLIUM,2026323665,"185,812"
Department for Work and Pensions,Employment Programmes,31-Aug-12,EP PROVIDER PAYMENT - NON-WORK PROGRAMME,COO,SHAW TRUST,2026570760,"185,731"
Department for Work and Pensions,Housing Benefits,14-Aug-12,Housing Benefit Admin,COO,CHESHIRE WEST & CHESTER COUNCIL,2026348970,"185,303"
Department for Work and Pensions,Housing Benefits,14-Aug-12,Housing Benefit Admin,COO,LONDON BOROUGH OF HAMMERSMITH & FULHAM,2026349089,"184,565"
Department for Work and Pensions,European Social Fund,09-Aug-12,ESF Expenditure,STR,WEST MIDLANDS LEARNING & SKILLS COUNCIL,5000001126,"184,047"
Department for Work and Pensions,Housing Benefits,14-Aug-12,Housing Benefit Admin,COO,TAMESIDE BOROUGH COUNCIL,2026349236,"183,274"
Department for Work and Pensions,Employment Programmes,31-Aug-12,EP PROVIDER PAYMENT - NON-WORK PROGRAMME,COO,MOMENTUM SCOTLAND,2026570301,"183,139"
Department for Work and Pensions,Corporate,16-Aug-12,MEDICAL SERVICES,COO,ATOS HEALTHCARE,2026408874,"182,654"
Department for Work and Pensions,Corporate,10-Aug-12,APPS DEV,COO,HP ENTERPRISE SERVICES UK LTD,2026335503,"182,063"
Department for Work and Pensions,Employment Programmes,31-Aug-12,EP PROVIDER PAYMENT - NON-WORK PROGRAMME,COO,SHAW TRUST,2026570760,"181,873"
Department for Work and Pensions,Corporate,10-Aug-12,APPS DEV,COO,HP ENTERPRISE SERVICES UK LTD,2026335503,"181,793"
Department for Work and Pensions,Housing Benefits,14-Aug-12,Housing Benefit Admin,COO,EAST RIDING OF YORKSHIRE BOROUGH COUNCIL,2026349018,"181,749"
Department for Work and Pensions,Employment Programmes,31-Aug-12,EP PROVIDER PAYMENT - NON-WORK PROGRAMME,COO,CDG WISE ABILITY LTD,2026569132,"181,601"
Department for Work and Pensions,Corporate,23-Aug-12,COMPUTER SERVICES,COO,BT GLOBAL SERVICES,2026488647,"181,233"
Department for Work and Pensions,Housing Benefits,14-Aug-12,Housing Benefit Admin,COO,RHONDDA CYNON TAFF COUNTY BOROUGH COUNCIL,2026349169,"180,953"
Department for Work and Pensions,Corporate,22-Aug-12,COMPUTER SERVICES,COO,CAPGEMINI UK PLC,2026438166,"180,570"
Department for Work and Pensions,Housing Benefits,14-Aug-12,Housing Benefit Admin,COO,SOUTHAMPTON CITY COUNCIL,2026349215,"179,659"
Department for Work and Pensions,Housing Benefits,14-Aug-12,Housing Benefit Admin,COO,ROTHERHAM BOROUGH COUNCIL,2026349176,"179,165"
Department for Work and Pensions,Housing Benefits,14-Aug-12,Housing Benefit Admin,COO,MEDWAY TOWNS COUNCIL,2026349114,"178,216"
Department for Work and Pensions,Employment Programmes,31-Aug-12,EP PROVIDER PAYMENT - NON-WORK PROGRAMME,COO,WORKING LINKS,2026570936,"175,789"
Department for Work and Pensions,Housing Benefits,14-Aug-12,Housing Benefit Admin,COO,PORTSMOUTH CITY COUNCIL,2026349161,"175,480"
Department for Work and Pensions,Housing Benefits,14-Aug-12,Housing Benefit Admin,COO,OLDHAM BOROUGH COUNCIL,2026349152,"175,035"
Department for Work and Pensions,Housing Benefits,14-Aug-12,Housing Benefit Admin,COO,CHESHIRE EAST BOROUGH COUNCIL,2026348969,"174,467"
Department for Work and Pensions,Housing Benefits,14-Aug-12,Housing Benefit Admin,COO,BARNSLEY BOROUGH COUNCIL,2026348922,"174,144"
Department for Work and Pensions,Corporate,14-Aug-12,AMS,COO,HP ENTERPRISE SERVICES UK LTD,2026345033,"173,133"
Department for Work and Pensions,Housing Benefits,14-Aug-12,Housing Benefit Admin,COO,SWANSEA CITY COUNCIL,2026349234,"172,616"
Department for Work and Pensions,Employment Programmes,31-Aug-12,EP PROVIDER PAYMENT - NON-WORK PROGRAMME,COO,SHAW TRUST,2026570760,"172,310"
Department for Work and Pensions,Housing Benefits,14-Aug-12,Housing Benefit Admin,COO,MILTON KEYNES BOROUGH COUNCIL,2026349123,"171,130"
Department for Work and Pensions,Corporate,07-Aug-12,MEDICAL SERVICES,COO,ATOS HEALTHCARE,2026263508,"170,794"
Department for Work and Pensions,Employment Programmes,31-Aug-12,EP PROVIDER PAYMENT - NON-WORK PROGRAMME,COO,SHAW TRUST,2026570760,"170,632"
Department for Work and Pensions,Housing Benefits,14-Aug-12,Housing Benefit Admin,COO,DERBY CITY COUNCIL,2026348999,"169,196"
Department for Work and Pensions,Housing Benefits,14-Aug-12,Housing Benefit Admin,COO,LONDON BOROUGH OF HARROW,2026349091,"168,129"
Department for Work and Pensions,Corporate,23-Aug-12,OTHER EXPENDITURE,COO,ATOS ORIGIN IT SERVICES UK LTD,2026488547,"167,376"
Department for Work and Pensions,Housing Benefits,14-Aug-12,Housing Benefit Admin,COO,STOCKPORT BOROUGH COUNCIL,2026349225,"167,151"
Department for Work and Pensions,Housing Benefits,14-Aug-12,Housing Benefit Admin,COO,ROCHDALE BOROUGH COUNCIL,2026349172,"166,956"
Department for Work and Pensions,Corporate,22-Aug-12,COMPUTER SERVICES,COO,SPECIALIST COMPUTER CENTRES PLC,2026481507,"165,569"
Department for Work and Pensions,Housing Benefits,14-Aug-12,Housing Benefit Admin,COO,SHROPSHIRE COUNCIL,2026349195,"164,946"
Department for Work and Pensions,Housing Benefits,14-Aug-12,Housing Benefit Admin,COO,LONDON BOROUGH OF BARKING & DAGENHAM,2026349080,"163,752"
Department for Work and Pensions,Corporate,15-Aug-12,TRADE DEBTORS,Excluded,TELEREAL TRILLIUM,2026404258,"163,465"
Department for Work and Pensions,Employment Programmes,31-Aug-12,EP PROVIDER PAYMENT - NON-WORK PROGRAMME,COO,INGEUS UK LTD,2026569748,"163,177"
Department for Work and Pensions,Housing Benefits,14-Aug-12,Housing Benefit Admin,COO,BLACKPOOL BOROUGH COUNCIL,2026348932,"161,381"
Department for Work and Pensions,Housing Benefits,14-Aug-12,Housing Benefit Admin,COO,LONDON BOROUGH OF BROMLEY,2026349084,"161,252"
Department for Work and Pensions,Corporate,20-Aug-12,PAYMENTS TO CSAS,COO,ATOS ORIGIN IT SERVICES UK LTD,2026417310,"160,267"
Department for Work and Pensions,Corporate,02-Aug-12,COMPUTER SERVICES,COO,IBM UNITED KINGDOM LTD,2026250583,"159,917"
Department for Work and Pensions,Corporate,20-Aug-12,"OFFICE SUPPLIES, PRINTING AND PUBLICITY",COO,DDB LONDON DIVISION OF DDB UK LTD,1005405,"158,136"
Department for Work and Pensions,Corporate,21-Aug-12,"OFFICE SUPPLIES, PRINTING AND PUBLICITY",COO,DDB LONDON DIVISION OF DDB UK LTD,2026423231,"158,136"
Department for Work and Pensions,Housing Benefits,14-Aug-12,Housing Benefit Admin,COO,LONDON BOROUGH OF REDBRIDGE,2026349101,"157,315"
Department for Work and Pensions,Housing Benefits,14-Aug-12,Housing Benefit Admin,COO,KNOWSLEY BOROUGH COUNCIL,2026349072,"156,577"
Department for Work and Pensions,Housing Benefits,14-Aug-12,Housing Benefit Admin,COO,LONDON BOROUGH OF KENSINGTON & CHELSEA,2026349096,"156,446"
Department for Work and Pensions,Employment Programmes,31-Aug-12,EP PROVIDER PAYMENT - NON-WORK PROGRAMME,COO,SHAW TRUST,2026570760,"156,342"
Department for Work and Pensions,Corporate,15-Aug-12,MISCELLANEOUS EXPENDITURE,PS,SHEFFIELD HALLAM UNIVERSITY,2026402033,"155,914"
Department for Work and Pensions,Corporate,10-Aug-12,MISCELLANEOUS EXPENDITURE,COO,NATIONAL CENTRE FOR SOCIAL RESEARCH,2026336214,"155,348"
Department for Work and Pensions,Employment Programmes,14-Aug-12,RESIDENTIAL TRAINING,COO,RNCB ROYAL NATIONAL COLLEGE FOR BLIND,2026347119,"154,913"
Department for Work and Pensions,Housing Benefits,14-Aug-12,Housing Benefit Admin,COO,GATESHEAD BOROUGH COUNCIL,2026349037,"154,556"
Department for Work and Pensions,Housing Benefits,14-Aug-12,Housing Benefit Admin,COO,BOURNEMOUTH BOROUGH COUNCIL,2026348940,"151,683"
Department for Work and Pensions,Housing Benefits,14-Aug-12,Housing Benefit Admin,COO,MIDDLESBROUGH COUNCIL,2026349121,"150,974"
Department for Work and Pensions,Housing Benefits,14-Aug-12,Housing Benefit Admin,COO,CALDERDALE BOROUGH COUNCIL,2026348956,"150,307"
Department for Work and Pensions,Housing Benefits,14-Aug-12,Housing Benefit Admin,COO,NORTH TYNESIDE BOROUGH COUNCIL,2026349143,"148,109"
Department for Work and Pensions,Housing Benefits,14-Aug-12,Housing Benefit Admin,COO,DUNDEE CITY COUNCIL,2026349005,"147,948"
Department for Work and Pensions,Housing Benefits,14-Aug-12,Housing Benefit Admin,COO,STOCKTON  BOROUGH COUNCIL,2026349226,"146,778"
Department for Work and Pensions,Housing Benefits,14-Aug-12,Housing Benefit Admin,COO,RENFREWSHIRE COUNCIL,2026349168,"146,021"
Department for Work and Pensions,Corporate,17-Aug-12,Accommodation Costs,COO,CORONA ENERGY RETAIL 4 LTD SCC UTILITIES ONLY,1005402,"145,759"
Department for Work and Pensions,Housing Benefits,14-Aug-12,Housing Benefit Admin,COO,NORTH EAST LINCOLNSHIRE COUNCIL,2026349136,"145,742"
Department for Work and Pensions,Housing Benefits,14-Aug-12,Housing Benefit Admin,COO,ST HELENS BOROUGH COUNCIL,2026349220,"144,584"
Department for Work and Pensions,Housing Benefits,14-Aug-12,Housing Benefit Admin,COO,NORTHAMPTON BOROUGH COUNCIL,2026349146,"144,481"
Department for Work and Pensions,European Social Fund,17-Aug-12,ESF Expenditure,STR,LONDON BOROUGH OF EALING,5000001131,"143,817"
Department for Work and Pensions,Employment Programmes,31-Aug-12,EP PROVIDER PAYMENT - NON-WORK PROGRAMME,COO,SHAW TRUST,2026570760,"142,683"
Department for Work and Pensions,Housing Benefits,14-Aug-12,Housing Benefit Admin,COO,PETERBOROUGH CITY COUNCIL,2026349158,"141,458"
Department for Work and Pensions,Corporate,10-Aug-12,APPS DEV,COO,HP ENTERPRISE SERVICES UK LTD,2026335503,"141,056"
Department for Work and Pensions,Housing Benefits,14-Aug-12,Housing Benefit Admin,COO,HIGHLAND COUNCIL,2026349058,"140,741"
Department for Work and Pensions,Housing Benefits,14-Aug-12,Housing Benefit Admin,COO,LUTON BOROUGH COUNCIL,2026349108,"138,731"
Department for Work and Pensions,Employment Programmes,31-Aug-12,EP PROVIDER PAYMENT - NON-WORK PROGRAMME,COO,WORKING LINKS,2026570936,"137,155"
Department for Work and Pensions,Housing Benefits,14-Aug-12,Housing Benefit Admin,COO,NORTH SOMERSET COUNCIL,2026349142,"137,030"
Department for Work and Pensions,Housing Benefits,14-Aug-12,Housing Benefit Admin,COO,SOUTH GLOUCESTERSHIRE COUNCIL,2026349202,"136,417"
Department for Work and Pensions,Housing Benefits,14-Aug-12,Housing Benefit Admin,COO,SOUTHEND ON SEA BOROUGH COUNCIL,2026349216,"136,269"
Department for Work and Pensions,Housing Benefits,14-Aug-12,Housing Benefit Admin,COO,TORBAY  COUNCIL,2026349249,"135,811"
Department for Work and Pensions,Employment Programmes,31-Aug-12,EP PROVIDER PAYMENT - NON-WORK PROGRAMME,COO,SHAW TRUST,2026570760,"134,900"
Department for Work and Pensions,Corporate,29-Aug-12,Consultancy Fee,COO,HM REVENUE & CUSTOMS,2003393,"133,682"
Department for Work and Pensions,European Social Fund,02-Aug-12,ESF Expenditure,STR,MERSEYSIDE EXPANDING HORIZONS LTD,5000001117,"133,300"
Department for Work and Pensions,Housing Benefits,14-Aug-12,Housing Benefit Admin,COO,LONDON BOROUGH OF HAVERING,2026349092,"133,218"
Department for Work and Pensions,Housing Benefits,14-Aug-12,Housing Benefit Admin,COO,LONDON BOROUGH OF BEXLEY,2026349082,"132,523"
Department for Work and Pensions,European Social Fund,30-Aug-12,ESF Expenditure,STR,LONDON BOROUGH OF EALING,5000001139,"132,307"
Department for Work and Pensions,Housing Benefits,14-Aug-12,Housing Benefit Admin,COO,THANET DISTRICT COUNCIL,2026349244,"132,147"
Department for Work and Pensions,Corporate,17-Aug-12,STAFF COSTS,COO,PREMIER PARTNERSHIP,2026415756,"131,828"
Department for Work and Pensions,Housing Benefits,14-Aug-12,Housing Benefit Admin,COO,SOUTH TYNESIDE METROPOLITAN BOROUGH COUNCIL,2026349214,"131,006"
Department for Work and Pensions,Housing Benefits,14-Aug-12,Housing Benefit Admin,COO,TRAFFORD BOROUGH COUNCIL,2026349252,"130,692"
Department for Work and Pensions,Employment Programmes,31-Aug-12,EP PROVIDER PAYMENT - NON-WORK PROGRAMME,COO,WORKING LINKS,2026570936,"130,681"
Department for Work and Pensions,Employment Programmes,10-Aug-12,RESIDENTIAL TRAINING,COO,PORTLAND COLLEGE,2026336349,"130,109"
Department for Work and Pensions,Housing Benefits,14-Aug-12,Housing Benefit Admin,COO,SWINDON BOROUGH COUNCIL,2026349235,"129,872"
Department for Work and Pensions,Corporate,06-Aug-12,STAFF COSTS,COO,RIGHT CORECARE,2026261823,"129,256"
Department for Work and Pensions,Housing Benefits,14-Aug-12,Housing Benefit Admin,COO,LONDON BOROUGH OF MERTON,2026349099,"128,747"
Department for Work and Pensions,Corporate,14-Aug-12,COMPUTER SERVICES,COO,IBM UNITED KINGDOM LTD,2026345099,"128,269"
Department for Work and Pensions,Corporate,13-Aug-12,AOS CONTRACTED OUT SERVICES,COO,BALFOUR BEATTY WORKPLACE LTD,2026338266,"127,798"
Department for Work and Pensions,Housing Benefits,14-Aug-12,Housing Benefit Admin,COO,NORTH AYRSHIRE COUNCIL,2026349132,"127,368"
Department for Work and Pensions,Housing Benefits,14-Aug-12,Housing Benefit Admin,COO,BOROUGH OF TELFORD & WREKIN COUNCIL,2026348937,"125,219"
Department for Work and Pensions,Corporate,10-Aug-12,APPS DEV,COO,HP ENTERPRISE SERVICES UK LTD,2026335503,"125,195"
Department for Work and Pensions,Corporate,31-Aug-12,ACCOMMODATION,COO,TELEREAL TRILLIUM,2026570846,"124,699"
Department for Work and Pensions,Housing Benefits,14-Aug-12,Housing Benefit Admin,COO,BURY METROPOLITAN BOROUGH COUNCIL,2026348954,"124,347"
Department for Work and Pensions,Corporate,08-Aug-12,APPS DEV,COO,HP ENTERPRISE SERVICES UK LTD,2026289440,"124,235"
Department for Work and Pensions,Corporate,31-Aug-12,ACCOMMODATION,COO,TELEREAL TRILLIUM,2026570844,"124,080"
Department for Work and Pensions,Housing Benefits,14-Aug-12,Housing Benefit Admin,COO,REDCAR & CLEVELAND BOROUGH  COUNCIL,2026349166,"124,007"
Department for Work and Pensions,Housing Benefits,14-Aug-12,Housing Benefit Admin,COO,BASILDON DISTRICT COUNCIL,2026348924,"123,749"
Department for Work and Pensions,Employment Programmes,10-Aug-12,EP PROVIDER PAYMENT - NON-WORK PROGRAMME,COO,SEETEC BUSINESS TECHNOLOGY CENTRE LTD,2026336703,"123,678"
Department for Work and Pensions,Housing Benefits,14-Aug-12,Housing Benefit Admin,COO,CAERPHILLY COUNTY BOROUGH COUNCIL,2026348955,"123,102"
Department for Work and Pensions,Employment Programmes,10-Aug-12,EP PROVIDER PAYMENT - NON-WORK PROGRAMME,COO,TNG LTD,2026336827,"122,951"
Department for Work and Pensions,Corporate,13-Aug-12,POSTAGE,COO,TNT UK LTD,2026341369,"122,909"
Department for Work and Pensions,Housing Benefits,14-Aug-12,Housing Benefit Admin,COO,BLACKBURN BOROUGH COUNCIL,2026348931,"122,591"
Department for Work and Pensions,Housing Benefits,14-Aug-12,Housing Benefit Admin,COO,CENTRAL BEDFORDSHIRE DISTRICT COUNCIL,2026348963,"122,530"
Department for Work and Pensions,Corporate,09-Aug-12,IS/IT,COO,SPECIALIST COMPUTER CENTRES PLC,2026331412,"122,079"
Department for Work and Pensions,Housing Benefits,14-Aug-12,Housing Benefit Admin,COO,WEST LOTHIAN COUNCIL,2026349272,"119,653"
Department for Work and Pensions,Housing Benefits,14-Aug-12,Housing Benefit Admin,COO,TENDRING DISTRICT COUNCIL,2026349241,"118,679"
Department for Work and Pensions,Housing Benefits,14-Aug-12,Housing Benefit Admin,COO,NORWICH CITY COUNCIL,2026349148,"118,229"
Department for Work and Pensions,Corporate,28-Aug-12,COMPUTER SERVICES,COO,CAPGEMINI UK PLC,2026499227,"118,211"
Department for Work and Pensions,Corporate,10-Aug-12,MANAGEMENT CONSULTANCY,COO,EMERGN LTD,2026335341,"117,672"
Department for Work and Pensions,Corporate,14-Aug-12,NETWORK,COO,BT GLOBAL SERVICES,2026342885,"116,726"
Department for Work and Pensions,Employment Programmes,10-Aug-12,EP PROVIDER PAYMENT - NON-WORK PROGRAMME,COO,PINNACLE PEOPLE,2026336346,"116,545"
Department for Work and Pensions,Corporate,14-Aug-12,IS/IT,COO,HP ENTERPRISE SERVICES UK LTD,2026345033,"116,541"
Department for Work and Pensions,Housing Benefits,14-Aug-12,Housing Benefit Admin,COO,LONDON BOROUGH OF SUTTON,2026349104,"116,527"
Department for Work and Pensions,Corporate,23-Aug-12,COMPUTER SERVICES,COO,IBM UNITED KINGDOM LTD,2026490711,"116,224"
Department for Work and Pensions,Housing Benefits,14-Aug-12,Housing Benefit Admin,COO,CARMARTHENSHIRE COUNTY COUNCIL,2026348961,"116,072"
Department for Work and Pensions,Housing Benefits,14-Aug-12,Housing Benefit Admin,COO,NORTH LINCOLNSHIRE COUNCIL,2026349140,"115,657"
Department for Work and Pensions,Housing Benefits,14-Aug-12,Housing Benefit Admin,COO,ABERDEEN CITY COUNCIL,2026348910,"114,670"
Department for Work and Pensions,Housing Benefits,14-Aug-12,Housing Benefit Admin,COO,WARRINGTON BOROUGH COUNCIL,2026349259,"114,511"
Department for Work and Pensions,Corporate,31-Aug-12,ACCOMMODATION,COO,TELEREAL TRILLIUM,2026570844,"114,195"
Department for Work and Pensions,Corporate,31-Aug-12,ACCOMMODATION,COO,TELEREAL TRILLIUM,2026570844,"113,918"
Department for Work and Pensions,Housing Benefits,14-Aug-12,Housing Benefit Admin,COO,ISLE OF WIGHT COUNTY COUNCIL,2026349066,"113,563"
Department for Work and Pensions,Corporate,14-Aug-12,COMPUTER SERVICES,COO,IBM UNITED KINGDOM LTD,2026345099,"113,348"
Department for Work and Pensions,Housing Benefits,14-Aug-12,Housing Benefit Admin,COO,DUMFRIES & GALLOWAY COUNCIL,2026349004,"113,117"
Department for Work and Pensions,Housing Benefits,14-Aug-12,Housing Benefit Admin,COO,NEATH PORT TALBOT COUNTY BOROUGH COUNCIL,2026349126,"111,676"
Department for Work and Pensions,Housing Benefits,14-Aug-12,Housing Benefit Admin,COO,SOLIHULL METROPOLITAN BOROUGH COUNCIL,2026349197,"111,632"
Department for Work and Pensions,Housing Benefits,14-Aug-12,Housing Benefit Admin,COO,READING BOROUGH COUNCIL,2026349165,"111,543"
Department for Work and Pensions,Corporate,29-Aug-12,,COO,SKILLS FUNDING AGENCY,1005415,"110,999"
Department for Work and Pensions,Corporate,08-Aug-12,ACCOMMODATION COSTS,COO,TELEREAL TRILLIUM,2026323665,"110,039"
Department for Work and Pensions,Corporate,20-Aug-12,"OFFICE SUPPLIES, PRINTING AND PUBLICITY",COO,DDB LONDON DIVISION OF DDB UK LTD,1005406,"109,996"
Department for Work and Pensions,Corporate,10-Aug-12,APPS DEV,COO,HP ENTERPRISE SERVICES UK LTD,2026335503,"109,249"
Department for Work and Pensions,Housing Benefits,14-Aug-12,Housing Benefit Admin,COO,ABERDEENSHIRE COUNCIL,2026348911,"108,085"
Department for Work and Pensions,Employment Programmes,10-Aug-12,EP PROVIDER PAYMENT - NON-WORK PROGRAMME,COO,REED IN PARTNERSHIP LTD,2026336474,"107,713"
Department for Work and Pensions,Corporate,31-Aug-12,ACCOMMODATION,COO,TELEREAL TRILLIUM,2026570844,"107,299"
Department for Work and Pensions,Housing Benefits,14-Aug-12,Housing Benefit Admin,COO,BEDFORD BOROUGH COUNCIL,2026348928,"107,035"
Department for Work and Pensions,Housing Benefits,14-Aug-12,Housing Benefit Admin,COO,NEWPORT CITY COUNCIL,2026349131,"106,980"
Department for Work and Pensions,Housing Benefits,14-Aug-12,Housing Benefit Admin,COO,HALTON BOROUGH COUNCIL,2026349046,"106,975"
Department for Work and Pensions,Corporate,15-Aug-12,STAFF COSTS,COO,FLETCHER CONSULTANCY,2026366684,"106,015"
Department for Work and Pensions,Housing Benefits,14-Aug-12,Housing Benefit Admin,COO,FALKIRK DISTRICT COUNCIL,2026349029,"105,438"
Department for Work and Pensions,Housing Benefits,14-Aug-12,Housing Benefit Admin,COO,EAST LINDSEY DISTRICT COUNCIL,2026349014,"105,351"
Department for Work and Pensions,Corporate,22-Aug-12,MISCELLANEOUS EXPENDITURE,COO,ENTERPRISE LSE LTD,2026445024,"104,990"
Department for Work and Pensions,Housing Benefits,14-Aug-12,Housing Benefit Admin,COO,SLOUGH BOROUGH COUNCIL,2026349196,"104,922"
Department for Work and Pensions,Housing Benefits,14-Aug-12,Housing Benefit Admin,COO,THURROCK BOROUGH COUNCIL,2026349247,"104,548"
Department for Work and Pensions,Corporate,16-Aug-12,MEDICAL SERVICES,COO,ATOS HEALTHCARE,2026408874,"104,301"
Department for Work and Pensions,Employment Programmes,02-Aug-12,ACCESS TO WORK,COO,ERNST & YOUNG LLP,2026250257,"103,428"
Department for Work and Pensions,Housing Benefits,14-Aug-12,Housing Benefit Admin,COO,BRIDGEND COUNTY BOROUGH COUNCIL,2026348946,"101,555"
Department for Work and Pensions,Housing Benefits,14-Aug-12,Housing Benefit Admin,COO,HASTINGS BOROUGH COUNCIL,2026349053,"100,966"
Department for Work and Pensions,Employment Programmes,10-Aug-12,EP PROVIDER PAYMENT - NON-WORK PROGRAMME,COO,STANDGUIDE LTD,2026336729,"100,612"
Department for Work and Pensions,Corporate,10-Aug-12,APPS DEV,COO,HP ENTERPRISE SERVICES UK LTD,2026335503,"100,137"
Department for Work and Pensions,Employment Programmes,10-Aug-12,EP PROVIDER PAYMENT - NON-WORK PROGRAMME,COO,PINNACLE PEOPLE,2026336346,"100,021"
Department for Work and Pensions,Housing Benefits,14-Aug-12,Housing Benefit Admin,COO,HARTLEPOOL BOROUGH COUNCIL,2026349052,"98,183"
Department for Work and Pensions,Housing Benefits,14-Aug-12,Housing Benefit Admin,COO,HEREFORDSHIRE COUNCIL,2026349055,"98,125"
Department for Work and Pensions,Housing Benefits,14-Aug-12,Housing Benefit Admin,COO,PRESTON BOROUGH COUNCIL,2026349163,"97,991"
Department for Work and Pensions,Housing Benefits,14-Aug-12,Housing Benefit Admin,COO,EAST AYRSHIRE COUNCIL FINANCE DEPARTMENT,2026349007,"97,853"
Department for Work and Pensions,Housing Benefits,14-Aug-12,Housing Benefit Admin,COO,CITY OF YORK COUNCIL,2026348979,"96,173"
Department for Work and Pensions,Housing Benefits,14-Aug-12,Housing Benefit Admin,COO,BATH & NORTH EAST SOMERSET COUNCIL,2026348927,"95,471"
Department for Work and Pensions,Corporate,31-Aug-12,TRADE DEBTORS,Excluded,TELEREAL TRILLIUM,2026570848,"95,422"
Department for Work and Pensions,"Pension, Disability Carers Services",09-Aug-12,ACCOMMODATION COSTS,F&C,TELEREAL TRILLIUM,2026331528,"94,376"
Department for Work and Pensions,Corporate,08-Aug-12,APPS DEV,COO,HP ENTERPRISE SERVICES UK LTD,2026289440,"93,842"
Department for Work and Pensions,Corporate,02-Aug-12,OTHER GOODS AND SERVICES,COO,WAKEFIELD METROPOLITAN BOROUGH COUNCIL,2026252929,"93,690"
Department for Work and Pensions,Employment Programmes,14-Aug-12,RESIDENTIAL TRAINING,COO,QUEEN ALEXANDRA COLLEGE,2026346870,"93,538"
Department for Work and Pensions,Housing Benefits,14-Aug-12,Housing Benefit Admin,COO,SCARBOROUGH BOROUGH COUNCIL,2026349186,"93,492"
Department for Work and Pensions,Employment Programmes,10-Aug-12,EP PROVIDER PAYMENT - NON-WORK PROGRAMME,COO,PERTEMPS,2026336341,"93,270"
Department for Work and Pensions,Employment Programmes,10-Aug-12,EP PROVIDER PAYMENT - NON-WORK PROGRAMME,COO,A4E LTD,2026333319,"93,043"
Department for Work and Pensions,Corporate,03-Aug-12,COMPUTER SERVICES,COO,ACCENTURE UK LTD,2026254590,"92,913"
Department for Work and Pensions,Housing Benefits,14-Aug-12,Housing Benefit Admin,COO,WEST DUNBARTONSHIRE COUNCIL,2026349269,"92,845"
Department for Work and Pensions,Corporate,16-Aug-12,NETWORK,COO,BT GLOBAL SERVICES,2026408944,"92,337"
Department for Work and Pensions,Housing Benefits,14-Aug-12,Housing Benefit Admin,COO,COLCHESTER BOROUGH COUNCIL,2026348981,"92,150"
Department for Work and Pensions,Housing Benefits,14-Aug-12,Housing Benefit Admin,COO,KINGS LYNN & WEST NORFOLK BOROUGH COUNCIL,2026349069,"92,095"
Department for Work and Pensions,Housing Benefits,14-Aug-12,Housing Benefit Admin,COO,ARUN DISTRICT COUNCIL,2026348917,"91,811"
Department for Work and Pensions,Housing Benefits,14-Aug-12,Housing Benefit Admin,COO,LONDON BOROUGH OF RICHMOND UPON THAMES,2026349102,"91,702"
Department for Work and Pensions,Employment Programmes,10-Aug-12,RESIDENTIAL TRAINING,COO,DONCASTER DEAF TRUST,2026333734,"91,360"
Department for Work and Pensions,Employment Programmes,10-Aug-12,EP PROVIDER PAYMENT - NON-WORK PROGRAMME,COO,A4E LTD,2026333319,"90,807"
Department for Work and Pensions,Housing Benefits,14-Aug-12,Housing Benefit Admin,COO,SOUTH SOMERSET DISTRICT COUNCIL,2026349212,"90,487"
Department for Work and Pensions,Housing Benefits,14-Aug-12,Housing Benefit Admin,COO,IPSWICH BOROUGH COUNCIL,2026349064,"90,002"
Department for Work and Pensions,Corporate,07-Aug-12,"OFFICE SUPPLIES, PRINTING AND PUBLICITY",CIT,INTERBRAND,2026265694,"89,479"
Department for Work and Pensions,Housing Benefits,14-Aug-12,Housing Benefit Admin,COO,SWALE BOROUGH COUNCIL,2026349233,"89,049"
Department for Work and Pensions,Employment Programmes,10-Aug-12,EP PROVIDER PAYMENT - NON-WORK PROGRAMME,COO,ESG HOLDINGS LTD,2026335346,"87,730"
Department for Work and Pensions,Housing Benefits,14-Aug-12,Housing Benefit Admin,COO,GREAT YARMOUTH COUNCIL,2026349042,"87,626"
Department for Work and Pensions,Corporate,31-Aug-12,ACCOMMODATION,COO,TELEREAL TRILLIUM,2026570844,"87,461"
Department for Work and Pensions,European Social Fund,24-Aug-12,ESF Expenditure,STR,BARNSLEY METROPOLITAN BOROUGH COUNCIL,5000001137,"87,402"
Department for Work and Pensions,Corporate,16-Aug-12,Accommodation Costs,COO,BRITISH GAS BUSINESS SCC UTILITIES ONLY,2026408941,"87,376"
Department for Work and Pensions,Housing Benefits,14-Aug-12,Housing Benefit Admin,COO,BRAINTREE DISTRICT COUNCIL,2026348943,"86,769"
Department for Work and Pensions,Corporate,14-Aug-12,AOS CONTRACTED OUT SERVICES,COO,PROMOTIONAL LOGISTICS LTD,2026346865,"86,398"
Department for Work and Pensions,Corporate,31-Aug-12,ACCOMMODATION,COO,TELEREAL TRILLIUM,2026570844,"86,250"
Department for Work and Pensions,Housing Benefits,14-Aug-12,Housing Benefit Admin,COO,WAVENEY DISTRICT COUNCIL,2026349262,"85,909"
Department for Work and Pensions,Corporate,10-Aug-12,STATIONERY/ PUBLICATIONS/IT CONSUMABLES,COO,HMRC,2003375,"85,451"
Department for Work and Pensions,Corporate,31-Aug-12,ACCOMMODATION,COO,TELEREAL TRILLIUM,2026570844,"85,431"
Department for Work and Pensions,Housing Benefits,14-Aug-12,Housing Benefit Admin,COO,ROYAL BOROUGH OF KINGSTON UPON THAMES,2026349177,"85,315"
Department for Work and Pensions,Housing Benefits,14-Aug-12,Housing Benefit Admin,COO,OXFORD CITY COUNCIL,2026349154,"85,086"
Department for Work and Pensions,Housing Benefits,14-Aug-12,Housing Benefit Admin,COO,LANCASTER CITY COUNCIL,2026349073,"85,084"
Department for Work and Pensions,Housing Benefits,14-Aug-12,Housing Benefit Admin,COO,GLOUCESTER CITY COUNCIL,2026349039,"85,060"
Department for Work and Pensions,Corporate,23-Aug-12,PROFESSIONAL FEES,PS,ORC INTERNATIONAL LTD,2026491871,"85,045"
Department for Work and Pensions,Employment Programmes,10-Aug-12,EP PROVIDER PAYMENT - NON-WORK PROGRAMME,COO,A4E LTD,2026333319,"84,600"
Department for Work and Pensions,Corporate,31-Aug-12,ACCOMMODATION,COO,TELEREAL TRILLIUM,2026570844,"84,006"
Department for Work and Pensions,Corporate,15-Aug-12,UNALLOCATED BUDGET GROUP,COO,MOTABILITY,1005396,"83,330"
Department for Work and Pensions,Housing Benefits,14-Aug-12,Housing Benefit Admin,COO,INVERCLYDE DISTRICT COUNCIL,2026349063,"83,142"
Department for Work and Pensions,Housing Benefits,14-Aug-12,Housing Benefit Admin,COO,EASTBOURNE BOROUGH COUNCIL,2026349020,"83,128"
Department for Work and Pensions,Corporate,31-Aug-12,ACCOMMODATION,COO,TELEREAL TRILLIUM,2026570844,"82,964"
Department for Work and Pensions,Corporate,06-Aug-12,STAFF COSTS,COO,RIGHT CORECARE,2026261822,"82,500"
Department for Work and Pensions,Corporate,14-Aug-12,APPS DEV,COO,HP ENTERPRISE SERVICES UK LTD,2026345033,"82,487"
Department for Work and Pensions,Housing Benefits,14-Aug-12,Housing Benefit Admin,COO,FLINTSHIRE COUNTY COUNCIL,2026349033,"82,272"
Department for Work and Pensions,Housing Benefits,14-Aug-12,Housing Benefit Admin,COO,POOLE BOROUGH COUNCIL,2026349160,"82,218"
Department for Work and Pensions,Housing Benefits,14-Aug-12,Housing Benefit Admin,COO,SOUTH AYRSHIRE COUNCIL,2026349198,"82,044"
Department for Work and Pensions,Housing Benefits,14-Aug-12,Housing Benefit Admin,COO,PERTH & KINROSS COUNCIL,2026349157,"81,863"
Department for Work and Pensions,Housing Benefits,14-Aug-12,Housing Benefit Admin,COO,BASINGSTOKE DISTRICT COUNCIL,2026348925,"81,796"
Department for Work and Pensions,Housing Benefits,14-Aug-12,Housing Benefit Admin,COO,BURNLEY BOROUGH COUNCIL,2026348953,"81,560"
Department for Work and Pensions,Employment Programmes,10-Aug-12,EP PROVIDER PAYMENT - NON-WORK PROGRAMME,COO,INGEUS UK LTD,2026335541,"81,483"
Department for Work and Pensions,European Social Fund,30-Aug-12,ESF Expenditure,STR,CORNWALL COUNTY COUNCIL,5000001138,"81,230"
Department for Work and Pensions,Employment Programmes,10-Aug-12,EP PROVIDER PAYMENT - NON-WORK PROGRAMME,COO,JHP GROUP LTD,2026335728,"81,209"
Department for Work and Pensions,Jobcentre Plus,23-Aug-12,EU PROGRAMMES,COO,COLLEGE AT THE GRANGE,2026488896,"80,800"
Department for Work and Pensions,Corporate,09-Aug-12,EMPLOYMENT ZONES,COO,PINNACLE PEOPLE,2026330900,"80,599"
Department for Work and Pensions,Housing Benefits,14-Aug-12,Housing Benefit Admin,COO,ASHFIELD DISTRICT COUNCIL,2026348918,"80,364"
Department for Work and Pensions,Housing Benefits,14-Aug-12,Housing Benefit Admin,COO,DARLINGTON BOROUGH COUNCIL,2026348995,"79,957"
Department for Work and Pensions,Employment Programmes,08-Aug-12,FLEXIBLE SUPPORT FUND,COO,ARCADIA GROUP LTD,2026273880,"79,761"
Department for Work and Pensions,Corporate,22-Aug-12,OTHER GOODS AND SERVICES,COO,GREENSQUARE,2026447292,"79,576"
Department for Work and Pensions,Housing Benefits,14-Aug-12,Housing Benefit Admin,COO,WREXHAM COUNTY BOROUGH COUNCIL,2026349286,"79,492"
Department for Work and Pensions,Housing Benefits,14-Aug-12,Housing Benefit Admin,COO,NUNEATON BOROUGH COUNCIL,2026349150,"79,355"
Department for Work and Pensions,Housing Benefits,14-Aug-12,Housing Benefit Admin,COO,AYLESBURY VALE DISTRICT COUNCIL,2026348920,"79,059"
Department for Work and Pensions,Housing Benefits,14-Aug-12,Housing Benefit Admin,COO,CONWY COUNTY BOROUGH  COUNCIL,2026348983,"78,775"
Department for Work and Pensions,European Social Fund,03-Aug-12,ESF Expenditure,STR,KIRKLEES METROPOLITAN BOROUGH COUNCIL,5000001120,"78,412"
Department for Work and Pensions,Housing Benefits,14-Aug-12,Housing Benefit Admin,COO,NEW FOREST DISTRICT COUNCIL,2026349127,"78,394"
Department for Work and Pensions,SHARED SERVICES,13-Aug-12,AOS CONTRACTED OUT SERVICES,COO,BALFOUR BEATTY WORKPLACE LTD,2026338266,"78,306"
Department for Work and Pensions,Housing Benefits,14-Aug-12,Housing Benefit Admin,COO,HUNTINGDON DISTRICT COUNCIL,2026349061,"78,248"
Department for Work and Pensions,Housing Benefits,14-Aug-12,Housing Benefit Admin,COO,WYCOMBE DISTRICT COUNCIL,2026349288,"78,208"
Department for Work and Pensions,Housing Benefits,14-Aug-12,Housing Benefit Admin,COO,MANSFIELD DISTRICT COUNCIL,2026349113,"78,067"
Department for Work and Pensions,Corporate,10-Aug-12,Accommodation Costs,COO,THE NEWCASTLE ESTATES PARTNERSHIP LTD,2026336814,"78,028"
Department for Work and Pensions,Corporate,24-Aug-12,PAYMENTS TO CSAS,COO,ATOS ORIGIN IT SERVICES UK,2026494486,"77,774"
Department for Work and Pensions,Housing Benefits,14-Aug-12,Housing Benefit Admin,COO,CANTERBURY CITY COUNCIL,2026348959,"77,500"
Department for Work and Pensions,Corporate,16-Aug-12,ACCOMMODATION COSTS,COO,TELEREAL TRILLIUM,2026411594,"77,432"
Department for Work and Pensions,Housing Benefits,14-Aug-12,Housing Benefit Admin,COO,CRAWLEY BOROUGH COUNCIL,2026348992,"77,143"
Department for Work and Pensions,Corporate,31-Aug-12,ACCOMMODATION,COO,TELEREAL TRILLIUM,2026570844,"76,916"
Department for Work and Pensions,Housing Benefits,14-Aug-12,Housing Benefit Admin,COO,SCOTTISH BORDERS COUNCIL,2026349187,"76,727"
Department for Work and Pensions,Housing Benefits,14-Aug-12,Housing Benefit Admin,COO,SHEPWAY DISTRICT COUNCIL,2026349193,"76,614"
Department for Work and Pensions,Housing Benefits,14-Aug-12,Housing Benefit Admin,COO,CHESTERFIELD BOROUGH COUNCIL,2026348971,"76,446"
Department for Work and Pensions,Corporate,30-Aug-12,COMPUTER SERVICES,COO,TESCO MOBILE LTD,2026567641,"76,304"
Department for Work and Pensions,Housing Benefits,14-Aug-12,Housing Benefit Admin,COO,HAVANT BOROUGH COUNCIL,2026349054,"76,124"
Department for Work and Pensions,Housing Benefits,14-Aug-12,Housing Benefit Admin,COO,DACORUM BOROUGH COUNCIL,2026348994,"75,825"
Department for Work and Pensions,Housing Benefits,14-Aug-12,Housing Benefit Admin,COO,BRECKLAND DISTRICT COUNCIL,2026348944,"75,773"
Department for Work and Pensions,Housing Benefits,14-Aug-12,Housing Benefit Admin,COO,CHELMSFORD BOROUGH COUNCIL,2026348966,"75,471"
Department for Work and Pensions,Housing Benefits,14-Aug-12,Housing Benefit Admin,COO,WYRE BOROUGH COUNCIL,2026349289,"74,962"
Department for Work and Pensions,Corporate,02-Aug-12,TEMPORARY (TEMP) STAFF COSTS,COO,CAPITA RESOURCING LTD,2026248755,"74,414"
Department for Work and Pensions,Housing Benefits,14-Aug-12,Housing Benefit Admin,COO,GWYNEDD COUNCIL,2026349044,"74,334"
Department for Work and Pensions,Corporate,14-Aug-12,COMPUTER SERVICES,COO,STERIA,2026347657,"74,302"
Department for Work and Pensions,Housing Benefits,14-Aug-12,Housing Benefit Admin,COO,MAIDSTONE BOROUGH COUNCIL,2026349109,"74,298"
Department for Work and Pensions,Housing Benefits,14-Aug-12,Housing Benefit Admin,COO,TORFAEN BOROUGH COUNCIL,2026349250,"74,129"
Department for Work and Pensions,Corporate,24-Aug-12,MISCELLANEOUS EXPENDITURE,PS,SHEFFIELD HALLAM UNIVERSITY,2026497280,"74,000"
Department for Work and Pensions,Housing Benefits,14-Aug-12,Housing Benefit Admin,COO,CHARNWOOD BOROUGH COUNCIL,2026348965,"73,389"
Department for Work and Pensions,Housing Benefits,14-Aug-12,Housing Benefit Admin,COO,CHERWELL DISTRICT COUNCIL,2026348968,"73,329"
Department for Work and Pensions,Housing Benefits,14-Aug-12,Housing Benefit Admin,COO,PENDLE BOROUGH COUNCIL,2026349156,"73,287"
Department for Work and Pensions,Housing Benefits,14-Aug-12,Housing Benefit Admin,COO,DOVER DISTRICT COUNCIL,2026349002,"73,275"
Department for Work and Pensions,Corporate,13-Aug-12,EU PROGRAMMES,COO,IXION HOLDINGS LTD,2026339783,"73,263"
Department for Work and Pensions,Housing Benefits,14-Aug-12,Housing Benefit Admin,COO,VALE OF GLAMORGAN COUNCIL,2026349255,"73,225"
Department for Work and Pensions,Housing Benefits,14-Aug-12,Housing Benefit Admin,COO,PEMBROKESHIRE COUNTY COUNCIL,2026349155,"73,133"
Department for Work and Pensions,Corporate,14-Aug-12,APPS DEV,COO,HP ENTERPRISE SERVICES UK LTD,2026345033,"73,125"
Department for Work and Pensions,Housing Benefits,14-Aug-12,Housing Benefit Admin,COO,TEIGNBRIDGE DISTRICT COUNCIL,2026349240,"72,287"
Department for Work and Pensions,Housing Benefits,14-Aug-12,Housing Benefit Admin,COO,LINCOLN CITY COUNCIL,2026349078,"71,372"
Department for Work and Pensions,Corporate,06-Aug-12,PUBLICITY,PS,M4C,2026261452,"71,346"
Department for Work and Pensions,Housing Benefits,14-Aug-12,Housing Benefit Admin,COO,WEST BERKSHIRE COUNCIL,2026349266,"71,224"
Department for Work and Pensions,Employment Programmes,10-Aug-12,EP PROVIDER PAYMENT - NON-WORK PROGRAMME,COO,JHP GROUP LTD,2026335728,"71,121"
Department for Work and Pensions,Housing Benefits,14-Aug-12,Housing Benefit Admin,COO,HYNDBURN BOROUGH COUNCIL,2026349062,"70,995"
Department for Work and Pensions,Housing Benefits,14-Aug-12,Housing Benefit Admin,COO,SEDGEMOOR DISTRICT COUNCIL,2026349188,"70,950"
Department for Work and Pensions,Corporate,31-Aug-12,ACCOMMODATION,COO,TELEREAL TRILLIUM,2026570844,"70,885"
Department for Work and Pensions,Corporate,10-Aug-12,EMPLOYMENT ZONES,COO,JHP GROUP LTD,2026335727,"70,812"
Department for Work and Pensions,Housing Benefits,14-Aug-12,Housing Benefit Admin,COO,EXETER CITY COUNCIL,2026349028,"70,768"
Department for Work and Pensions,Housing Benefits,14-Aug-12,Housing Benefit Admin,COO,EREWASH BOROUGH COUNCIL,2026349027,"70,614"
Department for Work and Pensions,Corporate,14-Aug-12,COMPUTER SERVICES,COO,ACCENTURE UK LTD,2026342741,"70,519"
Department for Work and Pensions,Corporate,13-Aug-12,EMPLOYMENT ZONES,COO,PINNACLE PEOPLE,2026340771,"70,464"
Department for Work and Pensions,Housing Benefits,14-Aug-12,Housing Benefit Admin,COO,NORTH HERTFORDSHIRE DISTRICT COUNCIL,2026349137,"69,960"
Department for Work and Pensions,Employment Programmes,10-Aug-12,EP PROVIDER PAYMENT - NON-WORK PROGRAMME,COO,JHP GROUP LTD,2026335728,"69,918"
Department for Work and Pensions,European Social Fund,14-Aug-12,ESF Expenditure,STR,SOUTH EAST DWP,5000001128,"69,899"
Department for Work and Pensions,Housing Benefits,14-Aug-12,Housing Benefit Admin,COO,AMBER VALLEY BOROUGH COUNCIL,2026348914,"69,682"
Department for Work and Pensions,Housing Benefits,14-Aug-12,Housing Benefit Admin,COO,ANGUS COUNCIL,2026348915,"69,523"
Department for Work and Pensions,Housing Benefits,14-Aug-12,Housing Benefit Admin,COO,HARROGATE BOROUGH COUNCIL,2026349050,"69,476"
Department for Work and Pensions,Housing Benefits,14-Aug-12,Housing Benefit Admin,COO,NEWCASTLE UNDER LYME BOROUGH COUNCIL,2026349130,"69,072"
Department for Work and Pensions,SHARED SERVICES,14-Aug-12,COMPUTER SERVICES,COO,BT GLOBAL SERVICES,2026342885,"68,975"
Department for Work and Pensions,Housing Benefits,14-Aug-12,Housing Benefit Admin,COO,FENLAND DISTRICT COUNCIL,2026349031,"68,796"
Department for Work and Pensions,Housing Benefits,14-Aug-12,Housing Benefit Admin,COO,POWYS COUNTY COUNCIL,2026349162,"68,266"
Department for Work and Pensions,Corporate,28-Aug-12,PRINCES YOUTH TRUST,Change PMU,PLYMOUTH HOSPITALS NHS TRUST,2026503090,"68,125"
Department for Work and Pensions,Housing Benefits,14-Aug-12,Housing Benefit Admin,COO,BASSETLAW DISTRICT COUNCIL,2026348926,"67,921"
Department for Work and Pensions,Corporate,03-Aug-12,COMPUTER SERVICES,COO,CAPGEMINI UK PLC,2026254845,"67,856"
Department for Work and Pensions,Corporate,10-Aug-12,TEMPORARY (TEMP) STAFF COSTS,COO,CAPITA RESOURCING LTD,2026333557,"67,850"
Department for Work and Pensions,Housing Benefits,14-Aug-12,Housing Benefit Admin,COO,WYRE FOREST DISTRICT COUNCIL,2026349290,"67,842"
Department for Work and Pensions,Corporate,02-Aug-12,PROFESSIONAL FEES,COO,MORI SOCIAL RESEARCH INSTITUTE,2026251685,"67,475"
Department for Work and Pensions,Housing Benefits,14-Aug-12,Housing Benefit Admin,COO,SOUTH KESTEVEN DISTRICT COUNCIL,2026349205,"67,354"
Department for Work and Pensions,Corporate,21-Aug-12,COMPUTER SERVICES,COO,IBM UNITED KINGDOM LTD,2026424771,"67,251"
Department for Work and Pensions,Corporate,10-Aug-12,EMPLOYMENT ZONES,COO,JHP GROUP LTD,2026335727,"66,884"
Department for Work and Pensions,Housing Benefits,14-Aug-12,Housing Benefit Admin,COO,DENBIGHSHIRE COUNTY COUNCIL,2026348998,"66,454"
Department for Work and Pensions,Corporate,29-Aug-12,MANAGEMENT CONSULTANCY,F&C,PRICE WATERHOUSE COOPER LLP,2026547842,"66,210"
Department for Work and Pensions,Corporate,20-Aug-12,PROFESSIONAL FEES,COO,EXPERIAN LTD,2026419439,"65,918"
Department for Work and Pensions,Housing Benefits,14-Aug-12,Housing Benefit Admin,COO,EAST STAFFORDSHIRE DISTRICT COUNCIL,2026349019,"65,671"
Department for Work and Pensions,Housing Benefits,14-Aug-12,Housing Benefit Admin,COO,CHELTENHAM BOROUGH COUNCIL,2026348967,"65,235"
Department for Work and Pensions,Corporate,24-Aug-12,EMPLOYMENT ZONES,COO,URBAN FUTURES LONDON LTD,2026497391,"65,153"
Department for Work and Pensions,Housing Benefits,14-Aug-12,Housing Benefit Admin,COO,WORTHING BOROUGH COUNCIL,2026349285,"65,147"
Department for Work and Pensions,Housing Benefits,14-Aug-12,Housing Benefit Admin,COO,HARLOW DISTRICT COUNCIL,2026349049,"64,662"
Department for Work and Pensions,Corporate,15-Aug-12,ACCOMMODATION,COO,TELEREAL TRILLIUM,2026404258,"64,494"
Department for Work and Pensions,Corporate,14-Aug-12,APPS DEV,COO,HP ENTERPRISE SERVICES UK LTD,2026345033,"64,334"
Department for Work and Pensions,European Social Fund,31-Aug-12,ESF Expenditure,STR,NORTH WEST DWP,5000001144,"64,290"
Department for Work and Pensions,Housing Benefits,14-Aug-12,Housing Benefit Admin,COO,GEDLING BOROUGH COUNCIL,2026349038,"64,177"
Department for Work and Pensions,Corporate,07-Aug-12,PRINTING STATIONERY IT CONSUMABLES,COO,XEROX UK LTD 3W,2026268418,"63,959"
Department for Work and Pensions,Housing Benefits,14-Aug-12,Housing Benefit Admin,COO,BLAENAU GWENT COUNTY BOROUGH COUNCIL,2026348933,"63,646"
Department for Work and Pensions,Housing Benefits,14-Aug-12,Housing Benefit Admin,COO,EAST DEVON DISTRICT COUNCIL,2026349009,"63,560"
Department for Work and Pensions,Housing Benefits,14-Aug-12,Housing Benefit Admin,COO,CAMBRIDGE CITY COUNCIL,2026348957,"63,309"
Department for Work and Pensions,Housing Benefits,14-Aug-12,Housing Benefit Admin,COO,NORTH DEVON DISTRICT COUNCIL,2026349133,"63,245"
Department for Work and Pensions,Housing Benefits,14-Aug-12,Housing Benefit Admin,COO,GRAVESHAM BOROUGH COUNCIL,2026349041,"63,174"
Department for Work and Pensions,Housing Benefits,14-Aug-12,Housing Benefit Admin,COO,WORCESTER CITY COUNCIL,2026349284,"63,132"
Department for Work and Pensions,Corporate,08-Aug-12,COMPUTER SERVICES,COO,HP ENTERPRISE SERVICES UK LTD,2026289440,"63,000"
Department for Work and Pensions,Housing Benefits,14-Aug-12,Housing Benefit Admin,COO,WARWICK DISTRICT COUNCIL,2026349260,"62,924"
Department for Work and Pensions,Housing Benefits,14-Aug-12,Housing Benefit Admin,COO,CANNOCK CHASE DISTRICT COUNCIL,2026348958,"62,431"
Department for Work and Pensions,Employment Programmes,10-Aug-12,EP PROVIDER PAYMENT - NON-WORK PROGRAMME,COO,A4E LTD,2026333319,"62,320"
Department for Work and Pensions,Housing Benefits,14-Aug-12,Housing Benefit Admin,COO,BROXBOURNE BOROUGH COUNCIL,2026348951,"62,245"
Department for Work and Pensions,Housing Benefits,14-Aug-12,Housing Benefit Admin,COO,WEST LANCASHIRE DISTRICT COUNCIL,2026349270,"62,200"
Department for Work and Pensions,Corporate,02-Aug-12,TEMPORARY (TEMP) STAFF COSTS,CIT,CAPITA RESOURCING LTD,2026248755,"62,133"
Department for Work and Pensions,Corporate,06-Aug-12,TELEPHONE AND POSTAGE,COO,ROYAL MAIL GROUP PLC,2026261829,"62,094"
Department for Work and Pensions,Corporate,03-Aug-12,COMPUTER SERVICES,COO,KPMG CIO ADVISORY LTD,2026256854,"61,972"
Department for Work and Pensions,Housing Benefits,14-Aug-12,Housing Benefit Admin,COO,ASHFORD BOROUGH COUNCIL,2026348919,"61,810"
Department for Work and Pensions,Housing Benefits,14-Aug-12,Housing Benefit Admin,COO,MENDIP DISTRICT COUNCIL,2026349116,"61,794"
Department for Work and Pensions,European Social Fund,06-Aug-12,ESF Expenditure,STR,LIVERPOOL CHAMBER OF COMMERCE,5000001124,"61,792"
Department for Work and Pensions,Housing Benefits,14-Aug-12,Housing Benefit Admin,COO,CITY OF CARLISLE DISTRICT COUNCIL,2026348976,"61,310"
Department for Work and Pensions,Corporate,03-Aug-12,COMPUTER SERVICES,COO,ACCENTURE UK LTD,2026254590,"61,299"
Department for Work and Pensions,Housing Benefits,14-Aug-12,Housing Benefit Admin,COO,REIGATE & BANSTEAD BOROUGH COUNCIL,2026349167,"61,289"
Department for Work and Pensions,Housing Benefits,14-Aug-12,Housing Benefit Admin,COO,TAUNTON DEANE BOROUGH COUNCIL,2026349239,"61,067"
Department for Work and Pensions,Corporate,09-Aug-12,PRINCES YOUTH TRUST,COO,LONDON BOROUGH OF NEWHAM,1005393,"60,813"
Department for Work and Pensions,Corporate,08-Aug-12,IS/IT,COO,HP ENTERPRISE SERVICES UK LTD,2026289440,"60,796"
Department for Work and Pensions,Corporate,08-Aug-12,APPS DEV,COO,HP ENTERPRISE SERVICES UK LTD,2026289440,"60,432"
Department for Work and Pensions,Housing Benefits,14-Aug-12,Housing Benefit Admin,COO,GUILDFORD BOROUGH COUNCIL,2026349043,"60,063"
Department for Work and Pensions,Corporate,09-Aug-12,MISCELLANEOUS EXPENDITURE,Change PMU,NATIONAL CENTRE FOR SOCIAL RESEARCH,2026330740,"60,000"
Department for Work and Pensions,Housing Benefits,14-Aug-12,Housing Benefit Admin,COO,NEWARK DISTRICT COUNCIL,2026349128,"59,902"
Department for Work and Pensions,Housing Benefits,14-Aug-12,Housing Benefit Admin,COO,NORTH NORFOLK DISTRICT COUNCIL,2026349141,"59,891"
Department for Work and Pensions,Housing Benefits,14-Aug-12,Housing Benefit Admin,COO,EPPING FOREST DISTRICT COUNCIL,2026349025,"59,847"
Department for Work and Pensions,Corporate,02-Aug-12,COMPUTER SERVICES,COO,CAPGEMINI UK PLC,2026248754,"59,563"
Department for Work and Pensions,European Social Fund,06-Aug-12,ESF Expenditure,STR,BIRMINGHAM METROPOLITAN COLLEGE,5000001122,"59,532"
Department for Work and Pensions,Corporate,07-Aug-12,EMPLOYMENT ZONES,COO,CAPITAL TRAINING GROUP,2026263915,"59,443"
Department for Work and Pensions,Corporate,07-Aug-12,STAFF COSTS,COO,ASE CORPORATE EYECARE LTD,2026263505,"59,426"
Department for Work and Pensions,Corporate,31-Aug-12,ACCOMMODATION,COO,TELEREAL TRILLIUM,2026570846,"59,275"
Department for Work and Pensions,Housing Benefits,14-Aug-12,Housing Benefit Admin,COO,WELWYN HATFIELD DISTRICT COUNCIL,2026349265,"59,247"
Department for Work and Pensions,Housing Benefits,14-Aug-12,Housing Benefit Admin,COO,SOUTH NORFOLK DISTRICT COUNCIL,2026349208,"59,012"
Department for Work and Pensions,Housing Benefits,14-Aug-12,Housing Benefit Admin,COO,ARGYLL & BUTE COUNCIL,2026348916,"58,710"
Department for Work and Pensions,Housing Benefits,14-Aug-12,Housing Benefit Admin,COO,WEALDEN DISTRICT COUNCIL,2026349264,"58,526"
Department for Work and Pensions,Housing Benefits,14-Aug-12,Housing Benefit Admin,COO,CHICHESTER DISTRICT COUNCIL,2026348972,"58,509"
Department for Work and Pensions,Housing Benefits,14-Aug-12,Housing Benefit Admin,COO,WINDSOR & MAIDENHEAD BOROUGH COUNCIL,2026349279,"58,134"
Department for Work and Pensions,Housing Benefits,14-Aug-12,Housing Benefit Admin,COO,GOSPORT BOROUGH COUNCIL,2026349040,"57,962"
Department for Work and Pensions,Housing Benefits,14-Aug-12,Housing Benefit Admin,COO,BRACKNELL FOREST BOROUGH COUNCIL,2026348941,"57,845"
Department for Work and Pensions,Employment Programmes,10-Aug-12,EP PROVIDER PAYMENT - NON-WORK PROGRAMME,COO,JHP GROUP LTD,2026335728,"57,676"
Department for Work and Pensions,Corporate,31-Aug-12,ACCOMMODATION,COO,TELEREAL TRILLIUM,2026570848,"57,484"
Department for Work and Pensions,Housing Benefits,14-Aug-12,Housing Benefit Admin,COO,HERTSMERE BOROUGH COUNCIL,2026349056,"57,098"
Department for Work and Pensions,Housing Benefits,14-Aug-12,Housing Benefit Admin,COO,STRATFORD ON AVON DISTRICT COUNCIL,2026349228,"56,842"
Department for Work and Pensions,Corporate,23-Aug-12,AOS CONTRACTED OUT SERVICES,COO,XEROX UK LTD 3W,2026492870,"56,788"
Department for Work and Pensions,Housing Benefits,14-Aug-12,Housing Benefit Admin,COO,EAST LOTHIAN DISTRICT COUNCIL,2026349015,"56,678"
Department for Work and Pensions,Housing Benefits,14-Aug-12,Housing Benefit Admin,COO,WATFORD BOROUGH COUNCIL,2026349261,"56,664"
Department for Work and Pensions,Housing Benefits,14-Aug-12,Housing Benefit Admin,COO,STEVENAGE BOROUGH COUNCIL,2026349223,"56,463"
Department for Work and Pensions,Corporate,31-Aug-12,ACCOMMODATION,COO,TELEREAL TRILLIUM,2026570844,"56,456"
Department for Work and Pensions,Housing Benefits,14-Aug-12,Housing Benefit Admin,COO,RUGBY BOROUGH COUNCIL,2026349178,"56,410"
Department for Work and Pensions,Corporate,08-Aug-12,COMPUTER SERVICES,COO,HP ENTERPRISE SERVICES UK LTD,2026289440,"56,221"
Department for Work and Pensions,Employment Programmes,10-Aug-12,EP PROVIDER PAYMENT - NON-WORK PROGRAMME,COO,A4E LTD,2026333319,"56,174"
Department for Work and Pensions,Housing Benefits,14-Aug-12,Housing Benefit Admin,COO,EAST HERTFORDSHIRE DISTRICT COUNCIL,2026349013,"56,153"
Department for Work and Pensions,Housing Benefits,14-Aug-12,Housing Benefit Admin,COO,TONBRIDGE & MALLING DISTRICT COUNCIL,2026349248,"56,129"
Department for Work and Pensions,Housing Benefits,14-Aug-12,Housing Benefit Admin,COO,ALLERDALE DISTRICT COUNCIL,2026348913,"55,986"
Department for Work and Pensions,Housing Benefits,14-Aug-12,Housing Benefit Admin,COO,SUFFOLK COASTAL DISTRICT COUNCIL,2026349230,"55,789"
Department for Work and Pensions,Housing Benefits,14-Aug-12,Housing Benefit Admin,COO,RUSHMOOR BOROUGH COUNCIL,2026349181,"55,721"
Department for Work and Pensions,Housing Benefits,14-Aug-12,Housing Benefit Admin,COO,BOROUGH OF REDDITCH,2026348936,"55,674"
Department for Work and Pensions,Housing Benefits,14-Aug-12,Housing Benefit Admin,COO,BROXTOWE BOROUGH COUNCIL,2026348952,"55,343"
Department for Work and Pensions,European Social Fund,17-Aug-12,ESF Expenditure,STR,NORTH EAST DWP,5000001132,"55,131"
Department for Work and Pensions,Corporate,21-Aug-12,TELEPHONE AND POSTAGE,COO,UK MAIL,2026427147,"54,776"
Department for Work and Pensions,Corporate,02-Aug-12,BANKING AND ENCASHMENT COSTS,COO,HSBC BANK PLC,2026250537,"54,511"
Department for Work and Pensions,Corporate,24-Aug-12,COMPUTER SERVICES,COO,HUTCHISON 3G UK LTD,2026496146,"54,279"
Department for Work and Pensions,Housing Benefits,08-Aug-12,COMPUTER SERVICES,COO,ACCENTURE UK LTD,2026273859,"53,840"
Department for Work and Pensions,Housing Benefits,14-Aug-12,Housing Benefit Admin,COO,CHORLEY BOROUGH COUNCIL,2026348974,"53,774"
Department for Work and Pensions,Housing Benefits,14-Aug-12,Housing Benefit Admin,COO,ST EDMUNDSBURY BOROUGH COUNCIL,2026349219,"53,711"
Department for Work and Pensions,Housing Benefits,14-Aug-12,Housing Benefit Admin,COO,ROTHER DISTRICT COUNCIL,2026349175,"53,653"
Department for Work and Pensions,Corporate,23-Aug-12,TEMPORARY (TEMP) STAFF COSTS,COO,CAPITA RESOURCING LTD,2026488869,"53,568"
Department for Work and Pensions,Housing Benefits,14-Aug-12,Housing Benefit Admin,COO,STAFFORD BOROUGH COUNCIL,2026349221,"53,489"
Department for Work and Pensions,Housing Benefits,14-Aug-12,Housing Benefit Admin,COO,WEST LINDSEY DISTRICT COUNCIL,2026349271,"53,356"
Department for Work and Pensions,Housing Benefits,14-Aug-12,Housing Benefit Admin,COO,TUNBRIDGE WELLS BOROUGH COUNCIL,2026349253,"53,252"
Department for Work and Pensions,Corporate,30-Aug-12,TEMPORARY (TEMP) STAFF COSTS,COO,CAPITA RESOURCING LTD,2026564083,"53,242"
Department for Work and Pensions,Corporate,31-Aug-12,ACCOMMODATION,COO,TELEREAL TRILLIUM,2026570846,"53,183"
Department for Work and Pensions,European Social Fund,31-Aug-12,ESF Expenditure,STR,MEDWAY COUNCIL,5000001143,"52,982"
Department for Work and Pensions,Corporate,29-Aug-12,AOS CONTRACTED OUT SERVICES,COO,COMMERCIAL COLLECTION SERVICES LTD,2026514853,"52,929"
Department for Work and Pensions,Housing Benefits,14-Aug-12,Housing Benefit Admin,COO,SOUTH RIBBLE BOROUGH COUNCIL C,2026349211,"52,827"
Department for Work and Pensions,Housing Benefits,14-Aug-12,Housing Benefit Admin,COO,KETTERING BOROUGH COUNCIL,2026349067,"52,602"
Department for Work and Pensions,Housing Benefits,14-Aug-12,Housing Benefit Admin,COO,EASTLEIGH BOROUGH COUNCIL,2026349021,"52,502"
Department for Work and Pensions,Housing Benefits,14-Aug-12,Housing Benefit Admin,COO,LEWES DISTRICT COUNCIL,2026349076,"52,490"
Department for Work and Pensions,Housing Benefits,14-Aug-12,Housing Benefit Admin,COO,WYCHAVON DISTRICT COUNCIL,2026349287,"52,350"
Department for Work and Pensions,Corporate,10-Aug-12,APPS DEV,COO,HP ENTERPRISE SERVICES UK LTD,2026335503,"52,091"
Department for Work and Pensions,Housing Benefits,14-Aug-12,Housing Benefit Admin,COO,BOROUGH OF WELLINGBOROUGH,2026348938,"51,753"
Department for Work and Pensions,Housing Benefits,14-Aug-12,Housing Benefit Admin,COO,TEST VALLEY BOROUGH COUNCIL,2026349242,"51,681"
Department for Work and Pensions,Housing Benefits,14-Aug-12,Housing Benefit Admin,COO,ELMBRIDGE BOROUGH COUNCIL,2026349024,"51,651"
Department for Work and Pensions,Housing Benefits,14-Aug-12,Housing Benefit Admin,COO,BARROW BOROUGH COUNCIL,2026348923,"51,498"
Department for Work and Pensions,Housing Benefits,14-Aug-12,Housing Benefit Admin,COO,MIDLOTHIAN COUNCIL,2026349122,"51,422"
Department for Work and Pensions,Employment Programmes,10-Aug-12,EP PROVIDER PAYMENT - NON-WORK PROGRAMME,COO,INGEUS UK LTD,2026335541,"50,998"
Department for Work and Pensions,Corporate,28-Aug-12,EU PROGRAMMES,COO,WYEA LTD,2026504065,"50,760"
Department for Work and Pensions,Corporate,14-Aug-12,EU PROGRAMMES,COO,WYEA LTD,2026347950,"50,760"
Department for Work and Pensions,Housing Benefits,14-Aug-12,Housing Benefit Admin,COO,DARTFORD BOROUGH COUNCIL,2026348996,"50,651"
Department for Work and Pensions,Corporate,31-Aug-12,COMPUTER SERVICES,COO,CAPGEMINI UK PLC,2026569120,"50,527"
Department for Work and Pensions,Housing Benefits,14-Aug-12,Housing Benefit Admin,COO,HIGH PEAK BOROUGH COUNCIL,2026349057,"50,418"
Department for Work and Pensions,Corporate,23-Aug-12,PRINTING STATIONERY IT CONSUMABLES,COO,XEROX UK LTD 3W,2026492870,"50,337"
Department for Work and Pensions,Housing Benefits,14-Aug-12,Housing Benefit Admin,COO,MERTHYR TYDFIL BOROUGH COUNCIL,2026349117,"50,309"
Department for Work and Pensions,Housing Benefits,14-Aug-12,Housing Benefit Admin,COO,WEYMOUTH & PORTLAND BOROUGH COUNCIL,2026349275,"50,220"
Department for Work and Pensions,Corporate,15-Aug-12,COMPUTER SERVICES,COO,DETICA LTD,2026362354,"50,100"
Department for Work and Pensions,Corporate,16-Aug-12,EMPLOYMENT ZONES,COO,CORNWALL COUNCIL,2026409160,"50,000"
Department for Work and Pensions,Housing Benefits,14-Aug-12,Housing Benefit Admin,COO,STROUD DISTRICT COUNCIL,2026349229,"49,998"
Department for Work and Pensions,Housing Benefits,14-Aug-12,Housing Benefit Admin,COO,WEST DORSET DISTRICT COUNCIL,2026349268,"49,977"
Department for Work and Pensions,Corporate,14-Aug-12,COMPUTER SERVICES,COO,BT GLOBAL SERVICES,2026342885,"49,917"
Department for Work and Pensions,Housing Benefits,14-Aug-12,Housing Benefit Admin,COO,NORTH EAST DERBYSHIRE DISTRICT COUNCIL,2026349135,"49,905"
Department for Work and Pensions,Corporate,29-Aug-12,AOS CONTRACTED OUT SERVICES,COO,CREDIT SOLUTIONS LTD,2026514864,"49,598"
Department for Work and Pensions,Housing Benefits,14-Aug-12,Housing Benefit Admin,COO,SEVENOAKS DISTRICT COUNCIL,2026349191,"49,450"
Department for Work and Pensions,Corporate,31-Aug-12,ACCOMMODATION,COO,TELEREAL TRILLIUM,2026570844,"49,370"
Department for Work and Pensions,Housing Benefits,14-Aug-12,Housing Benefit Admin,COO,MID SUSSEX DISTRICT COUNCIL,2026349120,"49,336"
Department for Work and Pensions,Housing Benefits,14-Aug-12,Housing Benefit Admin,COO,BROADLAND DISTRICT COUNCIL,2026348949,"49,174"
Department for Work and Pensions,Housing Benefits,14-Aug-12,Housing Benefit Admin,COO,BOLSOVER DISTRICT COUNCIL,2026348934,"48,827"
Department for Work and Pensions,Corporate,09-Aug-12,"OFFICE SUPPLIES, PRINTING AND PUBLICITY",COO,M4C,2026330605,"48,826"
Department for Work and Pensions,Housing Benefits,14-Aug-12,Housing Benefit Admin,COO,CASTLE POINT DISTRICT COUNCIL,2026348962,"48,812"
Department for Work and Pensions,Housing Benefits,14-Aug-12,Housing Benefit Admin,COO,CORBY BOROUGH COUNCIL,2026348985,"48,758"
Department for Work and Pensions,Housing Benefits,14-Aug-12,Housing Benefit Admin,COO,SOUTH STAFFORDSHIRE DISTRICT COUNCIL,2026349213,"48,234"
Department for Work and Pensions,Housing Benefits,14-Aug-12,Housing Benefit Admin,COO,ST ALBANS DISTRICT COUNCIL,2026349218,"48,096"
Department for Work and Pensions,Housing Benefits,14-Aug-12,Housing Benefit Admin,COO,ROSSENDALE BOROUGH COUNCIL,2026349174,"47,921"
Department for Work and Pensions,Housing Benefits,14-Aug-12,Housing Benefit Admin,COO,SOUTH HOLLAND DISTRICT COUNCIL,2026349204,"47,918"
Department for Work and Pensions,Employment Programmes,10-Aug-12,EP PROVIDER PAYMENT - NON-WORK PROGRAMME,COO,CAPITAL TRAINING GROUP LTD,2026333560,"47,730"
Department for Work and Pensions,Corporate,10-Aug-12,COMPUTER SERVICES,COO,HMRC,2003375,"47,660"
Department for Work and Pensions,Corporate,07-Aug-12,PROFESSIONAL FEES,COO,WARD HADAWAY SOLICITORS,2026268386,"47,576"
Department for Work and Pensions,Corporate,08-Aug-12,COMPUTER SERVICES,COO,FUJITSU SERVICES LTD,2026286410,"47,492"
Department for Work and Pensions,Corporate,10-Aug-12,TEMPORARY (TEMP) STAFF COSTS,CIT,CAPITA RESOURCING LTD,2026333557,"47,356"
Department for Work and Pensions,Housing Benefits,14-Aug-12,Housing Benefit Admin,COO,VALE OF WHITE HORSE DISTRICT COUNCIL,2026349256,"47,330"
Department for Work and Pensions,Corporate,10-Aug-12,PROFESSIONAL FEES,COO,COMMUNITY DEVELOPMENT FOUNDATION,2026333580,"47,267"
Department for Work and Pensions,Corporate,08-Aug-12,IS/IT,COO,HP ENTERPRISE SERVICES UK LTD,2026289440,"47,258"
Department for Work and Pensions,Corporate,14-Aug-12,AOS CONTRACTED OUT SERVICES,COO,SERCO PUBLIC SERVICES LTD,2026347631,"47,209"
Department for Work and Pensions,Housing Benefits,14-Aug-12,Housing Benefit Admin,COO,EAST HAMPSHIRE DISTRICT COUNCIL,2026349012,"47,117"
Department for Work and Pensions,Housing Benefits,14-Aug-12,Housing Benefit Admin,COO,HORSHAM DISTRICT COUNCIL,2026349060,"46,865"
Department for Work and Pensions,Employment Programmes,20-Aug-12,EP PROVIDER PAYMENT - WORK PROGRAMME,COO,CAREERS DEVELOPMENT GROUP,2026417549,"46,655"
Department for Work and Pensions,Housing Benefits,14-Aug-12,Housing Benefit Admin,COO,FOREST OF DEAN DISTRICT COUNCIL,2026349035,"46,610"
Department for Work and Pensions,Corporate,22-Aug-12,PROFESSIONAL FEES,COO,TREASURY SOLICITOR TSOL,2026483768,"46,577"
Department for Work and Pensions,Housing Benefits,14-Aug-12,Housing Benefit Admin,COO,SOUTH CAMBRIDGESHIRE DISTRICT COUNCIL,2026349200,"46,370"
Department for Work and Pensions,Corporate,31-Aug-12,ACCOMMODATION,COO,TELEREAL TRILLIUM,2026570844,"46,343"
Department for Work and Pensions,Corporate,14-Aug-12,APPS DEV,COO,HP ENTERPRISE SERVICES UK LTD,2026345033,"46,284"
Department for Work and Pensions,Housing Benefits,14-Aug-12,Housing Benefit Admin,COO,NORTH KESTEVEN DISTRICT COUNCIL,2026349138,"46,213"
Department for Work and Pensions,Corporate,14-Aug-12,NETWORK,COO,BT GLOBAL SERVICES,2026342885,"46,099"
Department for Work and Pensions,Housing Benefits,14-Aug-12,Housing Benefit Admin,COO,THE MORAY COUNCIL,2026349245,"45,822"
Department for Work and Pensions,Employment Programmes,14-Aug-12,RESIDENTIAL TRAINING,COO,RNIB ROYAL NATIONAL INSTITUTE FOR THE BLIND,2026347120,"45,343"
Department for Work and Pensions,Housing Benefits,14-Aug-12,Housing Benefit Admin,COO,SOUTH OXFORDSHIRE DISTRICT COUNCIL,2026349210,"45,320"
Department for Work and Pensions,Corporate,02-Aug-12,OTHER GOODS AND SERVICES,COO,VALUATION OFFICE AGENCY,2026252887,"45,130"
Department for Work and Pensions,Housing Benefits,14-Aug-12,Housing Benefit Admin,COO,HINCKLEY & BOSWORTH BOROUGH COUNCIL,2026349059,"45,113"
Department for Work and Pensions,Housing Benefits,14-Aug-12,Housing Benefit Admin,COO,NORTH WEST LEICESTER DISTRICT COUNCIL,2026349145,"45,046"
Department for Work and Pensions,Housing Benefits,14-Aug-12,Housing Benefit Admin,COO,WAVERLEY BOROUGH COUNCIL,2026349263,"44,903"
Department for Work and Pensions,Employment Programmes,08-Aug-12,EP PROVIDER PAYMENT - WORK PROGRAMME,COO,REHAB JOBFIT,2026314593,"44,750"
Department for Work and Pensions,Housing Benefits,14-Aug-12,Housing Benefit Admin,COO,LICHFIELD DISTRICT COUNCIL,2026349077,"44,719"
Department for Work and Pensions,Housing Benefits,14-Aug-12,Housing Benefit Admin,COO,MONMOUTHSHIRE COUNTY  COUNCIL,2026349125,"44,693"
Department for Work and Pensions,Corporate,31-Aug-12,ACCOMMODATION,COO,TELEREAL TRILLIUM,2026570844,"44,521"
Department for Work and Pensions,Employment Programmes,15-Aug-12,EP PROVIDER PAYMENT - WORK PROGRAMME,COO,CAREERS DEVELOPMENT GROUP,2026359129,"44,460"
Department for Work and Pensions,Employment Programmes,10-Aug-12,EP PROVIDER PAYMENT - NON-WORK PROGRAMME,COO,WORKING LINKS,2026336901,"44,410"
Department for Work and Pensions,Housing Benefits,14-Aug-12,Housing Benefit Admin,COO,SOUTH HAMS DISTRICT COUNCIL,2026349203,"44,367"
Department for Work and Pensions,Corporate,31-Aug-12,INTRA DWP PAYABLES,Excluded,NIF MANUAL PAYMENTS,2003401,"44,361"
Department for Work and Pensions,Housing Benefits,14-Aug-12,Housing Benefit Admin,COO,SPELTHORNE BOROUGH COUNCIL,2026349217,"44,270"
Department for Work and Pensions,Corporate,10-Aug-12,TEMPORARY (TEMP) STAFF COSTS,COO,CAPITA RESOURCING LTD,2026333557,"44,240"
Department for Work and Pensions,Housing Benefits,14-Aug-12,Housing Benefit Admin,COO,EAST DUNBARTONSHIRE COUNCIL,2026349011,"44,113"
Department for Work and Pensions,Corporate,06-Aug-12,TELEPHONE AND POSTAGE,COO,ROYAL MAIL GROUP PLC,2026261829,"44,029"
Department for Work and Pensions,Corporate,01-Aug-12,AOS CONTRACTED OUT SERVICES,COO,CAPITA BUSINESS SERVICES LTD,2026202941,"44,000"
Department for Work and Pensions,Housing Benefits,14-Aug-12,Housing Benefit Admin,COO,STIRLING COUNCIL,2026349224,"43,811"
Department for Work and Pensions,Housing Benefits,14-Aug-12,Housing Benefit Admin,COO,WINCHESTER CITY COUNCIL,2026349278,"43,634"
Department for Work and Pensions,Corporate,02-Aug-12,Accommodation Costs,COO,COPELAND BOROUGH COUNCIL,2026248802,"43,531"
Department for Work and Pensions,Housing Benefits,14-Aug-12,Housing Benefit Admin,COO,COPELAND BOROUGH COUNCIL,2026348984,"43,522"
Department for Work and Pensions,Housing Benefits,14-Aug-12,Housing Benefit Admin,COO,WOKINGHAM DISTRICT COUNCIL,2026349282,"43,489"
Department for Work and Pensions,Housing Benefits,14-Aug-12,Housing Benefit Admin,COO,WEST OXFORDSHIRE DISTRICT COUNCIL,2026349273,"43,287"
Department for Work and Pensions,Housing Benefits,14-Aug-12,Housing Benefit Admin,COO,ISLE OF ANGLESEY COUNTY COUNCIL,2026349065,"43,263"
Department for Work and Pensions,Corporate,14-Aug-12,MANAGEMENT CONSULTANCY,COO,KPMG,2026345744,"43,222"
Department for Work and Pensions,Employment Programmes,14-Aug-12,EP PROVIDER PAYMENT - WORK PROGRAMME,COO,INGEUS UK LTD,2026345104,"43,000"
Department for Work and Pensions,Housing Benefits,14-Aug-12,Housing Benefit Admin,COO,BOSTON BOROUGH COUNCIL,2026348939,"42,980"
Department for Work and Pensions,Housing Benefits,14-Aug-12,Housing Benefit Admin,COO,WOKING BOROUGH COUNCIL,2026349281,"42,862"
Department for Work and Pensions,Housing Benefits,14-Aug-12,Housing Benefit Admin,COO,TAMWORTH BOROUGH COUNCIL,2026349237,"42,671"
Department for Work and Pensions,Housing Benefits,14-Aug-12,Housing Benefit Admin,COO,EAST NORTHANTS DISTRICT COUNCIL,2026349016,"42,116"
Department for Work and Pensions,Corporate,14-Aug-12,COMPUTER SERVICES,COO,BT GLOBAL SERVICES,2026342885,"41,785"
Department for Work and Pensions,Corporate,15-Aug-12,COMPUTER SERVICES,COO,ATOS ORIGIN IT SERVICES UK LTD,2026353869,"41,727"
Department for Work and Pensions,Corporate,02-Aug-12,MANAGEMENT CONSULTANCY,COO,KPMG CIO ADVISORY LTD,2026251126,"41,624"
Department for Work and Pensions,Housing Benefits,14-Aug-12,Housing Benefit Admin,COO,BABERGH DISTRICT COUNCIL,2026348921,"41,433"
Department for Work and Pensions,Corporate,23-Aug-12,MISCELLANEOUS EXPENDITURE,COO,NATIONAL CENTRE FOR SOCIAL RESEARCH NCSR,2026491843,"41,030"
Department for Work and Pensions,Housing Benefits,14-Aug-12,Housing Benefit Admin,COO,STAFFORDSHIRE MOORLANDS DISTRICT COUNCIL,2026349222,"40,751"
Department for Work and Pensions,Housing Benefits,14-Aug-12,Housing Benefit Admin,COO,CEREDIGION COUNTY COUNCIL,2026348964,"40,737"
Department for Work and Pensions,Corporate,13-Aug-12,COMPUTER SERVICES,CIT,SPECIALIST COMPUTER CENTRES PLC,2026341251,"40,732"
Department for Work and Pensions,Corporate,17-Aug-12,MISCELLANEOUS EXPENDITURE,COO,HM TREASURY,2026414989,"40,614"
Department for Work and Pensions,Corporate,13-Aug-12,COMPUTER SERVICES,COO,HP ENTERPRISE SERVICES UK LTD,2026339733,"40,579"
Department for Work and Pensions,Corporate,28-Aug-12,JOBCENTRE PLUS PATHWAYS TO WORK,COO,SENCIA LTD,2026503774,"40,517"
Department for Work and Pensions,Housing Benefits,14-Aug-12,Housing Benefit Admin,COO,TORRIDGE DISTRICT COUNCIL,2026349251,"40,415"
Department for Work and Pensions,Housing Benefits,14-Aug-12,Housing Benefit Admin,COO,FAREHAM BOROUGH COUNCIL,2026349030,"40,282"
Department for Work and Pensions,Housing Benefits,14-Aug-12,Housing Benefit Admin,COO,RUNNYMEDE BOROUGH COUNCIL,2026349179,"40,250"
Department for Work and Pensions,Employment Programmes,21-Aug-12,EP PROVIDER PAYMENT - WORK PROGRAMME,COO,CAREERS DEVELOPMENT GROUP,2026422908,"40,205"
Department for Work and Pensions,Employment Programmes,10-Aug-12,EP PROVIDER PAYMENT - NON-WORK PROGRAMME,COO,INGEUS UK LTD,2026335541,"40,087"
Department for Work and Pensions,Employment Programmes,15-Aug-12,ACCESS TO WORK,COO,GENERATE,2026368191,"40,069"
Department for Work and Pensions,Corporate,02-Aug-12,TEMPORARY (TEMP) STAFF COSTS,COO,CAPITA RESOURCING LTD,2026248755,"39,752"
Department for Work and Pensions,Corporate,28-Aug-12,JOBCENTRE PLUS PATHWAYS TO WORK,COO,PERTEMPS PEOPLE DEVELOPMENT GROUP,2026503083,"39,614"
Department for Work and Pensions,Corporate,03-Aug-12,OTHER GOODS AND SERVICES,COO,CEIS AYRSHIRE,2026254854,"39,522"
Department for Work and Pensions,Housing Benefits,14-Aug-12,Housing Benefit Admin,COO,THREE RIVERS DISTRICT COUNCIL,2026349246,"39,377"
Department for Work and Pensions,Corporate,16-Aug-12,PROFESSIONAL FEES,COO,XEROX UK LTD 3W,2026411702,"39,297"
Department for Work and Pensions,Employment Programmes,28-Aug-12,ACCESS TO WORK,COO,SOUTH WEST LONDON & ST GEORGES NHS TRUST,2026503788,"39,078"
Department for Work and Pensions,Corporate,01-Aug-12,AOS CONTRACTED OUT SERVICES,COO,MINISTRY OF JUSTICE,2026230557,"39,047"
Department for Work and Pensions,Housing Benefits,14-Aug-12,Housing Benefit Admin,COO,MID DEVON DISTRICT COUNCIL,2026349118,"39,036"
Department for Work and Pensions,Corporate,02-Aug-12,EMPLOYMENT PROGRAMMES,Excluded,A SHEPPARD,2026248294,"39,018"
Department for Work and Pensions,Corporate,03-Aug-12,PROFESSIONAL FEES,COO,DRIVERS JONAS,2026256260,"39,000"
Department for Work and Pensions,Corporate,14-Aug-12,COMPUTER SERVICES,COO,BT GLOBAL SERVICES,2026342885,"38,998"
Department for Work and Pensions,Housing Benefits,14-Aug-12,Housing Benefit Admin,COO,COTSWOLD DISTRICT COUNCIL,2026348988,"38,748"
Department for Work and Pensions,Housing Benefits,14-Aug-12,Housing Benefit Admin,COO,HAMBLETON DISTRICT COUNCIL,2026349047,"38,598"
Department for Work and Pensions,Housing Benefits,14-Aug-12,Housing Benefit Admin,COO,EAST CAMBRIDGESHIRE DISTRICT COUNCIL,2026349008,"38,521"
Department for Work and Pensions,Housing Benefits,14-Aug-12,Housing Benefit Admin,COO,RUSHCLIFFE BOROUGH COUNCIL,2026349180,"38,483"
Department for Work and Pensions,Corporate,10-Aug-12,OTHER EXPENDITURE,CIT,CAPITA RESOURCING LTD,2026333557,"38,457"
Department for Work and Pensions,Housing Benefits,14-Aug-12,Housing Benefit Admin,COO,SOUTH DERBYSHIRE DISTRICT COUNCIL,2026349201,"38,315"
Department for Work and Pensions,Housing Benefits,14-Aug-12,Housing Benefit Admin,COO,SOUTH LAKELAND DISTRICT COUNCIL,2026349206,"38,232"
Department for Work and Pensions,Corporate,23-Aug-12,PUBLICITY,COO,M4C,2026491708,"38,062"
Department for Work and Pensions,Housing Benefits,14-Aug-12,Housing Benefit Admin,COO,TEWKESBURY BOROUGH COUNCIL,2026349243,"38,007"
Department for Work and Pensions,Corporate,02-Aug-12,OTHER EXPENDITURE,CIT,CAPITA RESOURCING LTD,2026248755,"37,784"
Department for Work and Pensions,Jobcentre Plus,17-Aug-12,EU PROGRAMMES,COO,A4ENTERPRISE LTD,2026413042,"37,745"
Department for Work and Pensions,Corporate,03-Aug-12,EU PROGRAMMES,COO,A4E LTD,2026254585,"37,745"
Department for Work and Pensions,Housing Benefits,14-Aug-12,Housing Benefit Admin,COO,CLACKMANNANSHIRE COUNCIL,2026348980,"37,639"
Department for Work and Pensions,Corporate,15-Aug-12,MEDICAL SERVICES,COO,ATOS HEALTHCARE,2026353868,"37,456"
Department for Work and Pensions,Housing Benefits,14-Aug-12,Housing Benefit Admin,COO,SELBY DISTRICT COUNCIL,2026349190,"37,280"
Department for Work and Pensions,Housing Benefits,14-Aug-12,Housing Benefit Admin,COO,FYLDE BOROUGH COUNCIL,2026349036,"37,224"
Department for Work and Pensions,Corporate,28-Aug-12,OTHER GOODS AND SERVICES,COO,VALUATION OFFICE AGENCY,2026504006,"36,980"
Department for Work and Pensions,European Social Fund,14-Aug-12,ESF Expenditure,STR,SOUTH WEST DWP,5000001129,"36,603"
Department for Work and Pensions,Corporate,29-Aug-12,AOS CONTRACTED OUT SERVICES,COO,DRYDENS LTD,2026519046,"36,171"
Department for Work and Pensions,Housing Benefits,14-Aug-12,Housing Benefit Admin,COO,BLABY DISTRICT COUNCIL,2026348930,"36,051"
Department for Work and Pensions,Corporate,08-Aug-12,TEMPORARY (TEMP) STAFF COSTS,COO,CAPITA RESOURCING LTD,2026279126,"35,814"
Department for Work and Pensions,Corporate,14-Aug-12,COMPUTER SERVICES,COO,HP ENTERPRISE SERVICES UK LTD,2026345033,"35,759"
Department for Work and Pensions,Housing Benefits,14-Aug-12,Housing Benefit Admin,COO,MID SUFFOLK DISTRICT COUNCIL,2026349119,"35,692"
Department for Work and Pensions,European Social Fund,17-Aug-12,ESF Expenditure,STR,ESSEX COUNTY COUNCIL,5000001130,"35,514"
Department for Work and Pensions,European Social Fund,17-Aug-12,ESF Expenditure,STR,YORKSHIRE & HUMBER DWP,5000001135,"35,514"
Department for Work and Pensions,Employment Programmes,02-Aug-12,EP PROVIDER PAYMENT - WORK PROGRAMME,COO,A4E LTD,2026248355,"35,500"
Department for Work and Pensions,Corporate,02-Aug-12,TEMPORARY (TEMP) STAFF COSTS,CIT,CAPITA RESOURCING LTD,2026248755,"35,477"
Department for Work and Pensions,Corporate,02-Aug-12,PUBLICITY,PS,M4C,2026251649,"35,392"
Department for Work and Pensions,Housing Benefits,14-Aug-12,Housing Benefit Admin,COO,MALVERN HILLS DISTRICT COUNCIL,2026349111,"35,375"
Department for Work and Pensions,Housing Benefits,14-Aug-12,Housing Benefit Admin,COO,EAST DORSET DISTRICT COUNCIL,2026349010,"35,366"
Department for Work and Pensions,Corporate,14-Aug-12,COMPUTER SERVICES,COO,IBM UNITED KINGDOM LTD,2026345099,"35,072"
Department for Work and Pensions,Housing Benefits,14-Aug-12,Housing Benefit Admin,COO,BROMSGROVE DISTRICT COUNCIL,2026348950,"34,771"
Department for Work and Pensions,Housing Benefits,14-Aug-12,Housing Benefit Admin,COO,ROCHFORD DISTRICT COUNCIL,2026349173,"34,763"
Department for Work and Pensions,Corporate,08-Aug-12,APPS DEV,COO,HP ENTERPRISE SERVICES UK LTD,2026289440,"34,712"
Department for Work and Pensions,Corporate,21-Aug-12,COMPUTER SERVICES,COO,ATOS ORIGIN IT SERVICES UK LTD,2026422524,"34,591"
Department for Work and Pensions,Corporate,08-Aug-12,EU PROGRAMMES,COO,NETWORK PROJECTS LTD,2026310684,"34,476"
Department for Work and Pensions,Employment Programmes,08-Aug-12,FLEXIBLE SUPPORT FUND,COO,BHS LTD,2026274727,"34,321"
Department for Work and Pensions,Employment Programmes,03-Aug-12,EP PROVIDER PAYMENT - WORK PROGRAMME,COO,A4E LTD,2026254583,"34,300"
Department for Work and Pensions,Corporate,09-Aug-12,IS/IT,COO,SPECIALIST COMPUTER CENTRES PLC,2026331412,"34,256"
Department for Work and Pensions,Corporate,31-Aug-12,ACCOMMODATION,COO,TELEREAL TRILLIUM,2026570844,"34,044"
Department for Work and Pensions,Employment Programmes,03-Aug-12,EP PROVIDER PAYMENT - WORK PROGRAMME,COO,WORKING LINKS,2026257975,"34,000"
Department for Work and Pensions,Corporate,16-Aug-12,EMPLOYMENT ZONES,COO,CATZERO LTD,2026409140,"33,946"
Department for Work and Pensions,Housing Benefits,14-Aug-12,Housing Benefit Admin,COO,ADUR DISTRICT COUNCIL,2026348912,"33,752"
Department for Work and Pensions,Employment Programmes,10-Aug-12,EP PROVIDER PAYMENT - NON-WORK PROGRAMME,COO,SEETEC BUSINESS TECHNOLOGY CENTRE LTD,2026336703,"33,671"
Department for Work and Pensions,Employment Programmes,16-Aug-12,EP PROVIDER PAYMENT - WORK PROGRAMME,COO,G4S REGIONAL MANAGEMENT UK & I LTD,2026409697,"33,600"
Department for Work and Pensions,Employment Programmes,16-Aug-12,EP PROVIDER PAYMENT - WORK PROGRAMME,COO,G4S REGIONAL MANAGEMENT UK & I LTD,2026409697,"33,600"
Department for Work and Pensions,Employment Programmes,03-Aug-12,EP PROVIDER PAYMENT - WORK PROGRAMME,COO,WORKING LINKS,2026257975,"33,600"
Department for Work and Pensions,Housing Benefits,14-Aug-12,Housing Benefit Admin,COO,CHILTERN DISTRICT COUNCIL,2026348973,"33,462"
Department for Work and Pensions,Housing Benefits,14-Aug-12,Housing Benefit Admin,COO,FOREST HEATH DISTRICT COUNCIL,2026349034,"33,394"
Department for Work and Pensions,Corporate,14-Aug-12,COMPUTER SERVICES,COO,TAMESIDE METROPOLITAN BOROUGH COUNCIL,2026347810,"33,333"
Department for Work and Pensions,Employment Programmes,03-Aug-12,EP PROVIDER PAYMENT - WORK PROGRAMME,COO,INGEUS UK LTD,2026256539,"33,325"
Department for Work and Pensions,Housing Benefits,14-Aug-12,Housing Benefit Admin,COO,DAVENTRY DISTRICT COUNCIL,2026348997,"33,096"
Department for Work and Pensions,Corporate,24-Aug-12,EMPLOYMENT ZONES,COO,GINGERBREAD,2026496084,"32,650"
Department for Work and Pensions,Corporate,21-Aug-12,EMPLOYMENT ZONES,COO,JHP TRAINING LTD,2026425138,"32,482"
Department for Work and Pensions,Housing Benefits,14-Aug-12,Housing Benefit Admin,COO,NORTH WARWICKSHIRE DISTRICT COUNCIL,2026349144,"32,479"
Department for Work and Pensions,Employment Programmes,14-Aug-12,EP PROVIDER PAYMENT - WORK PROGRAMME,COO,INGEUS UK LTD,2026345104,"32,465"
Department for Work and Pensions,Employment Programmes,03-Aug-12,EP PROVIDER PAYMENT - WORK PROGRAMME,COO,INGEUS UK LTD,2026256539,"32,400"
Department for Work and Pensions,Corporate,31-Aug-12,ACCOMMODATION,COO,TELEREAL TRILLIUM,2026570846,"32,060"
Department for Work and Pensions,Employment Programmes,06-Aug-12,EP PROVIDER PAYMENT - WORK PROGRAMME,COO,CAREERS DEVELOPMENT GROUP,2026259379,"31,920"
Department for Work and Pensions,Housing Benefits,14-Aug-12,Housing Benefit Admin,COO,EAST RENFREWSHIRE COUNCIL,2026349017,"31,881"
Department for Work and Pensions,Corporate,08-Aug-12,TEMPORARY (TEMP) STAFF COSTS,CIT,CAPITA RESOURCING LTD,2026279126,"31,854"
Department for Work and Pensions,Housing Benefits,14-Aug-12,Housing Benefit Admin,COO,TANDRIDGE DISTRICT COUNCIL,2026349238,"31,811"
Department for Work and Pensions,Corporate,10-Aug-12,OTHER EXPENDITURE,COO,CAPITA RESOURCING LTD,2026333557,"31,764"
Department for Work and Pensions,Employment Programmes,28-Aug-12,EP PROVIDER PAYMENT - NON-WORK PROGRAMME,COO,JHP GROUP LTD,2026501781,"31,670"
Department for Work and Pensions,Housing Benefits,14-Aug-12,Housing Benefit Admin,COO,MOLE VALLEY DISTRICT COUNCIL,2026349124,"31,651"
Department for Work and Pensions,European Social Fund,02-Aug-12,ESF Expenditure,STR,UNIVERSITY OF EXETER,5000001118,"31,648"
Department for Work and Pensions,Housing Benefits,14-Aug-12,Housing Benefit Admin,COO,SURREY HEATH BOROUGH COUNCIL,2026349232,"31,427"
Department for Work and Pensions,Corporate,08-Aug-12,PRINCES YOUTH TRUST,COO,LONDON BOROUGH OF NEWHAM,1005388,"31,275"
Department for Work and Pensions,Employment Programmes,14-Aug-12,EP PROVIDER PAYMENT - WORK PROGRAMME,COO,INGEUS UK LTD,2026345104,"31,175"
Department for Work and Pensions,Employment Programmes,22-Aug-12,EP PROVIDER PAYMENT - WORK PROGRAMME,COO,PROSPECTS SERVICES LTD,2026472022,"31,175"
Department for Work and Pensions,Employment Programmes,10-Aug-12,EP PROVIDER PAYMENT - NON-WORK PROGRAMME,COO,REED IN PARTNERSHIP LTD,2026336474,"31,164"
Department for Work and Pensions,Corporate,13-Aug-12,EU PROGRAMMES,COO,NORTH EAST ENTERPRISE AGENCIES LTD,2026340645,"31,086"
Department for Work and Pensions,Employment Programmes,02-Aug-12,ACCESS TO WORK,COO,SOUTH WEST LONDON & ST GEORGES NHS TRUST,2026252638,"30,950"
Department for Work and Pensions,Corporate,13-Aug-12,APPS DEV,COO,HP ENTERPRISE SERVICES UK LTD,2026339733,"30,879"
Department for Work and Pensions,Corporate,16-Aug-12,EU PROGRAMMES,COO,GATESHEAD COUNCIL,2026409699,"30,831"
Department for Work and Pensions,Corporate,13-Aug-12,EU PROGRAMMES,COO,BLACK COUNTRY CHAMBER OF COMMERCE,2026338287,"30,678"
Department for Work and Pensions,Employment Programmes,28-Aug-12,EP PROVIDER PAYMENT - NON-WORK PROGRAMME,COO,JHP GROUP LTD,2026501781,"30,508"
Department for Work and Pensions,Corporate,30-Aug-12,PROFESSIONAL FEES,COO,DOW JONES,2026564296,"30,406"
Department for Work and Pensions,Corporate,22-Aug-12,APPS DEV,COO,HP ENTERPRISE SERVICES UK LTD,2026448838,"30,327"
Department for Work and Pensions,Corporate,09-Aug-12,EMPLOYMENT PROGRAMMES,Excluded,T REARDON,2026331499,"30,262"
Department for Work and Pensions,Employment Programmes,03-Aug-12,EP PROVIDER PAYMENT - WORK PROGRAMME,COO,A4E LTD,2026254583,"30,250"
Department for Work and Pensions,Jobcentre Plus,08-Aug-12,EMPLOYMENT ZONES,COO,SOMERSET COUNTY COUNCIL,2026321473,"30,250"
Department for Work and Pensions,Corporate,08-Aug-12,TELEPHONE AND POSTAGE,COO,POST OFFICE LTD,2026312224,"30,200"
Department for Work and Pensions,Corporate,22-Aug-12,COMPUTER SERVICES,COO,CAPGEMINI UK PLC,2026438166,"30,060"
Department for Work and Pensions,Housing Benefits,14-Aug-12,Housing Benefit Admin,COO,NORTH DORSET DISTRICT COUNCIL,2026349134,"29,975"
Department for Work and Pensions,Employment Programmes,21-Aug-12,ACCESS TO WORK,COO,SCOUT ENTERPRISES WESTERN LTD,2026426979,"29,952"
Department for Work and Pensions,Employment Programmes,03-Aug-12,EP PROVIDER PAYMENT - WORK PROGRAMME,COO,INGEUS UK LTD,2026256539,"29,885"
Department for Work and Pensions,Housing Benefits,14-Aug-12,Housing Benefit Admin,COO,BRENTWOOD DISTRICT COUNCIL,2026348945,"29,689"
Department for Work and Pensions,Employment Programmes,24-Aug-12,EP PROVIDER PAYMENT - WORK PROGRAMME,COO,INGEUS UK LTD,2026496185,"29,670"
Department for Work and Pensions,Employment Programmes,23-Aug-12,JSP ESF DEL P COSTS,COO,WORKING LINKS,2026492868,"29,640"
Department for Work and Pensions,Housing Benefits,14-Aug-12,Housing Benefit Admin,COO,EPSOM & EWELL BOROUGH COUNCIL,2026349026,"29,563"
Department for Work and Pensions,Housing Benefits,14-Aug-12,Housing Benefit Admin,COO,MALDON DISTRICT COUNCIL,2026349110,"29,403"
Department for Work and Pensions,Corporate,08-Aug-12,EMPLOYMENT ZONES,COO,WILTSHIRE COUNCIL,2026325076,"29,400"
Department for Work and Pensions,Corporate,09-Aug-12,PRINTING STATIONERY IT CONSUMABLES,COO,XEROX UK LTD 3W,2026331655,"29,300"
Department for Work and Pensions,Employment Programmes,09-Aug-12,EP PROVIDER PAYMENT - WORK PROGRAMME,COO,A4E LTD,2026328257,"29,200"
Department for Work and Pensions,Employment Programmes,23-Aug-12,ACCESS TO WORK,COO,3SC,2026488201,"29,152"
Department for Work and Pensions,Corporate,03-Aug-12,EMPLOYMENT ZONES,COO,A4E LTD,2026254584,"29,009"
Department for Work and Pensions,Employment Programmes,06-Aug-12,EP PROVIDER PAYMENT - WORK PROGRAMME,COO,SERCO LTD,2026262044,"28,800"
Department for Work and Pensions,Corporate,24-Aug-12,EMPLOYMENT PROGRAMMES,Excluded,C WHITLOCK,3008791,"28,664"
Department for Work and Pensions,Employment Programmes,14-Aug-12,EP PROVIDER PAYMENT - WORK PROGRAMME,COO,INGEUS UK LTD,2026345104,"28,380"
Department for Work and Pensions,Corporate,06-Aug-12,TELEPHONE AND POSTAGE,COO,ROYAL MAIL GROUP PLC,2026261829,"28,256"
Department for Work and Pensions,Employment Programmes,03-Aug-12,EP PROVIDER PAYMENT - WORK PROGRAMME,COO,A4E LTD,2026254583,"28,200"
Department for Work and Pensions,Housing Benefits,14-Aug-12,Housing Benefit Admin,COO,HARBOROUGH DISTRICT COUNCIL,2026349048,"28,174"
Department for Work and Pensions,Corporate,31-Aug-12,ACCOMMODATION,COO,TELEREAL TRILLIUM,2026570844,"28,016"
Department for Work and Pensions,Corporate,08-Aug-12,TEMPORARY (TEMP) STAFF COSTS,COO,CAPITA RESOURCING LTD,2026279126,"28,010"
Department for Work and Pensions,Corporate,24-Aug-12,COMPUTER SERVICES,COO,ATOS ORIGIN IT SERVICES UK LTD,2026494487,"27,950"
Department for Work and Pensions,Employment Programmes,14-Aug-12,EP PROVIDER PAYMENT - WORK PROGRAMME,COO,INGEUS UK LTD,2026345104,"27,950"
Department for Work and Pensions,Corporate,29-Aug-12,IS/IT,COO,ATOS ORIGIN IT SERVICES UK LTD,2026509557,"27,762"
Department for Work and Pensions,Housing Benefits,14-Aug-12,Housing Benefit Admin,COO,WEST DEVON BOROUGH COUNCIL,2026349267,"27,749"
Department for Work and Pensions,Corporate,20-Aug-12,AOS CONTRACTED OUT SERVICES,F&C,SPECIALIST COMPUTER CENTRE PLC,2026421031,"27,608"
Department for Work and Pensions,Employment Programmes,03-Aug-12,EP PROVIDER PAYMENT - WORK PROGRAMME,COO,INGEUS UK LTD,2026256539,"27,520"
Department for Work and Pensions,Corporate,16-Aug-12,EU PROGRAMMES,COO,NORTH LONDON LTD,2026410814,"27,432"
Department for Work and Pensions,Housing Benefits,14-Aug-12,Housing Benefit Admin,COO,DERBYSHIRE DALES DISTRICT COUNCIL,2026349000,"27,378"
Department for Work and Pensions,Housing Benefits,14-Aug-12,Housing Benefit Admin,COO,UTTLESFORD DISTRICT COUNCIL,2026349254,"27,348"
Department for Work and Pensions,Employment Programmes,03-Aug-12,EP PROVIDER PAYMENT - WORK PROGRAMME,COO,INGEUS UK LTD,2026256539,"27,200"
Department for Work and Pensions,Corporate,17-Aug-12,EU PROGRAMMES,COO,ONE LONDON LTD,2026415661,"27,132"
Department for Work and Pensions,Employment Programmes,03-Aug-12,EP PROVIDER PAYMENT - WORK PROGRAMME,COO,A4E LTD,2026254583,"27,000"
Department for Work and Pensions,Corporate,29-Aug-12,MANAGEMENT CONSULTANCY,COO,CESG,2026514832,"26,997"
Department for Work and Pensions,Housing Benefits,14-Aug-12,Housing Benefit Admin,COO,CHRISTCHURCH BOROUGH COUNCIL,2026348975,"26,629"
Department for Work and Pensions,Corporate,23-Aug-12,TEMPORARY (TEMP) STAFF COSTS,COO,CAPITA RESOURCING LTD,2026488869,"26,459"
Department for Work and Pensions,Corporate,03-Aug-12,EU PROGRAMMES,COO,BLUE ORCHID SUPPORT SERVICES,2026254671,"26,450"
Department for Work and Pensions,Employment Programmes,14-Aug-12,ACCESS TO WORK,COO,CAPITA SYMONDS LTD,2026343169,"26,427"
Department for Work and Pensions,Employment Programmes,10-Aug-12,RESIDENTIAL TRAINING,COO,ENHAM,2026335343,"26,422"
Department for Work and Pensions,Employment Programmes,16-Aug-12,EP PROVIDER PAYMENT - WORK PROGRAMME,COO,G4S REGIONAL MANAGEMENT UK & I LTD,2026409697,"26,400"
Department for Work and Pensions,Employment Programmes,06-Aug-12,EP PROVIDER PAYMENT - WORK PROGRAMME,COO,SERCO LTD,2026262044,"26,400"
Department for Work and Pensions,Housing Benefits,14-Aug-12,Housing Benefit Admin,COO,SOUTH NORTHANTS COUNCIL,2026349209,"26,356"
Department for Work and Pensions,Corporate,31-Aug-12,ACCOMMODATION,COO,TELEREAL TRILLIUM,2026570846,"26,335"
Department for Work and Pensions,Jobcentre Plus,28-Aug-12,EU PROGRAMMES,COO,WEST LOTHIAN COUNCIL,2026504057,"26,286"
Department for Work and Pensions,Corporate,30-Aug-12,TEMPORARY (TEMP) STAFF COSTS,COO,CAPITA RESOURCING LTD,2026564083,"26,170"
Department for Work and Pensions,Corporate,17-Aug-12,OFFICE MACHINERY HIRE & MAINTENANCE,COO,SONIC COMMUNICATIONS INT LTD,2026416073,"26,131"
Department for Work and Pensions,Corporate,31-Aug-12,ACCOMMODATION,COO,TELEREAL TRILLIUM,2026570846,"26,106"
Department for Work and Pensions,Employment Programmes,20-Aug-12,EP PROVIDER PAYMENT - WORK PROGRAMME,COO,A4E LTD,2026417276,"26,100"
Department for Work and Pensions,Corporate,08-Aug-12,TEMPORARY (TEMP) STAFF COSTS,COO,CAPITA RESOURCING LTD,2026279126,"26,097"
Department for Work and Pensions,Corporate,13-Aug-12,EU PROGRAMMES,COO,DONCASTER CHAMBER,2026338680,"25,831"
Department for Work and Pensions,Corporate,14-Aug-12,COMPUTER SERVICES,COO,HP ENTERPRISE SERVICES UK LTD,2026345033,"25,816"
Department for Work and Pensions,Corporate,09-Aug-12,PROFESSIONAL FEES,COO,LGC LTD,2026330331,"25,737"
Department for Work and Pensions,Employment Programmes,03-Aug-12,EP PROVIDER PAYMENT - WORK PROGRAMME,COO,INGEUS UK LTD,2026256539,"25,585"
Department for Work and Pensions,Corporate,06-Aug-12,TELEPHONE AND POSTAGE,COO,ROYAL MAIL GROUP PLC,2026261829,"25,572"
Department for Work and Pensions,Corporate,01-Aug-12,EU PROGRAMMES,COO,BLUE ORCHID SUPPORT SERVICES,2026198582,"25,556"
Department for Work and Pensions,Housing Benefits,14-Aug-12,Housing Benefit Admin,COO,WEST SOMERSET DISTRICT COUNCIL,2026349274,"25,533"
Department for Work and Pensions,Employment Programmes,02-Aug-12,EP PROVIDER PAYMENT - WORK PROGRAMME,COO,A4E LTD,2026248355,"25,500"
Department for Work and Pensions,Corporate,14-Aug-12,COMPUTER SERVICES,COO,ACCENTURE UK LTD,2026342740,"25,326"
Department for Work and Pensions,Housing Benefits,14-Aug-12,Housing Benefit Admin,COO,RYEDALE DISTRICT COUNCIL,2026349183,"25,235"
Department for Work and Pensions,Corporate,14-Aug-12,APPS DEV,COO,HP ENTERPRISE SERVICES UK LTD,2026345033,"25,201"
Department for Work and Pensions,Corporate,14-Aug-12,APPS DEV,COO,HP ENTERPRISE SERVICES UK LTD,2026345033,"25,200"
Department for Work and Pensions,Employment Programmes,20-Aug-12,EP PROVIDER PAYMENT - WORK PROGRAMME,COO,WORKING LINKS,2026421212,"25,200"
Department for Work and Pensions,Employment Programmes,23-Aug-12,ACCESS TO WORK,COO,SCOUT ENTERPRISES WESTERN LTD,2026492610,"25,046"
Department for Work and Pensions,Employment Programmes,03-Aug-12,EP PROVIDER PAYMENT - WORK PROGRAMME,COO,INGEUS UK LTD,2026256539,"25,000"
Department for Work and Pensions,Corporate,06-Aug-12,STAFF COSTS,COO,OXFORD SAID BUSINESS SCHOOL LTD,2026261571,"25,000"
Department for Work and Pensions,Employment Programmes,28-Aug-12,EP PROVIDER PAYMENT - WORK PROGRAMME,COO,MAXIMUS EMPLOYMENT UK LTD,2026502661,"24,940"
Department for Work and Pensions,Corporate,06-Aug-12,TELEPHONE AND POSTAGE,COO,ROYAL MAIL GROUP PLC,2026261829,"24,698"
Department for Work and Pensions,Employment Programmes,14-Aug-12,EP PROVIDER PAYMENT - NON-WORK PROGRAMME,COO,SEETEC BUSINESS TECHNOLOGY CENTRE LTD,2026347628,"24,446"
Department for Work and Pensions,Corporate,06-Aug-12,TELEPHONE AND POSTAGE,COO,ROYAL MAIL GROUP PLC,2026261829,"24,437"
Department for Work and Pensions,Housing Benefits,14-Aug-12,Housing Benefit Admin,COO,HART DISTRICT COUNCIL,2026349051,"24,304"
Department for Work and Pensions,Employment Programmes,24-Aug-12,EP PROVIDER PAYMENT - WORK PROGRAMME,COO,INGEUS UK LTD,2026496185,"24,295"
Department for Work and Pensions,Employment Programmes,03-Aug-12,EP PROVIDER PAYMENT - WORK PROGRAMME,COO,CAREERS DEVELOPMENT GROUP,2026254848,"24,200"
Department for Work and Pensions,Corporate,14-Aug-12,APPS DEV,COO,HP ENTERPRISE SERVICES UK LTD,2026345033,"24,112"
Department for Work and Pensions,Corporate,06-Aug-12,TELEPHONE AND POSTAGE,COO,ROYAL MAIL GROUP PLC,2026261829,"24,069"
Department for Work and Pensions,Corporate,30-Aug-12,OTHER EXPENDITURE,COO,CAPITA RESOURCING LTD,2026564083,"24,057"
Department for Work and Pensions,Corporate,28-Aug-12,TOTAL IT & EQUIPMENT COSTS,COO,ACTICA CONSULTING LTD,2026498816,"24,050"
Department for Work and Pensions,Housing Benefits,14-Aug-12,Housing Benefit Admin,COO,CRAVEN DISTRICT COUNCIL,2026348991,"24,016"
Department for Work and Pensions,Employment Programmes,03-Aug-12,EP PROVIDER PAYMENT - WORK PROGRAMME,COO,INGEUS UK LTD,2026256539,"24,000"
Department for Work and Pensions,Employment Programmes,03-Aug-12,EP PROVIDER PAYMENT - WORK PROGRAMME,COO,INGEUS UK LTD,2026256539,"24,000"
Department for Work and Pensions,Employment Programmes,06-Aug-12,EP PROVIDER PAYMENT - WORK PROGRAMME,COO,MAXIMUS EMPLOYMENT UK LTD,2026261460,"24,000"
Department for Work and Pensions,Corporate,08-Aug-12,COMPUTER SERVICES,COO,HP ENTERPRISE SERVICES UK LTD,2026289440,"23,807"
Department for Work and Pensions,Housing Benefits,14-Aug-12,Housing Benefit Admin,COO,SOUTH BUCKS DISTRICT COUNCIL,2026349199,"23,756"
Department for Work and Pensions,Employment Programmes,21-Aug-12,JSP ESF DEL P COSTS,COO,G4S REGIONAL MANAGEMENT UK & I LTD,2026424608,"23,492"
Department for Work and Pensions,Corporate,31-Aug-12,ACCOMMODATION,COO,TELEREAL TRILLIUM,2026570846,"23,358"
Department for Work and Pensions,Employment Programmes,06-Aug-12,EP PROVIDER PAYMENT - WORK PROGRAMME,COO,A4E LTD,2026259127,"23,184"
Department for Work and Pensions,Corporate,31-Aug-12,TEMPORARY (TEMP) STAFF COSTS,COO,CAPITA RESOURCING LTD,2026569121,"23,157"
Department for Work and Pensions,Corporate,28-Aug-12,CONTRACTED OUT SERVICES,COO,CAPITA BUSINESS SERVICES LTD,2026499228,"23,150"
Department for Work and Pensions,Employment Programmes,08-Aug-12,EP PROVIDER PAYMENT - WORK PROGRAMME,COO,A4E LTD,2026273854,"23,100"
Department for Work and Pensions,Corporate,13-Aug-12,IS/IT,COO,SPECIALIST COMPUTER CENTRES PLC,2026341251,"23,055"
Department for Work and Pensions,Corporate,09-Aug-12,COMPUTER SERVICES,COO,XEROX UK LTD 3W,2026331655,"23,033"
Department for Work and Pensions,Housing Benefits,14-Aug-12,Housing Benefit Admin,COO,PURBECK DISTRICT COUNCIL,2026349164,"23,016"
Department for Work and Pensions,Employment Programmes,24-Aug-12,EP PROVIDER PAYMENT - WORK PROGRAMME,COO,INGEUS UK LTD,2026496185,"23,005"
Department for Work and Pensions,Corporate,22-Aug-12,TELEPHONE AND POSTAGE,COO,G3 WORLDWIDE MAIL UK LTD,2026447279,"23,000"
Department for Work and Pensions,Corporate,08-Aug-12,OTHER EXPENDITURE,COO,CAPITA RESOURCING LTD,2026279126,"22,825"
Department for Work and Pensions,Employment Programmes,22-Aug-12,EP PROVIDER PAYMENT - WORK PROGRAMME,COO,CAREERS DEVELOPMENT GROUP,2026438172,"22,800"
Department for Work and Pensions,Employment Programmes,03-Aug-12,EP PROVIDER PAYMENT - WORK PROGRAMME,COO,G4S REGIONAL MANAGEMENT UK & I LTD,2026256437,"22,800"
Department for Work and Pensions,Employment Programmes,03-Aug-12,EP PROVIDER PAYMENT - WORK PROGRAMME,COO,REED IN PARTNERSHIP LTD,2026257492,"22,800"
Department for Work and Pensions,Employment Programmes,03-Aug-12,EP PROVIDER PAYMENT - WORK PROGRAMME,COO,INGEUS UK LTD,2026256539,"22,700"
Department for Work and Pensions,Employment Programmes,17-Aug-12,EP PROVIDER PAYMENT - WORK PROGRAMME,COO,A4E LTD,2026413041,"22,600"
Department for Work and Pensions,Housing Benefits,14-Aug-12,Housing Benefit Admin,COO,OADBY & WIGSTON BOROUGH COUNCIL,2026349151,"22,509"
Department for Work and Pensions,Corporate,14-Aug-12,COMPUTER SERVICES,COO,ACCENTURE UK LTD,2026342740,"22,436"
Department for Work and Pensions,Employment Programmes,29-Aug-12,EP PROVIDER PAYMENT - WORK PROGRAMME,COO,REHAB JOBFIT,2026550247,"22,080"
Department for Work and Pensions,Employment Programmes,03-Aug-12,EP PROVIDER PAYMENT - WORK PROGRAMME,COO,SEETEC BUSINESS TECHNOLOGY CENTRE LTD,2026257746,"22,080"
Department for Work and Pensions,Corporate,14-Aug-12,APPS DEV,COO,HP ENTERPRISE SERVICES UK LTD,2026345033,"21,978"
Department for Work and Pensions,Corporate,10-Aug-12,APPS DEV,COO,HP ENTERPRISE SERVICES UK LTD,2026335503,"21,875"
Department for Work and Pensions,Corporate,15-Aug-12,APPS DEV,COO,DETICA LTD,2026362354,"21,830"
Department for Work and Pensions,Corporate,31-Aug-12,ACCOMMODATION,COO,TELEREAL TRILLIUM,2026570846,"21,751"
Department for Work and Pensions,Employment Programmes,22-Aug-12,EP PROVIDER PAYMENT - WORK PROGRAMME,COO,PROSPECTS SERVICES LTD,2026472022,"21,750"
Department for Work and Pensions,Corporate,23-Aug-12,OTHER OPERATING LEASES,COO,INCHCAPE FLEET SOLUTIONS LTD,2026490712,"21,732"
Department for Work and Pensions,Corporate,31-Aug-12,ACCOMMODATION,COO,TELEREAL TRILLIUM,2026570846,"21,641"
Department for Work and Pensions,Corporate,31-Aug-12,ACCOMMODATION,COO,TELEREAL TRILLIUM,2026570844,"21,627"
Department for Work and Pensions,Employment Programmes,02-Aug-12,EP PROVIDER PAYMENT - WORK PROGRAMME,COO,A4E LTD,2026248355,"21,600"
Department for Work and Pensions,Employment Programmes,10-Aug-12,EP PROVIDER PAYMENT - WORK PROGRAMME,COO,G4S REGIONAL MANAGEMENT UK & I LTD,2026335441,"21,600"
Department for Work and Pensions,Employment Programmes,14-Aug-12,EP PROVIDER PAYMENT - WORK PROGRAMME,COO,WORKING LINKS,2026347949,"21,600"
Department for Work and Pensions,Employment Programmes,03-Aug-12,EP PROVIDER PAYMENT - WORK PROGRAMME,COO,SEETEC BUSINESS TECHNOLOGY CENTRE LTD,2026257746,"21,500"
Department for Work and Pensions,Employment Programmes,03-Aug-12,EP PROVIDER PAYMENT - WORK PROGRAMME,COO,EOS WORKS LTD,2026256329,"21,420"
Department for Work and Pensions,Employment Programmes,03-Aug-12,EP PROVIDER PAYMENT - WORK PROGRAMME,COO,SEETEC BUSINESS TECHNOLOGY CENTRE LTD,2026257746,"21,400"
Department for Work and Pensions,Corporate,14-Aug-12,MANAGEMENT CONSULTANCY,COO,ARIADNE CAPITAL LTD,2026342766,"21,315"
Department for Work and Pensions,Employment Programmes,22-Aug-12,EP PROVIDER PAYMENT - WORK PROGRAMME,COO,A4E LTD,2026432758,"21,300"
Department for Work and Pensions,Employment Programmes,03-Aug-12,EP PROVIDER PAYMENT - WORK PROGRAMME,COO,INGEUS UK LTD,2026256539,"21,285"
Department for Work and Pensions,Housing Benefits,14-Aug-12,Housing Benefit Admin,COO,MELTON BOROUGH COUNCIL,2026349115,"21,251"
Department for Work and Pensions,Employment Programmes,03-Aug-12,EP PROVIDER PAYMENT - WORK PROGRAMME,COO,A4E LTD,2026254583,"21,200"
Department for Work and Pensions,Corporate,02-Aug-12,TEMPORARY (TEMP) STAFF COSTS,COO,CAPITA RESOURCING LTD,2026248755,"21,151"
Department for Work and Pensions,Corporate,28-Aug-12,JOBCENTRE PLUS PATHWAYS TO WORK,COO,SENCIA LTD,2026503774,"21,069"
Department for Work and Pensions,Corporate,23-Aug-12,TEMPORARY (TEMP) STAFF COSTS,CIT,CAPITA RESOURCING LTD,2026488869,"21,038"
Department for Work and Pensions,Corporate,10-Aug-12,EU PROGRAMMES,COO,IXION HOLDINGS LTD,2026335546,"21,000"
Department for Work and Pensions,Employment Programmes,30-Aug-12,EP PROVIDER PAYMENT - WORK PROGRAMME,COO,PERTEMPS,2026567102,"21,000"
Department for Work and Pensions,Corporate,06-Aug-12,TELEPHONE AND POSTAGE,COO,ROYAL MAIL GROUP PLC,2026261829,"20,865"
Department for Work and Pensions,Corporate,06-Aug-12,TELEPHONE AND POSTAGE,COO,ROYAL MAIL GROUP PLC,2026261829,"20,861"
Department for Work and Pensions,Employment Programmes,24-Aug-12,EP PROVIDER PAYMENT - WORK PROGRAMME,COO,INGEUS UK LTD,2026496185,"20,855"
Department for Work and Pensions,Employment Programmes,06-Aug-12,EP PROVIDER PAYMENT - WORK PROGRAMME,COO,WORKING LINKS,2026262241,"20,855"
Department for Work and Pensions,Corporate,06-Aug-12,TELEPHONE AND POSTAGE,COO,ROYAL MAIL GROUP PLC,2026261829,"20,841"
Department for Work and Pensions,Corporate,06-Aug-12,TELEPHONE AND POSTAGE,COO,ROYAL MAIL GROUP PLC,2026261829,"20,798"
Department for Work and Pensions,Corporate,21-Aug-12,TELEPHONE AND POSTAGE,COO,UK MAIL,2026427147,"20,737"
Department for Work and Pensions,Employment Programmes,02-Aug-12,ACCESS TO WORK,COO,GRAEAE THEATRE CO LTD,2026250437,"20,482"
Department for Work and Pensions,Employment Programmes,28-Aug-12,EP PROVIDER PAYMENT - WORK PROGRAMME,COO,INGEUS UK LTD,2026501368,"20,400"
Department for Work and Pensions,Employment Programmes,16-Aug-12,EP PROVIDER PAYMENT - WORK PROGRAMME,COO,G4S REGIONAL MANAGEMENT UK & I LTD,2026409697,"20,400"
Department for Work and Pensions,Employment Programmes,28-Aug-12,EP PROVIDER PAYMENT - WORK PROGRAMME,COO,INGEUS UK LTD,2026501368,"20,400"
Department for Work and Pensions,Employment Programmes,14-Aug-12,EP PROVIDER PAYMENT - WORK PROGRAMME,COO,INGEUS UK LTD,2026345104,"20,400"
Department for Work and Pensions,Employment Programmes,03-Aug-12,EP PROVIDER PAYMENT - WORK PROGRAMME,COO,SERCO LTD,2026257747,"20,400"
Department for Work and Pensions,Corporate,31-Aug-12,ACCOMMODATION,COO,TELEREAL TRILLIUM,2026570844,"20,262"
Department for Work and Pensions,Employment Programmes,03-Aug-12,EP PROVIDER PAYMENT - WORK PROGRAMME,COO,G4S REGIONAL MANAGEMENT UK & I LTD,2026256437,"20,200"
Department for Work and Pensions,Employment Programmes,22-Aug-12,EP PROVIDER PAYMENT - WORK PROGRAMME,COO,INTERSERVE WORKING FUTURES,2026449252,"20,200"
Department for Work and Pensions,Employment Programmes,09-Aug-12,EP PROVIDER PAYMENT - WORK PROGRAMME,COO,A4E LTD,2026328257,"20,200"
Department for Work and Pensions,Housing Benefits,14-Aug-12,Housing Benefit Admin,COO,EDEN DISTRICT COUNCIL,2026349022,"20,150"
Department for Work and Pensions,Corporate,02-Aug-12,MISCELLANEOUS EXPENDITURE,PS,CENTRE FOR ECONOMIC & SOCIAL INCLUSION,2026248776,"20,135"
Department for Work and Pensions,Employment Programmes,06-Aug-12,EP PROVIDER PAYMENT - WORK PROGRAMME,COO,INGEUS UK LTD,2026260816,"20,000"
Department for Work and Pensions,Housing Benefits,14-Aug-12,Housing Benefit Admin,COO,COMHAIRLE NAN EILEAN SIAR COUNCIL,2026348982,"19,981"
Department for Work and Pensions,Corporate,06-Aug-12,TELEPHONE AND POSTAGE,COO,ROYAL MAIL GROUP PLC,2026261829,"19,908"
Department for Work and Pensions,Employment Programmes,30-Aug-12,EP PROVIDER PAYMENT - WORK PROGRAMME,COO,G4S REGIONAL MANAGEMENT UK & I LTD,2026565958,"19,750"
Department for Work and Pensions,Corporate,08-Aug-12,COMPUTER SERVICES,COO,HP ENTERPRISE SERVICES UK LTD,2026289440,"19,722"
Department for Work and Pensions,Corporate,06-Aug-12,TELEPHONE AND POSTAGE,COO,ROYAL MAIL GROUP PLC,2026261829,"19,669"
Department for Work and Pensions,Corporate,23-Aug-12,OTHER EXPENDITURE,COO,CAPITA RESOURCING LTD,2026488869,"19,598"
Department for Work and Pensions,Employment Programmes,30-Aug-12,EP PROVIDER PAYMENT - WORK PROGRAMME,COO,MAXIMUS EMPLOYMENT UK LTD,2026566833,"19,565"
Department for Work and Pensions,Employment Programmes,21-Aug-12,EP PROVIDER PAYMENT - NON-WORK PROGRAMME,COO,WORKING LINKS,2026427240,"19,552"
Department for Work and Pensions,Corporate,10-Aug-12,APPS DEV,COO,HP ENTERPRISE SERVICES UK LTD,2026335503,"19,462"
Department for Work and Pensions,Housing Benefits,14-Aug-12,Housing Benefit Admin,COO,RIBBLE VALLEY BOROUGH COUNCIL,2026349170,"19,418"
Department for Work and Pensions,Employment Programmes,03-Aug-12,EP PROVIDER PAYMENT - WORK PROGRAMME,COO,INGEUS UK LTD,2026256539,"19,400"
Department for Work and Pensions,Corporate,10-Aug-12,EU PROGRAMMES,COO,IXION HOLDINGS LTD,2026335546,"19,400"
Department for Work and Pensions,Employment Programmes,02-Aug-12,EP PROVIDER PAYMENT - WORK PROGRAMME,COO,CAREERS DEVELOPMENT GROUP,2026248761,"19,380"
Department for Work and Pensions,Employment Programmes,03-Aug-12,EP PROVIDER PAYMENT - WORK PROGRAMME,COO,INGEUS UK LTD,2026256539,"19,350"
Department for Work and Pensions,Employment Programmes,21-Aug-12,EP PROVIDER PAYMENT - WORK PROGRAMME,COO,WORKING LINKS,2026427240,"19,350"
Department for Work and Pensions,Corporate,02-Aug-12,OTHER EXPENDITURE,COO,CAPITA RESOURCING LTD,2026248755,"19,345"
Department for Work and Pensions,Employment Programmes,17-Aug-12,EP PROVIDER PAYMENT - WORK PROGRAMME,COO,A4E LTD,2026413041,"19,300"
Department for Work and Pensions,Employment Programmes,03-Aug-12,EP PROVIDER PAYMENT - WORK PROGRAMME,COO,NEWCASTLE COLLEGE GROUP,2026257261,"19,250"
Department for Work and Pensions,Employment Programmes,03-Aug-12,EP PROVIDER PAYMENT - WORK PROGRAMME,COO,INGEUS UK LTD,2026256539,"19,200"
Department for Work and Pensions,Employment Programmes,03-Aug-12,EP PROVIDER PAYMENT - WORK PROGRAMME,COO,MAXIMUS EMPLOYMENT UK LTD,2026257162,"19,200"
Department for Work and Pensions,Employment Programmes,03-Aug-12,EP PROVIDER PAYMENT - WORK PROGRAMME,COO,SERCO LTD,2026257747,"19,200"
Department for Work and Pensions,Corporate,31-Aug-12,ACCOMMODATION,COO,TELEREAL TRILLIUM,2026570846,"19,144"
Department for Work and Pensions,Corporate,08-Aug-12,ACCOMMODATION COSTS,CIT,TELEREAL TRILLIUM,2026323665,"19,126"
Department for Work and Pensions,Employment Programmes,28-Aug-12,EP PROVIDER PAYMENT - WORK PROGRAMME,COO,WORKING LINKS,2026504064,"18,920"
Department for Work and Pensions,Corporate,31-Aug-12,ACCOMMODATION,COO,TELEREAL TRILLIUM,2026570844,"18,815"
Department for Work and Pensions,Employment Programmes,08-Aug-12,EP PROVIDER PAYMENT - WORK PROGRAMME,COO,A4E LTD,2026273854,"18,768"
Department for Work and Pensions,Employment Programmes,03-Aug-12,EP PROVIDER PAYMENT - NON-WORK PROGRAMME,COO,JHP GROUP LTD,2026256748,"18,644"
Department for Work and Pensions,Housing Benefits,14-Aug-12,Housing Benefit Admin,COO,RICHMONDSHIRE DISTRICT COUNCIL,2026349171,"18,599"
Department for Work and Pensions,Corporate,28-Aug-12,JOBCENTRE PLUS PATHWAYS TO WORK,COO,A4E LTD,2026498810,"18,545"
Department for Work and Pensions,Employment Programmes,31-Aug-12,EP PROVIDER PAYMENT - WORK PROGRAMME,COO,PERTEMPS,2026570472,"18,500"
Department for Work and Pensions,Employment Programmes,17-Aug-12,EP PROVIDER PAYMENT - WORK PROGRAMME,COO,A4E LTD,2026413041,"18,490"
Department for Work and Pensions,SHARED SERVICES,28-Aug-12,CONTRACTED OUT SERVICES,COO,CAPITA BUSINESS SERVICES LTD,2026499228,"18,465"
Department for Work and Pensions,Employment Programmes,14-Aug-12,EP PROVIDER PAYMENT - WORK PROGRAMME,COO,INGEUS UK LTD,2026345104,"18,275"
Department for Work and Pensions,Employment Programmes,07-Aug-12,EP PROVIDER PAYMENT - WORK PROGRAMME,COO,INGEUS UK LTD,2026265693,"18,275"
Department for Work and Pensions,Employment Programmes,07-Aug-12,EP PROVIDER PAYMENT - WORK PROGRAMME,COO,SEETEC BUSINESS TECHNOLOGY CENTRE LTD,2026268069,"18,275"
Department for Work and Pensions,Employment Programmes,03-Aug-12,EP PROVIDER PAYMENT - WORK PROGRAMME,COO,A4E LTD,2026254583,"18,240"
Department for Work and Pensions,Employment Programmes,15-Aug-12,EP PROVIDER PAYMENT - WORK PROGRAMME,COO,CAREERS DEVELOPMENT GROUP,2026359129,"18,240"
Department for Work and Pensions,Employment Programmes,23-Aug-12,EP PROVIDER PAYMENT - WORK PROGRAMME,COO,REHAB JOBFIT,2026492234,"18,240"
Department for Work and Pensions,Employment Programmes,09-Aug-12,EP PROVIDER PAYMENT - NON-WORK PROGRAMME,COO,JHP GROUP LTD,2026329997,"18,220"
Department for Work and Pensions,Employment Programmes,14-Aug-12,EP PROVIDER PAYMENT - WORK PROGRAMME,COO,A4E LTD,2026342736,"18,200"
Department for Work and Pensions,Employment Programmes,23-Aug-12,EP PROVIDER PAYMENT - WORK PROGRAMME,COO,PERTEMPS,2026492035,"18,156"
Department for Work and Pensions,Employment Programmes,06-Aug-12,EP PROVIDER PAYMENT - WORK PROGRAMME,COO,INGEUS UK LTD,2026260816,"18,000"
Department for Work and Pensions,Employment Programmes,30-Aug-12,EP PROVIDER PAYMENT - WORK PROGRAMME,COO,WORKING LINKS,2026567728,"18,000"
Department for Work and Pensions,Employment Programmes,16-Aug-12,EP PROVIDER PAYMENT - NON-WORK PROGRAMME,COO,WORKING LINKS,2026411700,"17,811"
Department for Work and Pensions,Employment Programmes,22-Aug-12,EP PROVIDER PAYMENT - WORK PROGRAMME,COO,MAXIMUS EMPLOYMENT UK LTD,2026467777,"17,760"
Department for Work and Pensions,Employment Programmes,15-Aug-12,EP PROVIDER PAYMENT - WORK PROGRAMME,COO,G4S REGIONAL MANAGEMENT UK & I LTD,2026368188,"17,750"
Department for Work and Pensions,Corporate,31-Aug-12,ACCOMMODATION,COO,TELEREAL TRILLIUM,2026570846,"17,519"
Department for Work and Pensions,Corporate,31-Aug-12,ACCOMMODATION,COO,TELEREAL TRILLIUM,2026570844,"17,428"
Department for Work and Pensions,Employment Programmes,03-Aug-12,EP PROVIDER PAYMENT - WORK PROGRAMME,COO,A4E LTD,2026254583,"17,400"
Department for Work and Pensions,Employment Programmes,22-Aug-12,EP PROVIDER PAYMENT - NON-WORK PROGRAMME,COO,SHAW TRUST,2026481487,"17,380"
Department for Work and Pensions,Corporate,09-Aug-12,ACCOMMODATION COSTS,COO,TELEREAL TRILLIUM,2026331528,"17,375"
Department for Work and Pensions,Corporate,23-Aug-12,PRINTING STATIONERY IT CONSUMABLES,COO,XEROX UK LTD 3W,2026492870,"17,330"
Department for Work and Pensions,Employment Programmes,23-Aug-12,EP PROVIDER PAYMENT - WORK PROGRAMME,COO,REHAB JOBFIT,2026492234,"17,280"
Department for Work and Pensions,Corporate,31-Aug-12,Office Supplies printing and publicity,PS,DURRANTS PRESS CUTTINGS LTD,2026569517,"17,217"
Department for Work and Pensions,Employment Programmes,17-Aug-12,EP PROVIDER PAYMENT - WORK PROGRAMME,COO,INGEUS UK LTD,2026415012,"17,200"
Department for Work and Pensions,Corporate,06-Aug-12,TELEPHONE AND POSTAGE,COO,ROYAL MAIL GROUP PLC,2026261829,"17,163"
Department for Work and Pensions,Employment Programmes,03-Aug-12,EP PROVIDER PAYMENT - WORK PROGRAMME,COO,INGEUS UK LTD,2026256539,"17,130"
Department for Work and Pensions,Employment Programmes,06-Aug-12,EP PROVIDER PAYMENT - WORK PROGRAMME,COO,INTERSERVE WORKING FUTURES,2026260818,"17,100"
Department for Work and Pensions,Employment Programmes,09-Aug-12,EP PROVIDER PAYMENT - WORK PROGRAMME,COO,MAXIMUS EMPLOYMENT UK LTD,2026330612,"17,100"
Department for Work and Pensions,Corporate,23-Aug-12,OTHER EXPENDITURE,CIT,CAPITA RESOURCING LTD,2026488869,"17,063"
Department for Work and Pensions,Employment Programmes,24-Aug-12,EP PROVIDER PAYMENT - WORK PROGRAMME,COO,INGEUS UK LTD,2026496185,"16,800"
Department for Work and Pensions,Employment Programmes,30-Aug-12,EP PROVIDER PAYMENT - WORK PROGRAMME,COO,G4S REGIONAL MANAGEMENT UK & I LTD,2026565958,"16,800"
Department for Work and Pensions,Employment Programmes,24-Aug-12,EP PROVIDER PAYMENT - WORK PROGRAMME,COO,WORKING LINKS,2026497449,"16,800"
Department for Work and Pensions,Employment Programmes,03-Aug-12,EP PROVIDER PAYMENT - WORK PROGRAMME,COO,WORKING LINKS,2026257975,"16,800"
Department for Work and Pensions,Employment Programmes,29-Aug-12,EP PROVIDER PAYMENT - WORK PROGRAMME,COO,CAREERS DEVELOPMENT GROUP,2026514826,"16,770"
Department for Work and Pensions,Employment Programmes,29-Aug-12,EP PROVIDER PAYMENT - NON-WORK PROGRAMME,COO,SEETEC BUSINESS TECHNOLOGY CENTRE LTD,2026557188,"16,751"
Department for Work and Pensions,Employment Programmes,06-Aug-12,EP PROVIDER PAYMENT - WORK PROGRAMME,COO,MAXIMUS EMPLOYMENT UK LTD,2026261460,"16,650"
Department for Work and Pensions,Corporate,31-Aug-12,ACCOMMODATION,COO,TELEREAL TRILLIUM,2026570846,"16,603"
Department for Work and Pensions,Employment Programmes,23-Aug-12,EP PROVIDER PAYMENT - WORK PROGRAMME,COO,CAREERS DEVELOPMENT GROUP,2026488875,"16,555"
Department for Work and Pensions,Employment Programmes,22-Aug-12,EP PROVIDER PAYMENT - WORK PROGRAMME,COO,REED IN PARTNERSHIP LTD,2026474455,"16,555"
Department for Work and Pensions,Corporate,06-Aug-12,TELEPHONE AND POSTAGE,COO,ROYAL MAIL GROUP PLC,2026261829,"16,544"
Department for Work and Pensions,Corporate,06-Aug-12,TELEPHONE AND POSTAGE,COO,ROYAL MAIL GROUP PLC,2026261829,"16,516"
Department for Work and Pensions,Employment Programmes,14-Aug-12,EP PROVIDER PAYMENT - WORK PROGRAMME,COO,INGEUS UK LTD,2026345104,"16,500"
Department for Work and Pensions,Employment Programmes,14-Aug-12,EP PROVIDER PAYMENT - WORK PROGRAMME,COO,NEWCASTLE COLLEGE GROUP,2026346586,"16,500"
Department for Work and Pensions,Employment Programmes,29-Aug-12,JSP ESF DEL P COSTS,COO,WORKING LINKS,2026560828,"16,467"
Department for Work and Pensions,Employment Programmes,06-Aug-12,EP PROVIDER PAYMENT - WORK PROGRAMME,COO,EOS WORKS LTD,2026260603,"16,320"
Department for Work and Pensions,Employment Programmes,29-Aug-12,EP PROVIDER PAYMENT - WORK PROGRAMME,COO,REHAB JOBFIT,2026550247,"16,320"
Department for Work and Pensions,Employment Programmes,14-Aug-12,EP PROVIDER PAYMENT - WORK PROGRAMME,COO,WORKING LINKS,2026347949,"16,300"
Department for Work and Pensions,Corporate,17-Aug-12,CONTRACTED OUT SERVICES,COO,CAPITA BUSINESS SERVICES LTD,2026413309,"16,296"
Department for Work and Pensions,Employment Programmes,20-Aug-12,EP PROVIDER PAYMENT - WORK PROGRAMME,COO,NEWCASTLE COLLEGE GROUP,2026420471,"16,250"
Department for Work and Pensions,Employment Programmes,20-Aug-12,EP PROVIDER PAYMENT - NON-WORK PROGRAMME,COO,SEETEC BUSINESS TECHNOLOGY CENTRE LTD,2026421003,"16,229"
Department for Work and Pensions,Employment Programmes,21-Aug-12,EP PROVIDER PAYMENT - NON-WORK PROGRAMME,COO,SEETEC BUSINESS TECHNOLOGY CENTRE LTD,2026426980,"16,143"
Department for Work and Pensions,Employment Programmes,02-Aug-12,EP PROVIDER PAYMENT - WORK PROGRAMME,COO,G4S REGIONAL MANAGEMENT UK & I LTD,2026250419,"16,100"
Department for Work and Pensions,Employment Programmes,07-Aug-12,EP PROVIDER PAYMENT - WORK PROGRAMME,COO,INGEUS UK LTD,2026265693,"16,000"
Department for Work and Pensions,Employment Programmes,17-Aug-12,EP PROVIDER PAYMENT - WORK PROGRAMME,COO,A4E LTD,2026413041,"15,900"
Department for Work and Pensions,Employment Programmes,07-Aug-12,EP PROVIDER PAYMENT - WORK PROGRAMME,COO,A4E LTD,2026263473,"15,900"
Department for Work and Pensions,Employment Programmes,02-Aug-12,EP PROVIDER PAYMENT - WORK PROGRAMME,COO,INGEUS UK LTD,2026250586,"15,900"
Department for Work and Pensions,Employment Programmes,28-Aug-12,EP PROVIDER PAYMENT - WORK PROGRAMME,COO,INGEUS UK LTD,2026501368,"15,800"
Department for Work and Pensions,Employment Programmes,13-Aug-12,EP PROVIDER PAYMENT - WORK PROGRAMME,COO,NEWCASTLE COLLEGE GROUP,2026340638,"15,750"
Department for Work and Pensions,Employment Programmes,08-Aug-12,EP PROVIDER PAYMENT - WORK PROGRAMME,COO,REHAB JOBFIT,2026314593,"15,695"
Department for Work and Pensions,Corporate,31-Aug-12,ACCOMMODATION,COO,TELEREAL TRILLIUM,2026570846,"15,687"
Department for Work and Pensions,Employment Programmes,21-Aug-12,EP PROVIDER PAYMENT - WORK PROGRAMME,COO,INGEUS UK LTD,2026424774,"15,600"
Department for Work and Pensions,Employment Programmes,23-Aug-12,EP PROVIDER PAYMENT - WORK PROGRAMME,COO,G4S REGIONAL MANAGEMENT UK & I LTD,2026490576,"15,600"
Department for Work and Pensions,Employment Programmes,03-Aug-12,EP PROVIDER PAYMENT - WORK PROGRAMME,COO,INGEUS UK LTD,2026256539,"15,600"
Department for Work and Pensions,Employment Programmes,07-Aug-12,EP PROVIDER PAYMENT - WORK PROGRAMME,COO,INGEUS UK LTD,2026265693,"15,600"
Department for Work and Pensions,Employment Programmes,30-Aug-12,EP PROVIDER PAYMENT - WORK PROGRAMME,COO,G4S REGIONAL MANAGEMENT UK & I LTD,2026565958,"15,600"
Department for Work and Pensions,Employment Programmes,03-Aug-12,EP PROVIDER PAYMENT - WORK PROGRAMME,COO,SEETEC BUSINESS TECHNOLOGY CENTRE LTD,2026257746,"15,600"
Department for Work and Pensions,Employment Programmes,10-Aug-12,ACCESS TO WORK,COO,CAPITA SYMONDS LTD,2026333559,"15,552"
Department for Work and Pensions,Corporate,06-Aug-12,TELEPHONE AND POSTAGE,COO,ROYAL MAIL GROUP PLC,2026261829,"15,534"
Department for Work and Pensions,Corporate,06-Aug-12,TELEPHONE AND POSTAGE,COO,ROYAL MAIL GROUP PLC,2026261829,"15,510"
Department for Work and Pensions,Corporate,06-Aug-12,TELEPHONE AND POSTAGE,COO,ROYAL MAIL GROUP PLC,2026261829,"15,491"
Department for Work and Pensions,Employment Programmes,14-Aug-12,EP PROVIDER PAYMENT - WORK PROGRAMME,COO,INGEUS UK LTD,2026345104,"15,480"
Department for Work and Pensions,Employment Programmes,03-Aug-12,EP PROVIDER PAYMENT - WORK PROGRAMME,COO,INGEUS UK LTD,2026256539,"15,480"
Department for Work and Pensions,Employment Programmes,13-Aug-12,EP PROVIDER PAYMENT - WORK PROGRAMME,COO,WORKING LINKS,2026341479,"15,480"
Department for Work and Pensions,Employment Programmes,31-Aug-12,EP PROVIDER PAYMENT - WORK PROGRAMME,COO,A4E LTD,2026568914,"15,456"
Department for Work and Pensions,Employment Programmes,23-Aug-12,EP PROVIDER PAYMENT - WORK PROGRAMME,COO,INGEUS UK LTD,2026490714,"15,400"
Department for Work and Pensions,Employment Programmes,21-Aug-12,EP PROVIDER PAYMENT - WORK PROGRAMME,COO,INGEUS UK LTD,2026424774,"15,400"
Department for Work and Pensions,Employment Programmes,28-Aug-12,EP PROVIDER PAYMENT - WORK PROGRAMME,COO,WORKING LINKS,2026504064,"15,400"
Department for Work and Pensions,Corporate,14-Aug-12,COMPUTER SERVICES,COO,ACCENTURE UK LTD,2026342740,"15,351"
Department for Work and Pensions,Corporate,06-Aug-12,TELEPHONE AND POSTAGE,COO,ROYAL MAIL GROUP PLC,2026261829,"15,343"
Department for Work and Pensions,Employment Programmes,08-Aug-12,EP PROVIDER PAYMENT - WORK PROGRAMME,COO,A4E LTD,2026273854,"15,300"
Department for Work and Pensions,Employment Programmes,20-Aug-12,EP PROVIDER PAYMENT - WORK PROGRAMME,COO,INGEUS UK LTD,2026419669,"15,300"
Department for Work and Pensions,Employment Programmes,06-Aug-12,EP PROVIDER PAYMENT - WORK PROGRAMME,COO,JHP GROUP LTD,2026261009,"15,288"
Department for Work and Pensions,Employment Programmes,17-Aug-12,EP PROVIDER PAYMENT - WORK PROGRAMME,COO,INGEUS UK LTD,2026415012,"15,265"
Department for Work and Pensions,Employment Programmes,22-Aug-12,EP PROVIDER PAYMENT - WORK PROGRAMME,COO,PROSPECTS SERVICES LTD,2026472022,"15,250"
Department for Work and Pensions,Employment Programmes,03-Aug-12,EP PROVIDER PAYMENT - WORK PROGRAMME,COO,INGEUS UK LTD,2026256539,"15,200"
Department for Work and Pensions,Employment Programmes,22-Aug-12,EP PROVIDER PAYMENT - WORK PROGRAMME,COO,A4E LTD,2026432758,"15,200"
Department for Work and Pensions,Employment Programmes,08-Aug-12,EP PROVIDER PAYMENT - WORK PROGRAMME,COO,INGEUS UK LTD,2026289833,"15,100"
Department for Work and Pensions,Employment Programmes,24-Aug-12,EP PROVIDER PAYMENT - WORK PROGRAMME,COO,INGEUS UK LTD,2026496185,"15,050"
Department for Work and Pensions,Corporate,08-Aug-12,COMPUTER SERVICES,COO,ACCENTURE UK LTD,2026273858,"15,020"
Department for Work and Pensions,Employment Programmes,03-Aug-12,EP PROVIDER PAYMENT - WORK PROGRAMME,COO,AVANTA ENTERPRISE LTD,2026254616,"15,000"
Department for Work and Pensions,Employment Programmes,13-Aug-12,EP PROVIDER PAYMENT - WORK PROGRAMME,COO,INGEUS UK LTD,2026339777,"15,000"
Department for Work and Pensions,Employment Programmes,03-Aug-12,EP PROVIDER PAYMENT - WORK PROGRAMME,COO,SEETEC BUSINESS TECHNOLOGY CENTRE LTD,2026257746,"15,000"
Department for Work and Pensions,Employment Programmes,29-Aug-12,EP PROVIDER PAYMENT - WORK PROGRAMME,COO,INGEUS UK LTD,2026525340,"14,900"
Department for Work and Pensions,Employment Programmes,03-Aug-12,EP PROVIDER PAYMENT - WORK PROGRAMME,COO,INGEUS UK LTD,2026256539,"14,835"
Department for Work and Pensions,Employment Programmes,16-Aug-12,EP PROVIDER PAYMENT - WORK PROGRAMME,COO,A4E LTD,2026408841,"14,820"
Department for Work and Pensions,Corporate,28-Aug-12,CONTRACTED OUT SERVICES,COO,CAPITA BUSINESS SERVICES LTD,2026499228,"14,816"
Department for Work and Pensions,Corporate,30-Aug-12,TEMPORARY (TEMP) STAFF COSTS,CIT,CAPITA RESOURCING LTD,2026564083,"14,753"
Department for Work and Pensions,Employment Programmes,03-Aug-12,EP PROVIDER PAYMENT - WORK PROGRAMME,COO,INGEUS UK LTD,2026256539,"14,750"
Department for Work and Pensions,Employment Programmes,10-Aug-12,EP PROVIDER PAYMENT - WORK PROGRAMME,COO,INGEUS UK LTD,2026335541,"14,700"
Department for Work and Pensions,Employment Programmes,29-Aug-12,EP PROVIDER PAYMENT - WORK PROGRAMME,COO,G4S REGIONAL MANAGEMENT UK & I LTD,2026523374,"14,700"
Department for Work and Pensions,Corporate,15-Aug-12,ACCOMMODATION,COO,TELEREAL TRILLIUM,2026404258,"14,633"
Department for Work and Pensions,Employment Programmes,10-Aug-12,EP PROVIDER PAYMENT - WORK PROGRAMME,COO,INGEUS UK LTD,2026335541,"14,620"
Department for Work and Pensions,Employment Programmes,31-Aug-12,EP PROVIDER PAYMENT - WORK PROGRAMME,COO,MAXIMUS EMPLOYMENT UK LTD,2026570284,"14,620"
Department for Work and Pensions,Employment Programmes,15-Aug-12,EP PROVIDER PAYMENT - WORK PROGRAMME,COO,INGEUS UK LTD,2026370133,"14,600"
Department for Work and Pensions,Corporate,06-Aug-12,TELEPHONE AND POSTAGE,COO,ROYAL MAIL GROUP PLC,2026261829,"14,513"
Department for Work and Pensions,Employment Programmes,10-Aug-12,EP PROVIDER PAYMENT - WORK PROGRAMME,COO,A4E LTD,2026333319,"14,500"
Department for Work and Pensions,Employment Programmes,03-Aug-12,EP PROVIDER PAYMENT - WORK PROGRAMME,COO,EOS WORKS LTD,2026256329,"14,500"
Department for Work and Pensions,Employment Programmes,17-Aug-12,EP PROVIDER PAYMENT - WORK PROGRAMME,COO,NEWCASTLE COLLEGE GROUP,2026415647,"14,500"
Department for Work and Pensions,Employment Programmes,10-Aug-12,EP PROVIDER PAYMENT - WORK PROGRAMME,COO,SEETEC BUSINESS TECHNOLOGY CENTRE LTD,2026336703,"14,500"
Department for Work and Pensions,Corporate,28-Aug-12,EMPLOYMENT ZONES,COO,JHP GROUP LTD,2026501780,"14,490"
Department for Work and Pensions,Employment Programmes,24-Aug-12,EP PROVIDER PAYMENT - WORK PROGRAMME,COO,INGEUS UK LTD,2026496185,"14,400"
Department for Work and Pensions,Employment Programmes,03-Aug-12,EP PROVIDER PAYMENT - WORK PROGRAMME,COO,G4S REGIONAL MANAGEMENT UK & I LTD,2026256437,"14,400"
Department for Work and Pensions,Employment Programmes,06-Aug-12,EP PROVIDER PAYMENT - WORK PROGRAMME,COO,A4E LTD,2026259127,"14,400"
Department for Work and Pensions,Employment Programmes,30-Aug-12,EP PROVIDER PAYMENT - WORK PROGRAMME,COO,INGEUS UK LTD,2026566082,"14,400"
Department for Work and Pensions,Employment Programmes,23-Aug-12,EP PROVIDER PAYMENT - WORK PROGRAMME,COO,REHAB JOBFIT,2026492234,"14,400"
Department for Work and Pensions,Employment Programmes,20-Aug-12,EP PROVIDER PAYMENT - WORK PROGRAMME,COO,WORKING LINKS,2026421212,"14,400"
Department for Work and Pensions,Employment Programmes,03-Aug-12,EP PROVIDER PAYMENT - WORK PROGRAMME,COO,WORKING LINKS,2026257975,"14,400"
Department for Work and Pensions,Employment Programmes,07-Aug-12,EP PROVIDER PAYMENT - WORK PROGRAMME,COO,INGEUS UK LTD,2026265693,"14,300"
Department for Work and Pensions,Employment Programmes,23-Aug-12,EP PROVIDER PAYMENT - WORK PROGRAMME,COO,INGEUS UK LTD,2026490714,"14,300"
Department for Work and Pensions,Employment Programmes,17-Aug-12,EP PROVIDER PAYMENT - WORK PROGRAMME,COO,A4E LTD,2026413041,"14,300"
Department for Work and Pensions,Employment Programmes,08-Aug-12,EP PROVIDER PAYMENT - WORK PROGRAMME,COO,WORKING LINKS,2026325078,"14,300"
Department for Work and Pensions,Employment Programmes,02-Aug-12,EP PROVIDER PAYMENT - NON-WORK PROGRAMME,COO,SEETEC BUSINESS TECHNOLOGY CENTRE LTD,2026252607,"14,298"
Department for Work and Pensions,Employment Programmes,30-Aug-12,EP PROVIDER PAYMENT - WORK PROGRAMME,COO,EOS WORKS LTD,2026565837,"14,280"
Department for Work and Pensions,Employment Programmes,06-Aug-12,EP PROVIDER PAYMENT - WORK PROGRAMME,COO,INTERSERVE WORKING FUTURES,2026260818,"14,280"
Department for Work and Pensions,Employment Programmes,23-Aug-12,EP PROVIDER PAYMENT - WORK PROGRAMME,COO,CAREERS DEVELOPMENT GROUP,2026488875,"14,250"
Department for Work and Pensions,Employment Programmes,15-Aug-12,EP PROVIDER PAYMENT - WORK PROGRAMME,COO,A4E LTD,2026353845,"14,200"
Department for Work and Pensions,Corporate,14-Aug-12,APPS DEV,COO,HP ENTERPRISE SERVICES UK LTD,2026345033,"14,199"
Department for Work and Pensions,Employment Programmes,21-Aug-12,ACCESS TO WORK,COO,CAPITA SYMONDS LTD,2026422907,"14,169"
Department for Work and Pensions,Corporate,06-Aug-12,TELEPHONE AND POSTAGE,COO,ROYAL MAIL GROUP PLC,2026261829,"14,114"
Department for Work and Pensions,Employment Programmes,28-Aug-12,EP PROVIDER PAYMENT - WORK PROGRAMME,COO,INGEUS UK LTD,2026501368,"14,100"
Department for Work and Pensions,Employment Programmes,03-Aug-12,EP PROVIDER PAYMENT - WORK PROGRAMME,COO,AVANTA ENTERPRISE LTD,2026254616,"14,100"
Department for Work and Pensions,Employment Programmes,03-Aug-12,EP PROVIDER PAYMENT - WORK PROGRAMME,COO,EOS WORKS LTD,2026256329,"14,100"
Department for Work and Pensions,Employment Programmes,03-Aug-12,EP PROVIDER PAYMENT - WORK PROGRAMME,COO,PERTEMPS,2026257389,"14,100"
Department for Work and Pensions,Employment Programmes,30-Aug-12,EP PROVIDER PAYMENT - WORK PROGRAMME,COO,SEETEC BUSINESS TECHNOLOGY CENTRE LTD,2026567524,"14,100"
Department for Work and Pensions,Employment Programmes,03-Aug-12,EP PROVIDER PAYMENT - WORK PROGRAMME,COO,NEWCASTLE COLLEGE GROUP,2026257261,"14,040"
Department for Work and Pensions,Employment Programmes,02-Aug-12,EP PROVIDER PAYMENT - WORK PROGRAMME,COO,INTERSERVE WORKING FUTURES,2026250591,"14,000"
Department for Work and Pensions,Employment Programmes,24-Aug-12,EP PROVIDER PAYMENT - WORK PROGRAMME,COO,INGEUS UK LTD,2026496185,"14,000"
Department for Work and Pensions,Employment Programmes,31-Aug-12,EP PROVIDER PAYMENT - WORK PROGRAMME,COO,INGEUS UK LTD,2026569748,"14,000"
Department for Work and Pensions,Employment Programmes,21-Aug-12,EP PROVIDER PAYMENT - NON-WORK PROGRAMME,COO,SEETEC BUSINESS TECHNOLOGY CENTRE LTD,2026426980,"13,992"
Department for Work and Pensions,Employment Programmes,10-Aug-12,EP PROVIDER PAYMENT - NON-WORK PROGRAMME,COO,SEETEC BUSINESS TECHNOLOGY CENTRE LTD,2026336703,"13,911"
Department for Work and Pensions,Employment Programmes,03-Aug-12,EP PROVIDER PAYMENT - WORK PROGRAMME,COO,INGEUS UK LTD,2026256539,"13,900"
Department for Work and Pensions,Employment Programmes,20-Aug-12,EP PROVIDER PAYMENT - WORK PROGRAMME,COO,INGEUS UK LTD,2026419669,"13,900"
Department for Work and Pensions,Employment Programmes,03-Aug-12,EP PROVIDER PAYMENT - WORK PROGRAMME,COO,SEETEC BUSINESS TECHNOLOGY CENTRE LTD,2026257746,"13,900"
Department for Work and Pensions,Corporate,06-Aug-12,TELEPHONE AND POSTAGE,COO,ROYAL MAIL GROUP PLC,2026261829,"13,864"
Department for Work and Pensions,Employment Programmes,03-Aug-12,EP PROVIDER PAYMENT - NON-WORK PROGRAMME,COO,JHP GROUP LTD,2026256748,"13,828"
Department for Work and Pensions,Employment Programmes,02-Aug-12,EP PROVIDER PAYMENT - WORK PROGRAMME,COO,G4S REGIONAL MANAGEMENT UK & I LTD,2026250419,"13,800"
Department for Work and Pensions,Employment Programmes,14-Aug-12,EP PROVIDER PAYMENT - WORK PROGRAMME,COO,INGEUS UK LTD,2026345104,"13,760"
Department for Work and Pensions,Employment Programmes,08-Aug-12,EP PROVIDER PAYMENT - WORK PROGRAMME,COO,REHAB JOBFIT,2026314593,"13,760"
Department for Work and Pensions,Employment Programmes,02-Aug-12,EP PROVIDER PAYMENT - WORK PROGRAMME,COO,ESG HOLDINGS LIMITED,2026250258,"13,750"
Department for Work and Pensions,Employment Programmes,14-Aug-12,EP PROVIDER PAYMENT - WORK PROGRAMME,COO,INGEUS UK LTD,2026345104,"13,750"
Department for Work and Pensions,Corporate,31-Aug-12,ACCOMMODATION,COO,TELEREAL TRILLIUM,2026570846,"13,740"
Department for Work and Pensions,Employment Programmes,03-Aug-12,EP PROVIDER PAYMENT - WORK PROGRAMME,COO,ESG HOLDINGS LIMITED,2026256331,"13,700"
Department for Work and Pensions,Employment Programmes,08-Aug-12,EP PROVIDER PAYMENT - WORK PROGRAMME,COO,CAREERS DEVELOPMENT GROUP,2026279130,"13,700"
Department for Work and Pensions,Employment Programmes,10-Aug-12,EP PROVIDER PAYMENT - WORK PROGRAMME,COO,SEETEC BUSINESS TECHNOLOGY CENTRE LTD,2026336703,"13,700"
Department for Work and Pensions,Employment Programmes,03-Aug-12,EP PROVIDER PAYMENT - WORK PROGRAMME,COO,ESG HOLDINGS LIMITED,2026256331,"13,680"
Department for Work and Pensions,Employment Programmes,29-Aug-12,EP PROVIDER PAYMENT - WORK PROGRAMME,COO,CAREERS DEVELOPMENT GROUP,2026514826,"13,680"
Department for Work and Pensions,Corporate,08-Aug-12,TEMPORARY (TEMP) STAFF COSTS,CIT,CAPITA RESOURCING LTD,2026279126,"13,659"
Department for Work and Pensions,Corporate,14-Aug-12,COMPUTER SERVICES,COO,HP ENTERPRISE SERVICES UK LTD,2026345033,"13,617"
Department for Work and Pensions,Corporate,20-Aug-12,APPS DEV,COO,HP ENTERPRISE SERVICES UK LTD,2026419634,"13,603"
Department for Work and Pensions,Employment Programmes,31-Aug-12,EP PROVIDER PAYMENT - WORK PROGRAMME,COO,INTERSERVE WORKING FUTURES,2026569750,"13,600"
Department for Work and Pensions,Employment Programmes,24-Aug-12,EP PROVIDER PAYMENT - WORK PROGRAMME,COO,INGEUS UK LTD,2026496185,"13,545"
Department for Work and Pensions,Employment Programmes,17-Aug-12,EP PROVIDER PAYMENT - WORK PROGRAMME,COO,INGEUS UK LTD,2026415012,"13,545"
Department for Work and Pensions,Employment Programmes,28-Aug-12,EP PROVIDER PAYMENT - WORK PROGRAMME,COO,INGEUS UK LTD,2026501368,"13,500"
Department for Work and Pensions,Employment Programmes,07-Aug-12,EP PROVIDER PAYMENT - WORK PROGRAMME,COO,G4S REGIONAL MANAGEMENT UK & I LTD,2026265498,"13,500"
Department for Work and Pensions,Employment Programmes,17-Aug-12,EP PROVIDER PAYMENT - WORK PROGRAMME,COO,INGEUS UK LTD,2026415012,"13,500"
Department for Work and Pensions,Employment Programmes,29-Aug-12,EP PROVIDER PAYMENT - WORK PROGRAMME,COO,INGEUS UK LTD,2026525340,"13,500"
Department for Work and Pensions,Employment Programmes,29-Aug-12,EP PROVIDER PAYMENT - WORK PROGRAMME,COO,SEETEC BUSINESS TECHNOLOGY CENTRE LTD,2026557188,"13,500"
Department for Work and Pensions,Housing Benefits,14-Aug-12,Housing Benefit Admin,COO,RUTLAND COUNTY COUNCIL,2026349182,"13,473"
Department for Work and Pensions,Corporate,15-Aug-12,PROFESSIONAL FEES,COO,THE BIG WORD INTERPRETING SERVICES LTD,2026404260,"13,472"
Department for Work and Pensions,Employment Programmes,30-Aug-12,EP PROVIDER PAYMENT - WORK PROGRAMME,COO,REHAB JOBFIT,2026567247,"13,440"
Department for Work and Pensions,Employment Programmes,23-Aug-12,EP PROVIDER PAYMENT - WORK PROGRAMME,COO,REHAB JOBFIT,2026492234,"13,440"
Department for Work and Pensions,Employment Programmes,06-Aug-12,EP PROVIDER PAYMENT - WORK PROGRAMME,COO,REHAB JOBFIT,2026261818,"13,440"
Department for Work and Pensions,Employment Programmes,06-Aug-12,EP PROVIDER PAYMENT - WORK PROGRAMME,COO,SEETEC BUSINESS TECHNOLOGY CENTRE LTD,2026262043,"13,440"
Department for Work and Pensions,Corporate,10-Aug-12,AOS CONTRACTED OUT SERVICES,COO,XEROX UK LTD,2026336902,"13,413"
Department for Work and Pensions,Employment Programmes,06-Aug-12,EP PROVIDER PAYMENT - WORK PROGRAMME,COO,INGEUS UK LTD,2026260816,"13,400"
Department for Work and Pensions,Employment Programmes,22-Aug-12,EP PROVIDER PAYMENT - WORK PROGRAMME,COO,A4E LTD,2026432758,"13,400"
Department for Work and Pensions,Employment Programmes,10-Aug-12,EP PROVIDER PAYMENT - WORK PROGRAMME,COO,INGEUS UK LTD,2026335541,"13,330"
Department for Work and Pensions,Employment Programmes,15-Aug-12,EP PROVIDER PAYMENT - WORK PROGRAMME,COO,CAREERS DEVELOPMENT GROUP,2026359129,"13,300"
Department for Work and Pensions,Employment Programmes,02-Aug-12,EP PROVIDER PAYMENT - WORK PROGRAMME,COO,INGEUS UK LTD,2026250586,"13,300"
Department for Work and Pensions,Employment Programmes,03-Aug-12,EP PROVIDER PAYMENT - WORK PROGRAMME,COO,INTERSERVE WORKING FUTURES,2026256540,"13,260"
Department for Work and Pensions,Employment Programmes,06-Aug-12,EP PROVIDER PAYMENT - WORK PROGRAMME,COO,EOS WORKS LTD,2026260603,"13,260"
Department for Work and Pensions,Employment Programmes,03-Aug-12,EP PROVIDER PAYMENT - WORK PROGRAMME,COO,A4E LTD,2026254583,"13,248"
Department for Work and Pensions,Employment Programmes,16-Aug-12,EP PROVIDER PAYMENT - WORK PROGRAMME,COO,A4E LTD,2026408841,"13,248"
Department for Work and Pensions,Employment Programmes,20-Aug-12,EP PROVIDER PAYMENT - NON-WORK PROGRAMME,COO,INGEUS UK LTD,2026419669,"13,225"
Department for Work and Pensions,Corporate,02-Aug-12,PRINTING STATIONERY IT CONSUMABLES,COO,XEROX UK LTD 3W,2026252949,"13,214"
Department for Work and Pensions,Employment Programmes,29-Aug-12,EP PROVIDER PAYMENT - WORK PROGRAMME,COO,MAXIMUS EMPLOYMENT UK LTD,2026543651,"13,200"
Department for Work and Pensions,Employment Programmes,23-Aug-12,EP PROVIDER PAYMENT - WORK PROGRAMME,COO,G4S REGIONAL MANAGEMENT UK & I LTD,2026490576,"13,200"
Department for Work and Pensions,Employment Programmes,20-Aug-12,EP PROVIDER PAYMENT - WORK PROGRAMME,COO,INGEUS UK LTD,2026419669,"13,200"
Department for Work and Pensions,Employment Programmes,16-Aug-12,EP PROVIDER PAYMENT - WORK PROGRAMME,COO,INGEUS UK LTD,2026409824,"13,200"
Department for Work and Pensions,Employment Programmes,09-Aug-12,EP PROVIDER PAYMENT - WORK PROGRAMME,COO,INGEUS UK LTD,2026329725,"13,200"
Department for Work and Pensions,Employment Programmes,08-Aug-12,EP PROVIDER PAYMENT - WORK PROGRAMME,COO,G4S REGIONAL MANAGEMENT UK & I LTD,2026287904,"13,200"
Department for Work and Pensions,Employment Programmes,09-Aug-12,EP PROVIDER PAYMENT - WORK PROGRAMME,COO,INGEUS UK LTD,2026329725,"13,200"
Department for Work and Pensions,Employment Programmes,03-Aug-12,EP PROVIDER PAYMENT - WORK PROGRAMME,COO,AVANTA ENTERPRISE LTD,2026254616,"13,200"
Department for Work and Pensions,Employment Programmes,03-Aug-12,EP PROVIDER PAYMENT - WORK PROGRAMME,COO,INGEUS UK LTD,2026256539,"13,200"
Department for Work and Pensions,Employment Programmes,06-Aug-12,EP PROVIDER PAYMENT - WORK PROGRAMME,COO,SERCO LTD,2026262044,"13,200"
Department for Work and Pensions,Employment Programmes,13-Aug-12,EP PROVIDER PAYMENT - WORK PROGRAMME,COO,WORKING LINKS,2026341479,"13,200"
Department for Work and Pensions,Employment Programmes,20-Aug-12,EP PROVIDER PAYMENT - WORK PROGRAMME,COO,WORKING LINKS,2026421212,"13,200"
Department for Work and Pensions,Employment Programmes,31-Aug-12,EP PROVIDER PAYMENT - WORK PROGRAMME,COO,MAXIMUS EMPLOYMENT UK LTD,2026570284,"13,115"
Department for Work and Pensions,Employment Programmes,13-Aug-12,EP PROVIDER PAYMENT - WORK PROGRAMME,COO,NEWCASTLE COLLEGE GROUP,2026340638,"13,104"
Department for Work and Pensions,Employment Programmes,13-Aug-12,EP PROVIDER PAYMENT - WORK PROGRAMME,COO,NEWCASTLE COLLEGE GROUP,2026340638,"13,104"
Department for Work and Pensions,Employment Programmes,03-Aug-12,EP PROVIDER PAYMENT - WORK PROGRAMME,COO,NEWCASTLE COLLEGE GROUP,2026257261,"13,100"
Department for Work and Pensions,Employment Programmes,20-Aug-12,EP PROVIDER PAYMENT - WORK PROGRAMME,COO,WORKING LINKS,2026421212,"13,100"
Department for Work and Pensions,Corporate,08-Aug-12,FLEXIBLE SUPPORT FUND,COO,ARCADIA GROUP LTD,2026273880,"13,009"
Department for Work and Pensions,Employment Programmes,03-Aug-12,EP PROVIDER PAYMENT - WORK PROGRAMME,COO,INGEUS UK LTD,2026256539,"13,000"
Department for Work and Pensions,Employment Programmes,22-Aug-12,EP PROVIDER PAYMENT - WORK PROGRAMME,COO,INGEUS UK LTD,2026449246,"13,000"
Department for Work and Pensions,Employment Programmes,15-Aug-12,EP PROVIDER PAYMENT - WORK PROGRAMME,COO,INGEUS UK LTD,2026370133,"13,000"
Department for Work and Pensions,Employment Programmes,20-Aug-12,EP PROVIDER PAYMENT - WORK PROGRAMME,COO,WORKING LINKS,2026421212,"13,000"
Department for Work and Pensions,Employment Programmes,16-Aug-12,EP PROVIDER PAYMENT - WORK PROGRAMME,COO,JHP GROUP LTD,2026410082,"12,936"
Department for Work and Pensions,Corporate,23-Aug-12,OTHER OPERATING LEASES,COO,INCHCAPE FLEET SOLUTIONS LTD,2026490712,"12,925"
Department for Work and Pensions,Employment Programmes,24-Aug-12,EP PROVIDER PAYMENT - NON-WORK PROGRAMME,COO,SEETEC BUSINESS TECHNOLOGY CENTRE LTD,2026497276,"12,915"
Department for Work and Pensions,Corporate,06-Aug-12,TELEPHONE AND POSTAGE,COO,ROYAL MAIL GROUP PLC,2026261829,"12,911"
Department for Work and Pensions,Employment Programmes,21-Aug-12,EP PROVIDER PAYMENT - WORK PROGRAMME,COO,INGEUS UK LTD,2026424774,"12,900"
Department for Work and Pensions,Employment Programmes,06-Aug-12,EP PROVIDER PAYMENT - WORK PROGRAMME,COO,MAXIMUS EMPLOYMENT UK LTD,2026261460,"12,900"
Department for Work and Pensions,Employment Programmes,03-Aug-12,EP PROVIDER PAYMENT - WORK PROGRAMME,COO,INGEUS UK LTD,2026256539,"12,900"
Department for Work and Pensions,Employment Programmes,08-Aug-12,EP PROVIDER PAYMENT - WORK PROGRAMME,COO,A4E LTD,2026273854,"12,900"
Department for Work and Pensions,Employment Programmes,24-Aug-12,EP PROVIDER PAYMENT - WORK PROGRAMME,COO,INGEUS UK LTD,2026496185,"12,900"
Department for Work and Pensions,Employment Programmes,16-Aug-12,EP PROVIDER PAYMENT - WORK PROGRAMME,COO,SEETEC BUSINESS TECHNOLOGY CENTRE LTD,2026411442,"12,900"
Department for Work and Pensions,Corporate,15-Aug-12,PROFESSIONAL FEES,COO,THE BIG WORD INTERPRETING SERVICES LTD,2026404260,"12,854"
Department for Work and Pensions,Corporate,10-Aug-12,PRINTING STATIONERY IT CONSUMABLES,COO,XEROX UK LTD 3W,2026336903,"12,848"
Department for Work and Pensions,Employment Programmes,24-Aug-12,EP PROVIDER PAYMENT - WORK PROGRAMME,COO,INGEUS UK LTD,2026496185,"12,800"
Department for Work and Pensions,Employment Programmes,31-Aug-12,EP PROVIDER PAYMENT - NON-WORK PROGRAMME,COO,INTERSERVE WORKING FUTURES,2026569750,"12,774"
Department for Work and Pensions,Employment Programmes,14-Aug-12,EP PROVIDER PAYMENT - WORK PROGRAMME,COO,INGEUS UK LTD,2026345104,"12,750"
Department for Work and Pensions,Corporate,06-Aug-12,TELEPHONE AND POSTAGE,COO,ROYAL MAIL GROUP PLC,2026261829,"12,736"
Department for Work and Pensions,Employment Programmes,10-Aug-12,EP PROVIDER PAYMENT - WORK PROGRAMME,COO,WORKING LINKS,2026336901,"12,700"
Department for Work and Pensions,Employment Programmes,10-Aug-12,EP PROVIDER PAYMENT - WORK PROGRAMME,COO,INGEUS UK LTD,2026335541,"12,685"
Department for Work and Pensions,Employment Programmes,03-Aug-12,EP PROVIDER PAYMENT - WORK PROGRAMME,COO,INGEUS UK LTD,2026256539,"12,685"
Department for Work and Pensions,Employment Programmes,28-Aug-12,EP PROVIDER PAYMENT - NON-WORK PROGRAMME,COO,INGEUS UK LTD,2026501368,"12,650"
Department for Work and Pensions,Employment Programmes,22-Aug-12,EP PROVIDER PAYMENT - NON-WORK PROGRAMME,COO,SHAW TRUST,2026481487,"12,605"
Department for Work and Pensions,Employment Programmes,24-Aug-12,EP PROVIDER PAYMENT - WORK PROGRAMME,COO,INGEUS UK LTD,2026496185,"12,600"
Department for Work and Pensions,Employment Programmes,10-Aug-12,EP PROVIDER PAYMENT - WORK PROGRAMME,COO,G4S REGIONAL MANAGEMENT UK & I LTD,2026335441,"12,600"
Department for Work and Pensions,Employment Programmes,10-Aug-12,EP PROVIDER PAYMENT - WORK PROGRAMME,COO,A4E LTD,2026333319,"12,600"
Department for Work and Pensions,Employment Programmes,03-Aug-12,EP PROVIDER PAYMENT - WORK PROGRAMME,COO,WORKING LINKS,2026257975,"12,600"
Department for Work and Pensions,Employment Programmes,24-Aug-12,EP PROVIDER PAYMENT - WORK PROGRAMME,COO,WORKING LINKS,2026497449,"12,600"
Department for Work and Pensions,Corporate,08-Aug-12,COMPUTER SERVICES,COO,HP ENTERPRISE SERVICES UK LTD,2026289440,"12,580"
Department for Work and Pensions,Employment Programmes,20-Aug-12,EP PROVIDER PAYMENT - WORK PROGRAMME,COO,INGEUS UK LTD,2026419669,"12,562"
Department for Work and Pensions,Employment Programmes,03-Aug-12,EP PROVIDER PAYMENT - WORK PROGRAMME,COO,AVANTA ENTERPRISE LTD,2026254616,"12,540"
Department for Work and Pensions,Employment Programmes,06-Aug-12,EP PROVIDER PAYMENT - WORK PROGRAMME,COO,A4E LTD,2026259127,"12,540"
Department for Work and Pensions,Employment Programmes,17-Aug-12,EP PROVIDER PAYMENT - WORK PROGRAMME,COO,CAREERS DEVELOPMENT GROUP,2026413311,"12,540"
Department for Work and Pensions,Employment Programmes,21-Aug-12,ACCESS TO WORK,COO,CAPITA SYMONDS LTD,2026422907,"12,485"
Department for Work and Pensions,Employment Programmes,29-Aug-12,EP PROVIDER PAYMENT - WORK PROGRAMME,COO,REHAB JOBFIT,2026550247,"12,480"
Department for Work and Pensions,Employment Programmes,17-Aug-12,EP PROVIDER PAYMENT - WORK PROGRAMME,COO,SEETEC BUSINESS TECHNOLOGY CENTRE LTD,2026416052,"12,480"
Department for Work and Pensions,Employment Programmes,30-Aug-12,EP PROVIDER PAYMENT - WORK PROGRAMME,COO,MAXIMUS EMPLOYMENT UK LTD,2026566833,"12,470"
Department for Work and Pensions,Employment Programmes,16-Aug-12,EP PROVIDER PAYMENT - NON-WORK PROGRAMME,COO,SEETEC BUSINESS TECHNOLOGY CENTRE LTD,2026411442,"12,453"
Department for Work and Pensions,Employment Programmes,30-Aug-12,EP PROVIDER PAYMENT - NON-WORK PROGRAMME,COO,SEETEC BUSINESS TECHNOLOGY CENTRE LTD,2026567524,"12,453"
Department for Work and Pensions,Employment Programmes,14-Aug-12,EP PROVIDER PAYMENT - WORK PROGRAMME,COO,INGEUS UK LTD,2026345104,"12,410"
Department for Work and Pensions,Employment Programmes,22-Aug-12,EP PROVIDER PAYMENT - WORK PROGRAMME,COO,PROSPECTS SERVICES LTD,2026472022,"12,410"
Department for Work and Pensions,Employment Programmes,09-Aug-12,EP PROVIDER PAYMENT - WORK PROGRAMME,COO,INGEUS UK LTD,2026329725,"12,400"
Department for Work and Pensions,Employment Programmes,17-Aug-12,EP PROVIDER PAYMENT - WORK PROGRAMME,COO,A4E LTD,2026413041,"12,400"
Department for Work and Pensions,Employment Programmes,24-Aug-12,EP PROVIDER PAYMENT - WORK PROGRAMME,COO,JHP GROUP LTD,2026496352,"12,400"
Department for Work and Pensions,Employment Programmes,30-Aug-12,EP PROVIDER PAYMENT - WORK PROGRAMME,COO,INGEUS UK LTD,2026566082,"12,400"
Department for Work and Pensions,Employment Programmes,10-Aug-12,EP PROVIDER PAYMENT - WORK PROGRAMME,COO,INGEUS UK LTD,2026335541,"12,400"
Department for Work and Pensions,Employment Programmes,03-Aug-12,EP PROVIDER PAYMENT - WORK PROGRAMME,COO,WORKING LINKS,2026257975,"12,400"
Department for Work and Pensions,Employment Programmes,13-Aug-12,EP PROVIDER PAYMENT - NON-WORK PROGRAMME,COO,INTERSERVE WORKING FUTURES,2026339780,"12,375"
Department for Work and Pensions,Corporate,23-Aug-12,OTHER EXPENDITURE,CIT,CAPITA RESOURCING LTD,2026488869,"12,318"
Department for Work and Pensions,Employment Programmes,03-Aug-12,EP PROVIDER PAYMENT - WORK PROGRAMME,COO,A4E LTD,2026254583,"12,300"
Department for Work and Pensions,Employment Programmes,03-Aug-12,EP PROVIDER PAYMENT - WORK PROGRAMME,COO,SEETEC BUSINESS TECHNOLOGY CENTRE LTD,2026257746,"12,300"
Department for Work and Pensions,Employment Programmes,10-Aug-12,EP PROVIDER PAYMENT - WORK PROGRAMME,COO,SEETEC BUSINESS TECHNOLOGY CENTRE LTD,2026336703,"12,300"
Department for Work and Pensions,Employment Programmes,17-Aug-12,EP PROVIDER PAYMENT - WORK PROGRAMME,COO,SEETEC BUSINESS TECHNOLOGY CENTRE LTD,2026416052,"12,300"
Department for Work and Pensions,Employment Programmes,02-Aug-12,EP PROVIDER PAYMENT - WORK PROGRAMME,COO,JHP GROUP LTD,2026250936,"12,255"
Department for Work and Pensions,Employment Programmes,24-Aug-12,EP PROVIDER PAYMENT - WORK PROGRAMME,COO,INGEUS UK LTD,2026496185,"12,255"
Department for Work and Pensions,Employment Programmes,08-Aug-12,EP PROVIDER PAYMENT - WORK PROGRAMME,COO,G4S REGIONAL MANAGEMENT UK & I LTD,2026287904,"12,250"
Department for Work and Pensions,Corporate,08-Aug-12,APPS DEV,COO,HP ENTERPRISE SERVICES UK LTD,2026289440,"12,236"
Department for Work and Pensions,Corporate,08-Aug-12,OTHER EXPENDITURE,CIT,CAPITA RESOURCING LTD,2026279126,"12,223"
Department for Work and Pensions,Employment Programmes,03-Aug-12,EP PROVIDER PAYMENT - WORK PROGRAMME,COO,MAXIMUS EMPLOYMENT UK LTD,2026257162,"12,210"
Department for Work and Pensions,Employment Programmes,02-Aug-12,EP PROVIDER PAYMENT - WORK PROGRAMME,COO,MAXIMUS EMPLOYMENT UK LTD,2026251659,"12,210"
Department for Work and Pensions,Employment Programmes,14-Aug-12,EP PROVIDER PAYMENT - WORK PROGRAMME,COO,INGEUS UK LTD,2026345104,"12,200"
Department for Work and Pensions,Employment Programmes,28-Aug-12,EP PROVIDER PAYMENT - WORK PROGRAMME,COO,A4E LTD,2026498809,"12,200"
Department for Work and Pensions,Employment Programmes,03-Aug-12,EP PROVIDER PAYMENT - WORK PROGRAMME,COO,AVANTA ENTERPRISE LTD,2026254616,"12,200"
Department for Work and Pensions,Employment Programmes,13-Aug-12,ACCESS TO WORK,COO,CAPITA SYMONDS LTD,2026338462,"12,179"
Department for Work and Pensions,Employment Programmes,03-Aug-12,EP PROVIDER PAYMENT - WORK PROGRAMME,COO,NEWCASTLE COLLEGE GROUP,2026257261,"12,168"
Department for Work and Pensions,Corporate,15-Aug-12,PROFESSIONAL FEES,COO,THE BIG WORD INTERPRETING SERVICES LTD,2026404260,"12,154"
Department for Work and Pensions,Employment Programmes,06-Aug-12,EP PROVIDER PAYMENT - WORK PROGRAMME,COO,A4E LTD,2026259127,"12,144"
Department for Work and Pensions,Employment Programmes,06-Aug-12,EP PROVIDER PAYMENT - WORK PROGRAMME,COO,A4E LTD,2026259127,"12,144"
Department for Work and Pensions,Employment Programmes,29-Aug-12,EP PROVIDER PAYMENT - WORK PROGRAMME,COO,A4E LTD,2026509519,"12,144"
Department for Work and Pensions,Employment Programmes,13-Aug-12,ACCESS TO WORK,COO,CAPITA SYMONDS LTD,2026338462,"12,119"
Department for Work and Pensions,Employment Programmes,02-Aug-12,EP PROVIDER PAYMENT - WORK PROGRAMME,COO,INGEUS UK LTD,2026250586,"12,100"
Department for Work and Pensions,Employment Programmes,23-Aug-12,EP PROVIDER PAYMENT - WORK PROGRAMME,COO,REED IN PARTNERSHIP LTD,2026492231,"12,040"
Department for Work and Pensions,Corporate,31-Aug-12,ACCOMMODATION,COO,TELEREAL TRILLIUM,2026570846,"12,023"
Department for Work and Pensions,Employment Programmes,24-Aug-12,EP PROVIDER PAYMENT - WORK PROGRAMME,COO,INGEUS UK LTD,2026496185,"12,000"
Department for Work and Pensions,Employment Programmes,22-Aug-12,EP PROVIDER PAYMENT - WORK PROGRAMME,COO,INTERSERVE WORKING FUTURES,2026449252,"12,000"
Department for Work and Pensions,Employment Programmes,03-Aug-12,EP PROVIDER PAYMENT - WORK PROGRAMME,COO,G4S REGIONAL MANAGEMENT UK & I LTD,2026256437,"12,000"
Department for Work and Pensions,Employment Programmes,03-Aug-12,EP PROVIDER PAYMENT - WORK PROGRAMME,COO,MAXIMUS EMPLOYMENT UK LTD,2026257162,"12,000"
Department for Work and Pensions,Employment Programmes,24-Aug-12,EP PROVIDER PAYMENT - WORK PROGRAMME,COO,INGEUS UK LTD,2026496185,"12,000"
Department for Work and Pensions,Employment Programmes,29-Aug-12,EP PROVIDER PAYMENT - WORK PROGRAMME,COO,INGEUS UK LTD,2026525340,"12,000"
Department for Work and Pensions,Employment Programmes,07-Aug-12,EP PROVIDER PAYMENT - WORK PROGRAMME,COO,INGEUS UK LTD,2026265693,"12,000"
Department for Work and Pensions,Employment Programmes,24-Aug-12,EP PROVIDER PAYMENT - WORK PROGRAMME,COO,A4E LTD,2026494464,"12,000"
Department for Work and Pensions,Employment Programmes,14-Aug-12,EP PROVIDER PAYMENT - WORK PROGRAMME,COO,G4S REGIONAL MANAGEMENT UK & I LTD,2026344907,"12,000"
Department for Work and Pensions,Employment Programmes,31-Aug-12,EP PROVIDER PAYMENT - WORK PROGRAMME,COO,WORKING LINKS,2026570936,"12,000"
Department for Work and Pensions,Employment Programmes,13-Aug-12,EP PROVIDER PAYMENT - WORK PROGRAMME,COO,WORKING LINKS,2026341479,"12,000"
Department for Work and Pensions,Employment Programmes,24-Aug-12,EP PROVIDER PAYMENT - WORK PROGRAMME,COO,WORKING LINKS,2026497449,"12,000"
Department for Work and Pensions,Employment Programmes,06-Aug-12,EP PROVIDER PAYMENT - WORK PROGRAMME,COO,SEETEC BUSINESS TECHNOLOGY CENTRE LTD,2026262043,"12,000"
Department for Work and Pensions,Corporate,15-Aug-12,ACCOMMODATION,COO,TELEREAL TRILLIUM,2026404258,"11,989"
Department for Work and Pensions,Employment Programmes,23-Aug-12,EP PROVIDER PAYMENT - NON-WORK PROGRAMME,COO,INGEUS UK LTD,2026490714,"11,935"
Department for Work and Pensions,Employment Programmes,08-Aug-12,EP PROVIDER PAYMENT - WORK PROGRAMME,COO,REHAB JOBFIT,2026314593,"11,900"
Department for Work and Pensions,Employment Programmes,06-Aug-12,EP PROVIDER PAYMENT - WORK PROGRAMME,COO,WORKING LINKS,2026262241,"11,900"
Department for Work and Pensions,Employment Programmes,16-Aug-12,EP PROVIDER PAYMENT - WORK PROGRAMME,COO,MAXIMUS EMPLOYMENT UK LTD,2026410690,"11,825"
Department for Work and Pensions,Employment Programmes,06-Aug-12,EP PROVIDER PAYMENT - WORK PROGRAMME,COO,MAXIMUS EMPLOYMENT UK LTD,2026261460,"11,825"
Department for Work and Pensions,Employment Programmes,17-Aug-12,EP PROVIDER PAYMENT - WORK PROGRAMME,COO,INGEUS UK LTD,2026415012,"11,825"
Department for Work and Pensions,Employment Programmes,29-Aug-12,EP PROVIDER PAYMENT - WORK PROGRAMME,COO,REED IN PARTNERSHIP LTD,2026550246,"11,825"
Department for Work and Pensions,Employment Programmes,15-Aug-12,EP PROVIDER PAYMENT - WORK PROGRAMME,COO,INGEUS UK LTD,2026370133,"11,800"
Department for Work and Pensions,Employment Programmes,06-Aug-12,EP PROVIDER PAYMENT - WORK PROGRAMME,COO,AVANTA ENTERPRISE LTD,2026259168,"11,800"
Department for Work and Pensions,Employment Programmes,06-Aug-12,EP PROVIDER PAYMENT - WORK PROGRAMME,COO,SEETEC BUSINESS TECHNOLOGY CENTRE LTD,2026262043,"11,800"
Department for Work and Pensions,Corporate,06-Aug-12,TELEPHONE AND POSTAGE,COO,ROYAL MAIL GROUP PLC,2026261829,"11,776"
Department for Work and Pensions,Employment Programmes,13-Aug-12,EP PROVIDER PAYMENT - WORK PROGRAMME,COO,WORKING LINKS,2026341479,"11,750"
Department for Work and Pensions,Corporate,06-Aug-12,TELEPHONE AND POSTAGE,COO,ROYAL MAIL GROUP PLC,2026261829,"11,726"
Department for Work and Pensions,Employment Programmes,13-Aug-12,EP PROVIDER PAYMENT - WORK PROGRAMME,COO,INGEUS UK LTD,2026339777,"11,700"
Department for Work and Pensions,Employment Programmes,13-Aug-12,EP PROVIDER PAYMENT - WORK PROGRAMME,COO,INGEUS UK LTD,2026339777,"11,700"
Department for Work and Pensions,Employment Programmes,14-Aug-12,EP PROVIDER PAYMENT - WORK PROGRAMME,COO,MAXIMUS EMPLOYMENT UK LTD,2026346415,"11,700"
Department for Work and Pensions,Employment Programmes,14-Aug-12,EP PROVIDER PAYMENT - WORK PROGRAMME,COO,INGEUS UK LTD,2026345104,"11,700"
Department for Work and Pensions,Employment Programmes,29-Aug-12,EP PROVIDER PAYMENT - WORK PROGRAMME,COO,CAREERS DEVELOPMENT GROUP,2026514826,"11,700"
Department for Work and Pensions,Employment Programmes,20-Aug-12,EP PROVIDER PAYMENT - WORK PROGRAMME,COO,INGEUS UK LTD,2026419669,"11,700"
Department for Work and Pensions,Employment Programmes,07-Aug-12,EP PROVIDER PAYMENT - WORK PROGRAMME,COO,SEETEC BUSINESS TECHNOLOGY CENTRE LTD,2026268069,"11,700"
Department for Work and Pensions,Employment Programmes,10-Aug-12,EP PROVIDER PAYMENT - WORK PROGRAMME,COO,A4E LTD,2026333319,"11,610"
Department for Work and Pensions,Corporate,06-Aug-12,TELEPHONE AND POSTAGE,COO,ROYAL MAIL GROUP PLC,2026261829,"11,538"
Department for Work and Pensions,Employment Programmes,29-Aug-12,EP PROVIDER PAYMENT - WORK PROGRAMME,COO,SEETEC BUSINESS TECHNOLOGY CENTRE LTD,2026557188,"11,520"
Department for Work and Pensions,Employment Programmes,06-Aug-12,EP PROVIDER PAYMENT - WORK PROGRAMME,COO,REHAB JOBFIT,2026261818,"11,520"
Department for Work and Pensions,Employment Programmes,30-Aug-12,EP PROVIDER PAYMENT - WORK PROGRAMME,COO,REHAB JOBFIT,2026567247,"11,520"
Department for Work and Pensions,Employment Programmes,16-Aug-12,EP PROVIDER PAYMENT - WORK PROGRAMME,COO,AVANTA ENTERPRISE LTD,2026408880,"11,500"
Department for Work and Pensions,Employment Programmes,30-Aug-12,EP PROVIDER PAYMENT - WORK PROGRAMME,COO,A4E LTD,2026563799,"11,500"
Department for Work and Pensions,Employment Programmes,30-Aug-12,EP PROVIDER PAYMENT - WORK PROGRAMME,COO,INGEUS UK LTD,2026566082,"11,500"
Department for Work and Pensions,Employment Programmes,30-Aug-12,EP PROVIDER PAYMENT - WORK PROGRAMME,COO,INGEUS UK LTD,2026566082,"11,500"
Department for Work and Pensions,Employment Programmes,16-Aug-12,EP PROVIDER PAYMENT - WORK PROGRAMME,COO,G4S REGIONAL MANAGEMENT UK & I LTD,2026409697,"11,500"
Department for Work and Pensions,Employment Programmes,28-Aug-12,EP PROVIDER PAYMENT - WORK PROGRAMME,COO,SEETEC BUSINESS TECHNOLOGY CENTRE LTD,2026503773,"11,500"
Department for Work and Pensions,Employment Programmes,13-Aug-12,EP PROVIDER PAYMENT - WORK PROGRAMME,COO,SEETEC BUSINESS TECHNOLOGY CENTRE LTD,2026341220,"11,500"
Department for Work and Pensions,Corporate,15-Aug-12,PROFESSIONAL FEES,COO,THE BIG WORD INTERPRETING SERVICES LTD,2026404260,"11,466"
Department for Work and Pensions,Housing Benefits,14-Aug-12,Housing Benefit Admin,COO,CORPORATION OF LONDON,2026348987,"11,434"
Department for Work and Pensions,Corporate,23-Aug-12,TEMPORARY (TEMP) STAFF COSTS,CIT,CAPITA RESOURCING LTD,2026488869,"11,428"
Department for Work and Pensions,Employment Programmes,24-Aug-12,EP PROVIDER PAYMENT - WORK PROGRAMME,COO,INGEUS UK LTD,2026496185,"11,420"
Department for Work and Pensions,Employment Programmes,21-Aug-12,EP PROVIDER PAYMENT - WORK PROGRAMME,COO,INGEUS UK LTD,2026424774,"11,420"
Department for Work and Pensions,Corporate,14-Aug-12,STAFF COSTS,COO,EXPOTEL,2026344695,"11,415"
Department for Work and Pensions,Employment Programmes,08-Aug-12,EP PROVIDER PAYMENT - WORK PROGRAMME,COO,INGEUS UK LTD,2026289833,"11,400"
Department for Work and Pensions,Employment Programmes,13-Aug-12,EP PROVIDER PAYMENT - WORK PROGRAMME,COO,A4E LTD,2026338152,"11,400"
Department for Work and Pensions,Employment Programmes,10-Aug-12,EP PROVIDER PAYMENT - WORK PROGRAMME,COO,INGEUS UK LTD,2026335541,"11,400"
Department for Work and Pensions,Employment Programmes,03-Aug-12,EP PROVIDER PAYMENT - WORK PROGRAMME,COO,CAREERS DEVELOPMENT GROUP,2026254848,"11,400"
Department for Work and Pensions,Employment Programmes,24-Aug-12,EP PROVIDER PAYMENT - WORK PROGRAMME,COO,INTERSERVE WORKING FUTURES,2026496187,"11,400"
Department for Work and Pensions,Employment Programmes,14-Aug-12,EP PROVIDER PAYMENT - WORK PROGRAMME,COO,SEETEC BUSINESS TECHNOLOGY CENTRE LTD,2026347628,"11,400"
Department for Work and Pensions,Employment Programmes,08-Aug-12,EP PROVIDER PAYMENT - WORK PROGRAMME,COO,WORKING LINKS,2026325078,"11,400"
Department for Work and Pensions,Employment Programmes,14-Aug-12,EP PROVIDER PAYMENT - WORK PROGRAMME,COO,G4S REGIONAL MANAGEMENT UK & I LTD,2026344907,"11,395"
Department for Work and Pensions,Employment Programmes,31-Aug-12,EP PROVIDER PAYMENT - WORK PROGRAMME,COO,INGEUS UK LTD,2026569748,"11,200"
Department for Work and Pensions,Employment Programmes,06-Aug-12,EP PROVIDER PAYMENT - WORK PROGRAMME,COO,ESG HOLDINGS LIMITED,2026260605,"11,200"
Department for Work and Pensions,Employment Programmes,21-Aug-12,EP PROVIDER PAYMENT - WORK PROGRAMME,COO,SEETEC BUSINESS TECHNOLOGY CENTRE LTD,2026426980,"11,200"
Department for Work and Pensions,Employment Programmes,10-Aug-12,EP PROVIDER PAYMENT - WORK PROGRAMME,COO,INGEUS UK LTD,2026335541,"11,180"
Department for Work and Pensions,Employment Programmes,07-Aug-12,EP PROVIDER PAYMENT - WORK PROGRAMME,COO,A4E LTD,2026263473,"11,180"
Department for Work and Pensions,Employment Programmes,28-Aug-12,EP PROVIDER PAYMENT - WORK PROGRAMME,COO,CAREERS DEVELOPMENT GROUP,2026499232,"11,180"
Department for Work and Pensions,Employment Programmes,29-Aug-12,EP PROVIDER PAYMENT - NON-WORK PROGRAMME,COO,INTERSERVE WORKING FUTURES,2026525341,"11,177"
Department for Work and Pensions,Corporate,06-Aug-12,TELEPHONE AND POSTAGE,COO,ROYAL MAIL GROUP PLC,2026261829,"11,125"
Department for Work and Pensions,Employment Programmes,15-Aug-12,EP PROVIDER PAYMENT - WORK PROGRAMME,COO,MAXIMUS EMPLOYMENT UK LTD,2026388497,"11,100"
Department for Work and Pensions,Employment Programmes,10-Aug-12,EP PROVIDER PAYMENT - WORK PROGRAMME,COO,A4E LTD,2026333319,"11,100"
Department for Work and Pensions,Employment Programmes,29-Aug-12,EP PROVIDER PAYMENT - WORK PROGRAMME,COO,MAXIMUS EMPLOYMENT UK LTD,2026543651,"11,100"
Department for Work and Pensions,Employment Programmes,03-Aug-12,EP PROVIDER PAYMENT - WORK PROGRAMME,COO,A4E LTD,2026254583,"11,100"
Department for Work and Pensions,Employment Programmes,24-Aug-12,EP PROVIDER PAYMENT - WORK PROGRAMME,COO,A4E LTD,2026494464,"11,100"
Department for Work and Pensions,Employment Programmes,31-Aug-12,EP PROVIDER PAYMENT - WORK PROGRAMME,COO,WORKING LINKS,2026570936,"11,100"
Department for Work and Pensions,Employment Programmes,03-Aug-12,EP PROVIDER PAYMENT - WORK PROGRAMME,COO,REED IN PARTNERSHIP LTD,2026257492,"11,100"
Department for Work and Pensions,Employment Programmes,21-Aug-12,EP PROVIDER PAYMENT - WORK PROGRAMME,COO,WORKING LINKS,2026427240,"11,100"
Department for Work and Pensions,Employment Programmes,24-Aug-12,EP PROVIDER PAYMENT - WORK PROGRAMME,COO,INGEUS UK LTD,2026496185,"11,050"
Department for Work and Pensions,Housing Benefits,14-Aug-12,Housing Benefit Admin,COO,ORKNEY ISLANDS COUNCIL,2026349153,"11,041"
Department for Work and Pensions,Employment Programmes,29-Aug-12,EP PROVIDER PAYMENT - WORK PROGRAMME,COO,A4E LTD,2026509519,"11,040"
Department for Work and Pensions,Employment Programmes,06-Aug-12,EP PROVIDER PAYMENT - NON-WORK PROGRAMME,COO,JHP GROUP LTD,2026261009,"11,017"
Department for Work and Pensions,Employment Programmes,14-Aug-12,EP PROVIDER PAYMENT - WORK PROGRAMME,COO,INGEUS UK LTD,2026345104,"11,000"
Department for Work and Pensions,Employment Programmes,06-Aug-12,EP PROVIDER PAYMENT - WORK PROGRAMME,COO,INGEUS UK LTD,2026260816,"11,000"
Department for Work and Pensions,Employment Programmes,17-Aug-12,EP PROVIDER PAYMENT - WORK PROGRAMME,COO,INGEUS UK LTD,2026415012,"11,000"
Department for Work and Pensions,Employment Programmes,14-Aug-12,EP PROVIDER PAYMENT - WORK PROGRAMME,COO,INGEUS UK LTD,2026345104,"11,000"
Department for Work and Pensions,Employment Programmes,03-Aug-12,EP PROVIDER PAYMENT - WORK PROGRAMME,COO,INGEUS UK LTD,2026256539,"11,000"
Department for Work and Pensions,Employment Programmes,17-Aug-12,EP PROVIDER PAYMENT - WORK PROGRAMME,COO,INGEUS UK LTD,2026415012,"11,000"
Department for Work and Pensions,Corporate,28-Aug-12,JOBCENTRE PLUS PATHWAYS TO WORK,COO,JHP GROUP LTD,2026501780,"10,971"
Department for Work and Pensions,Employment Programmes,17-Aug-12,EP PROVIDER PAYMENT - WORK PROGRAMME,COO,INGEUS UK LTD,2026415012,"10,965"
Department for Work and Pensions,Employment Programmes,29-Aug-12,EP PROVIDER PAYMENT - WORK PROGRAMME,COO,SEETEC BUSINESS TECHNOLOGY CENTRE LTD,2026557188,"10,920"
Department for Work and Pensions,Employment Programmes,06-Aug-12,EP PROVIDER PAYMENT - WORK PROGRAMME,COO,SEETEC BUSINESS TECHNOLOGY CENTRE LTD,2026262043,"10,920"
Department for Work and Pensions,Corporate,10-Aug-12,TEMPORARY (TEMP) STAFF COSTS,CIT,CAPITA RESOURCING LTD,2026333557,"10,914"
Department for Work and Pensions,Employment Programmes,31-Aug-12,EP PROVIDER PAYMENT - WORK PROGRAMME,COO,INGEUS UK LTD,2026569748,"10,900"
Department for Work and Pensions,Employment Programmes,14-Aug-12,EP PROVIDER PAYMENT - NON-WORK PROGRAMME,COO,SHAW TRUST,2026347634,"10,848"
Department for Work and Pensions,Corporate,14-Aug-12,STAFF COSTS,COO,EXPOTEL,2026344695,"10,800"
Department for Work and Pensions,Employment Programmes,28-Aug-12,EP PROVIDER PAYMENT - WORK PROGRAMME,COO,G4S REGIONAL MANAGEMENT UK & I LTD,2026501204,"10,800"
Department for Work and Pensions,Employment Programmes,03-Aug-12,EP PROVIDER PAYMENT - WORK PROGRAMME,COO,INGEUS UK LTD,2026256539,"10,800"
Department for Work and Pensions,Employment Programmes,10-Aug-12,EP PROVIDER PAYMENT - WORK PROGRAMME,COO,G4S REGIONAL MANAGEMENT UK & I LTD,2026335441,"10,800"
Department for Work and Pensions,Employment Programmes,06-Aug-12,EP PROVIDER PAYMENT - WORK PROGRAMME,COO,INGEUS UK LTD,2026260816,"10,800"
Department for Work and Pensions,Employment Programmes,24-Aug-12,EP PROVIDER PAYMENT - WORK PROGRAMME,COO,INGEUS UK LTD,2026496185,"10,800"
Department for Work and Pensions,Employment Programmes,03-Aug-12,EP PROVIDER PAYMENT - WORK PROGRAMME,COO,INGEUS UK LTD,2026256539,"10,800"
Department for Work and Pensions,Employment Programmes,14-Aug-12,EP PROVIDER PAYMENT - WORK PROGRAMME,COO,INGEUS UK LTD,2026345104,"10,800"
Department for Work and Pensions,Employment Programmes,06-Aug-12,EP PROVIDER PAYMENT - WORK PROGRAMME,COO,INGEUS UK LTD,2026260816,"10,800"
Department for Work and Pensions,Employment Programmes,20-Aug-12,EP PROVIDER PAYMENT - WORK PROGRAMME,COO,INTERSERVE WORKING FUTURES,2026419676,"10,800"
Department for Work and Pensions,Employment Programmes,09-Aug-12,EP PROVIDER PAYMENT - WORK PROGRAMME,COO,A4E LTD,2026328257,"10,800"
Department for Work and Pensions,Employment Programmes,15-Aug-12,EP PROVIDER PAYMENT - WORK PROGRAMME,COO,INGEUS UK LTD,2026370133,"10,800"
Department for Work and Pensions,Employment Programmes,14-Aug-12,EP PROVIDER PAYMENT - WORK PROGRAMME,COO,INGEUS UK LTD,2026345104,"10,800"
Department for Work and Pensions,Employment Programmes,24-Aug-12,EP PROVIDER PAYMENT - WORK PROGRAMME,COO,G4S REGIONAL MANAGEMENT UK & I LTD,2026496077,"10,800"
Department for Work and Pensions,Employment Programmes,28-Aug-12,EP PROVIDER PAYMENT - WORK PROGRAMME,COO,INGEUS UK LTD,2026501368,"10,800"
Department for Work and Pensions,Employment Programmes,07-Aug-12,EP PROVIDER PAYMENT - WORK PROGRAMME,COO,INGEUS UK LTD,2026265693,"10,800"
Department for Work and Pensions,Employment Programmes,29-Aug-12,EP PROVIDER PAYMENT - WORK PROGRAMME,COO,WORKING LINKS,2026560828,"10,800"
Department for Work and Pensions,Employment Programmes,02-Aug-12,EP PROVIDER PAYMENT - WORK PROGRAMME,COO,SEETEC BUSINESS TECHNOLOGY CENTRE LTD,2026252607,"10,800"
Department for Work and Pensions,Employment Programmes,23-Aug-12,EP PROVIDER PAYMENT - WORK PROGRAMME,COO,PROSPECTS SERVICES LTD,2026492051,"10,800"
Department for Work and Pensions,Employment Programmes,15-Aug-12,EP PROVIDER PAYMENT - WORK PROGRAMME,COO,WORKING LINKS,2026405661,"10,800"
Department for Work and Pensions,Employment Programmes,03-Aug-12,EP PROVIDER PAYMENT - WORK PROGRAMME,COO,SERCO LTD,2026257747,"10,800"
Department for Work and Pensions,Employment Programmes,03-Aug-12,EP PROVIDER PAYMENT - WORK PROGRAMME,COO,WORKING LINKS,2026257975,"10,800"
Department for Work and Pensions,Corporate,15-Aug-12,PROFESSIONAL FEES,COO,THE BIG WORD INTERPRETING SERVICES LTD,2026404260,"10,791"
Department for Work and Pensions,Corporate,23-Aug-12,OTHER OPERATING LEASES,COO,INCHCAPE FLEET SOLUTIONS LTD,2026490712,"10,772"
Department for Work and Pensions,Employment Programmes,21-Aug-12,EP PROVIDER PAYMENT - WORK PROGRAMME,COO,CAREERS DEVELOPMENT GROUP,2026422908,"10,750"
Department for Work and Pensions,Corporate,06-Aug-12,TELEPHONE AND POSTAGE,COO,ROYAL MAIL GROUP PLC,2026261829,"10,737"
Department for Work and Pensions,SHARED SERVICES,06-Aug-12,TELEPHONE AND POSTAGE,COO,ROYAL MAIL GROUP PLC,2026261829,"10,717"
Department for Work and Pensions,Employment Programmes,03-Aug-12,EP PROVIDER PAYMENT - WORK PROGRAMME,COO,CAREERS DEVELOPMENT GROUP,2026254848,"10,700"
Department for Work and Pensions,Employment Programmes,15-Aug-12,EP PROVIDER PAYMENT - WORK PROGRAMME,COO,WORKING LINKS,2026405661,"10,700"
Department for Work and Pensions,Corporate,06-Aug-12,TELEPHONE AND POSTAGE,COO,ROYAL MAIL GROUP PLC,2026261829,"10,636"
Department for Work and Pensions,Corporate,15-Aug-12,ACCOMMODATION,COO,TELEREAL TRILLIUM,2026404258,"10,602"
Department for Work and Pensions,Employment Programmes,08-Aug-12,EP PROVIDER PAYMENT - WORK PROGRAMME,COO,INGEUS UK LTD,2026289833,"10,600"
Department for Work and Pensions,Employment Programmes,29-Aug-12,EP PROVIDER PAYMENT - WORK PROGRAMME,COO,INGEUS UK LTD,2026525340,"10,600"
Department for Work and Pensions,Employment Programmes,23-Aug-12,EP PROVIDER PAYMENT - WORK PROGRAMME,COO,A4E LTD,2026488505,"10,600"
Department for Work and Pensions,Employment Programmes,17-Aug-12,EP PROVIDER PAYMENT - WORK PROGRAMME,COO,INGEUS UK LTD,2026415012,"10,600"
Department for Work and Pensions,Employment Programmes,30-Aug-12,EP PROVIDER PAYMENT - WORK PROGRAMME,COO,WORKING LINKS,2026567728,"10,600"
Department for Work and Pensions,Employment Programmes,24-Aug-12,EP PROVIDER PAYMENT - NON-WORK PROGRAMME,COO,JHP GROUP LTD,2026496352,"10,593"
Department for Work and Pensions,Corporate,14-Aug-12,STAFF COSTS,COO,EXPOTEL,2026344695,"10,581"
Department for Work and Pensions,Corporate,31-Aug-12,ACCOMMODATION,COO,TELEREAL TRILLIUM,2026570846,"10,571"
Department for Work and Pensions,Corporate,06-Aug-12,TELEPHONE AND POSTAGE,COO,ROYAL MAIL GROUP PLC,2026261829,"10,537"
Department for Work and Pensions,Employment Programmes,17-Aug-12,EP PROVIDER PAYMENT - WORK PROGRAMME,COO,INGEUS UK LTD,2026415012,"10,535"
Department for Work and Pensions,Corporate,08-Aug-12,COMPUTER SERVICES,COO,HP ENTERPRISE SERVICES UK LTD,2026289440,"10,522"
Department for Work and Pensions,Corporate,02-Aug-12,POSTAGE,COO,TNT UK LTD,2026252818,"10,506"
Department for Work and Pensions,Employment Programmes,07-Aug-12,EP PROVIDER PAYMENT - WORK PROGRAMME,COO,A4E LTD,2026263473,"10,500"
Department for Work and Pensions,Employment Programmes,30-Aug-12,EP PROVIDER PAYMENT - WORK PROGRAMME,COO,A4E LTD,2026563799,"10,500"
Department for Work and Pensions,Employment Programmes,30-Aug-12,EP PROVIDER PAYMENT - WORK PROGRAMME,COO,A4E LTD,2026563799,"10,500"
Department for Work and Pensions,Employment Programmes,28-Aug-12,EP PROVIDER PAYMENT - WORK PROGRAMME,COO,INGEUS UK LTD,2026501368,"10,500"
Department for Work and Pensions,Employment Programmes,29-Aug-12,EP PROVIDER PAYMENT - WORK PROGRAMME,COO,A4E LTD,2026509519,"10,500"
Department for Work and Pensions,Employment Programmes,09-Aug-12,EP PROVIDER PAYMENT - WORK PROGRAMME,COO,G4S REGIONAL MANAGEMENT UK & I LTD,2026329611,"10,500"
Department for Work and Pensions,Employment Programmes,09-Aug-12,EP PROVIDER PAYMENT - WORK PROGRAMME,COO,MAXIMUS EMPLOYMENT UK LTD,2026330612,"10,500"
Department for Work and Pensions,Employment Programmes,08-Aug-12,EP PROVIDER PAYMENT - WORK PROGRAMME,COO,INGEUS UK LTD,2026289833,"10,500"
Department for Work and Pensions,Employment Programmes,06-Aug-12,EP PROVIDER PAYMENT - WORK PROGRAMME,COO,WORKING LINKS,2026262241,"10,500"
Department for Work and Pensions,Employment Programmes,13-Aug-12,EP PROVIDER PAYMENT - WORK PROGRAMME,COO,NEWCASTLE COLLEGE GROUP,2026340638,"10,500"
Department for Work and Pensions,Employment Programmes,17-Aug-12,EP PROVIDER PAYMENT - WORK PROGRAMME,COO,WORKING LINKS,2026416248,"10,500"
Department for Work and Pensions,Employment Programmes,14-Aug-12,EP PROVIDER PAYMENT - WORK PROGRAMME,COO,WORKING LINKS,2026347949,"10,500"
Department for Work and Pensions,Corporate,17-Aug-12,CONTRACTED OUT SERVICES,COO,CAPITA BUSINESS SERVICES LTD,2026413309,"10,484"
Department for Work and Pensions,Corporate,23-Aug-12,OTHER OPERATING LEASES,COO,INCHCAPE FLEET SOLUTIONS LTD,2026490712,"10,467"
Department for Work and Pensions,Corporate,14-Aug-12,COMPUTER SERVICES,COO,BT GLOBAL SERVICES,2026342885,"10,446"
Department for Work and Pensions,Corporate,31-Aug-12,ACCOMMODATION,COO,TELEREAL TRILLIUM,2026570846,"10,442"
Department for Work and Pensions,Employment Programmes,31-Aug-12,EP PROVIDER PAYMENT - NON-WORK PROGRAMME,COO,SHAW TRUST,2026570760,"10,405"
Department for Work and Pensions,Employment Programmes,30-Aug-12,EP PROVIDER PAYMENT - WORK PROGRAMME,COO,INGEUS UK LTD,2026566082,"10,400"
Department for Work and Pensions,Employment Programmes,24-Aug-12,EP PROVIDER PAYMENT - WORK PROGRAMME,COO,INGEUS UK LTD,2026496185,"10,400"
Department for Work and Pensions,Employment Programmes,22-Aug-12,EP PROVIDER PAYMENT - WORK PROGRAMME,COO,NEWCASTLE COLLEGE GROUP,2026470420,"10,400"
Department for Work and Pensions,Corporate,02-Aug-12,TEMPORARY (TEMP) STAFF COSTS,CIT,CAPITA RESOURCING LTD,2026248755,"10,352"
Department for Work and Pensions,Employment Programmes,03-Aug-12,EP PROVIDER PAYMENT - NON-WORK PROGRAMME,COO,INGEUS UK LTD,2026256539,"10,350"
Department for Work and Pensions,Employment Programmes,20-Aug-12,EP PROVIDER PAYMENT - NON-WORK PROGRAMME,COO,INGEUS UK LTD,2026419669,"10,350"
Department for Work and Pensions,Employment Programmes,13-Aug-12,EP PROVIDER PAYMENT - NON-WORK PROGRAMME,COO,INGEUS UK LTD,2026339777,"10,350"
Department for Work and Pensions,Employment Programmes,10-Aug-12,ACCESS TO WORK,COO,CAPITA SYMONDS LTD,2026333559,"10,322"
Department for Work and Pensions,Jobcentre Plus,08-Aug-12,ACCOMMODATION COSTS,COO,TELEREAL TRILLIUM,2026323665,"10,321"
Department for Work and Pensions,Employment Programmes,03-Aug-12,EP PROVIDER PAYMENT - WORK PROGRAMME,COO,MAXIMUS EMPLOYMENT UK LTD,2026257162,"10,320"
Department for Work and Pensions,Employment Programmes,16-Aug-12,EP PROVIDER PAYMENT - WORK PROGRAMME,COO,CAREERS DEVELOPMENT GROUP,2026409133,"10,300"
Department for Work and Pensions,Employment Programmes,16-Aug-12,EP PROVIDER PAYMENT - WORK PROGRAMME,COO,INGEUS UK LTD,2026409824,"10,300"
Department for Work and Pensions,Employment Programmes,03-Aug-12,EP PROVIDER PAYMENT - WORK PROGRAMME,COO,INGEUS UK LTD,2026256539,"10,300"
Department for Work and Pensions,Employment Programmes,22-Aug-12,EP PROVIDER PAYMENT - WORK PROGRAMME,COO,CAREERS DEVELOPMENT GROUP,2026438172,"10,300"
Department for Work and Pensions,Employment Programmes,13-Aug-12,EP PROVIDER PAYMENT - WORK PROGRAMME,COO,INGEUS UK LTD,2026339777,"10,300"
Department for Work and Pensions,Employment Programmes,31-Aug-12,EP PROVIDER PAYMENT - WORK PROGRAMME,COO,NEWCASTLE COLLEGE GROUP,2026570357,"10,300"
Department for Work and Pensions,Employment Programmes,09-Aug-12,EP PROVIDER PAYMENT - WORK PROGRAMME,COO,CAREERS DEVELOPMENT GROUP,2026328537,"10,260"
Department for Work and Pensions,Employment Programmes,24-Aug-12,EP PROVIDER PAYMENT - WORK PROGRAMME,COO,A4E LTD,2026494464,"10,260"
Department for Work and Pensions,Corporate,23-Aug-12,OTHER OPERATING LEASES,COO,INCHCAPE FLEET SOLUTIONS LTD,2026490712,"10,204"
Department for Work and Pensions,Employment Programmes,03-Aug-12,EP PROVIDER PAYMENT - WORK PROGRAMME,COO,G4S REGIONAL MANAGEMENT UK & I LTD,2026256437,"10,200"
Department for Work and Pensions,Employment Programmes,22-Aug-12,EP PROVIDER PAYMENT - WORK PROGRAMME,COO,INGEUS UK LTD,2026449246,"10,200"
Department for Work and Pensions,Employment Programmes,10-Aug-12,EP PROVIDER PAYMENT - WORK PROGRAMME,COO,A4E LTD,2026333319,"10,200"
Department for Work and Pensions,Employment Programmes,22-Aug-12,EP PROVIDER PAYMENT - WORK PROGRAMME,COO,INGEUS UK LTD,2026449246,"10,200"
Department for Work and Pensions,Employment Programmes,03-Aug-12,EP PROVIDER PAYMENT - WORK PROGRAMME,COO,INGEUS UK LTD,2026256539,"10,200"
Department for Work and Pensions,Employment Programmes,06-Aug-12,EP PROVIDER PAYMENT - WORK PROGRAMME,COO,G4S REGIONAL MANAGEMENT UK & I LTD,2026260708,"10,200"
Department for Work and Pensions,Employment Programmes,15-Aug-12,EP PROVIDER PAYMENT - WORK PROGRAMME,COO,SEETEC BUSINESS TECHNOLOGY CENTRE LTD,2026402027,"10,200"
Department for Work and Pensions,Employment Programmes,03-Aug-12,EP PROVIDER PAYMENT - WORK PROGRAMME,COO,SERCO LTD,2026257747,"10,200"
Department for Work and Pensions,Employment Programmes,08-Aug-12,EP PROVIDER PAYMENT - WORK PROGRAMME,COO,REHAB JOBFIT,2026314593,"10,200"
Department for Work and Pensions,Employment Programmes,31-Aug-12,EP PROVIDER PAYMENT - NON-WORK PROGRAMME,COO,JHP GROUP LTD,2026569919,"10,169"
Department for Work and Pensions,Employment Programmes,02-Aug-12,EP PROVIDER PAYMENT - WORK PROGRAMME,COO,SEETEC BUSINESS TECHNOLOGY CENTRE LTD,2026252607,"10,140"
Department for Work and Pensions,Corporate,23-Aug-12,OTHER OPERATING LEASES,COO,INCHCAPE FLEET SOLUTIONS LTD,2026490712,"10,137"
Department for Work and Pensions,Employment Programmes,22-Aug-12,JSP ESF DEL P COSTS,COO,G4S REGIONAL MANAGEMENT UK & I LTD,2026447281,"10,126"
Department for Work and Pensions,Employment Programmes,13-Aug-12,EP PROVIDER PAYMENT - WORK PROGRAMME,COO,INTERSERVE WORKING FUTURES,2026339780,"10,105"
Department for Work and Pensions,Employment Programmes,24-Aug-12,EP PROVIDER PAYMENT - WORK PROGRAMME,COO,MAXIMUS EMPLOYMENT UK LTD,2026496747,"10,105"
Department for Work and Pensions,Employment Programmes,03-Aug-12,EP PROVIDER PAYMENT - WORK PROGRAMME,COO,INGEUS UK LTD,2026256539,"10,100"
Department for Work and Pensions,Employment Programmes,07-Aug-12,EP PROVIDER PAYMENT - WORK PROGRAMME,COO,SEETEC BUSINESS TECHNOLOGY CENTRE LTD,2026268069,"10,100"
Department for Work and Pensions,Corporate,30-Aug-12,TEMPORARY (TEMP) STAFF COSTS,CIT,CAPITA RESOURCING LTD,2026564083,"10,047"
Department for Work and Pensions,Corporate,14-Aug-12,COMPUTER SERVICES,COO,ACCENTURE UK LTD,2026342741,"10,038"
Department for Work and Pensions,Employment Programmes,14-Aug-12,EP PROVIDER PAYMENT - WORK PROGRAMME,COO,INGEUS UK LTD,2026345104,"10,030"
Department for Work and Pensions,Employment Programmes,06-Aug-12,EP PROVIDER PAYMENT - WORK PROGRAMME,COO,A4E LTD,2026259127,"10,000"
Department for Work and Pensions,Employment Programmes,14-Aug-12,EP PROVIDER PAYMENT - WORK PROGRAMME,COO,INGEUS UK LTD,2026345104,"10,000"
Department for Work and Pensions,Employment Programmes,07-Aug-12,EP PROVIDER PAYMENT - WORK PROGRAMME,COO,INGEUS UK LTD,2026265693,"10,000"
Department for Work and Pensions,Employment Programmes,30-Aug-12,EP PROVIDER PAYMENT - WORK PROGRAMME,COO,INGEUS UK LTD,2026566082,"10,000"
Department for Work and Pensions,Employment Programmes,28-Aug-12,EP PROVIDER PAYMENT - WORK PROGRAMME,COO,A4E LTD,2026498809,"10,000"
Department for Work and Pensions,Employment Programmes,03-Aug-12,EP PROVIDER PAYMENT - WORK PROGRAMME,COO,REHAB JOBFIT,2026257495,"10,000"
Department for Work and Pensions,Employment Programmes,21-Aug-12,EP PROVIDER PAYMENT - WORK PROGRAMME,COO,MAXIMUS EMPLOYMENT UK LTD,2026425936,"9,990"
Department for Work and Pensions,Employment Programmes,13-Aug-12,EP PROVIDER PAYMENT - WORK PROGRAMME,COO,MAXIMUS EMPLOYMENT UK LTD,2026340523,"9,990"
Department for Work and Pensions,Employment Programmes,16-Aug-12,EP PROVIDER PAYMENT - WORK PROGRAMME,COO,MAXIMUS EMPLOYMENT UK LTD,2026410690,"9,990"
Department for Work and Pensions,Corporate,06-Aug-12,TELEPHONE AND POSTAGE,COO,ROYAL MAIL GROUP PLC,2026261829,"9,987"
Department for Work and Pensions,Corporate,23-Aug-12,TEMPORARY (TEMP) STAFF COSTS,COO,CAPITA RESOURCING LTD,2026488869,"9,951"
Department for Work and Pensions,Employment Programmes,14-Aug-12,EP PROVIDER PAYMENT - WORK PROGRAMME,COO,A4E LTD,2026342736,"9,936"
Department for Work and Pensions,Employment Programmes,09-Aug-12,EP PROVIDER PAYMENT - WORK PROGRAMME,COO,A4E LTD,2026328257,"9,936"
Department for Work and Pensions,Employment Programmes,03-Aug-12,EP PROVIDER PAYMENT - WORK PROGRAMME,COO,A4E LTD,2026254583,"9,936"
Department for Work and Pensions,Employment Programmes,29-Aug-12,EP PROVIDER PAYMENT - WORK PROGRAMME,COO,INGEUS UK LTD,2026525340,"9,900"
Department for Work and Pensions,Employment Programmes,23-Aug-12,EP PROVIDER PAYMENT - WORK PROGRAMME,COO,MAXIMUS EMPLOYMENT UK LTD,2026491714,"9,900"
Department for Work and Pensions,Corporate,06-Aug-12,TELEPHONE AND POSTAGE,COO,ROYAL MAIL GROUP PLC,2026261829,"9,894"
Department for Work and Pensions,Employment Programmes,09-Aug-12,EP PROVIDER PAYMENT - WORK PROGRAMME,COO,AVANTA ENTERPRISE LTD,2026328285,"9,890"
Department for Work and Pensions,Employment Programmes,20-Aug-12,EP PROVIDER PAYMENT - WORK PROGRAMME,COO,INTERSERVE WORKING FUTURES,2026419676,"9,890"
Department for Work and Pensions,Corporate,08-Aug-12,FLEXIBLE SUPPORT FUND,COO,ARCADIA GROUP LTD,2026273880,"9,870"
Department for Work and Pensions,Employment Programmes,10-Aug-12,EP PROVIDER PAYMENT - WORK PROGRAMME,COO,INGEUS UK LTD,2026335541,"9,800"
Department for Work and Pensions,Employment Programmes,31-Aug-12,EP PROVIDER PAYMENT - WORK PROGRAMME,COO,WORKING LINKS,2026570936,"9,800"
Department for Work and Pensions,Corporate,21-Aug-12,STAFF COSTS,COO,EXPOTEL,2026424414,"9,800"
Department for Work and Pensions,Employment Programmes,29-Aug-12,EP PROVIDER PAYMENT - NON-WORK PROGRAMME,COO,INGEUS UK LTD,2026525340,"9,775"
Department for Work and Pensions,Employment Programmes,02-Aug-12,EP PROVIDER PAYMENT - WORK PROGRAMME,COO,AVANTA ENTERPRISE LTD,2026248411,"9,750"
Department for Work and Pensions,Employment Programmes,03-Aug-12,EP PROVIDER PAYMENT - WORK PROGRAMME,COO,ESG HOLDINGS LIMITED,2026256331,"9,750"
Department for Work and Pensions,Employment Programmes,20-Aug-12,EP PROVIDER PAYMENT - WORK PROGRAMME,COO,NEWCASTLE COLLEGE GROUP,2026420471,"9,750"
Department for Work and Pensions,Employment Programmes,30-Aug-12,EP PROVIDER PAYMENT - NON-WORK PROGRAMME,COO,JHP GROUP LTD,2026566324,"9,746"
Department for Work and Pensions,Corporate,23-Aug-12,OTHER OPERATING LEASES,COO,INCHCAPE FLEET SOLUTIONS LTD,2026490712,"9,738"
Department for Work and Pensions,Employment Programmes,31-Aug-12,EP PROVIDER PAYMENT - NON-WORK PROGRAMME,COO,MOMENTUM SCOTLAND,2026570301,"9,729"
Department for Work and Pensions,Corporate,06-Aug-12,TELEPHONE AND POSTAGE,COO,ROYAL MAIL GROUP PLC,2026261829,"9,706"
Department for Work and Pensions,Employment Programmes,30-Aug-12,EP PROVIDER PAYMENT - WORK PROGRAMME,COO,A4E LTD,2026563799,"9,700"
Department for Work and Pensions,Employment Programmes,20-Aug-12,EP PROVIDER PAYMENT - WORK PROGRAMME,COO,A4E LTD,2026417276,"9,700"
Department for Work and Pensions,Employment Programmes,13-Aug-12,EP PROVIDER PAYMENT - WORK PROGRAMME,COO,INGEUS UK LTD,2026339777,"9,700"
Department for Work and Pensions,Employment Programmes,02-Aug-12,EP PROVIDER PAYMENT - WORK PROGRAMME,COO,AVANTA ENTERPRISE LTD,2026248411,"9,700"
Department for Work and Pensions,Employment Programmes,03-Aug-12,EP PROVIDER PAYMENT - WORK PROGRAMME,COO,A4E LTD,2026254583,"9,700"
Department for Work and Pensions,Employment Programmes,03-Aug-12,EP PROVIDER PAYMENT - WORK PROGRAMME,COO,INGEUS UK LTD,2026256539,"9,690"
Department for Work and Pensions,Employment Programmes,06-Aug-12,EP PROVIDER PAYMENT - NON-WORK PROGRAMME,COO,SEETEC BUSINESS TECHNOLOGY CENTRE LTD,2026262043,"9,686"
Department for Work and Pensions,Employment Programmes,03-Aug-12,EP PROVIDER PAYMENT - WORK PROGRAMME,COO,INGEUS UK LTD,2026256539,"9,675"
Department for Work and Pensions,Employment Programmes,07-Aug-12,EP PROVIDER PAYMENT - WORK PROGRAMME,COO,INGEUS UK LTD,2026265693,"9,675"
Department for Work and Pensions,Employment Programmes,30-Aug-12,EP PROVIDER PAYMENT - WORK PROGRAMME,COO,PERTEMPS,2026567102,"9,675"
Department for Work and Pensions,Corporate,06-Aug-12,TELEPHONE AND POSTAGE,COO,ROYAL MAIL GROUP PLC,2026261829,"9,643"
Department for Work and Pensions,Corporate,22-Aug-12,TELEPHONE AND POSTAGE,COO,G3 WORLDWIDE MAIL UK LTD,2026447279,"9,642"
Department for Work and Pensions,Corporate,10-Aug-12,AOS CONTRACTED OUT SERVICES,COO,XEROX UK LTD,2026336902,"9,631"
Department for Work and Pensions,Employment Programmes,02-Aug-12,EP PROVIDER PAYMENT - WORK PROGRAMME,COO,INGEUS UK LTD,2026250586,"9,600"
Department for Work and Pensions,Employment Programmes,03-Aug-12,EP PROVIDER PAYMENT - WORK PROGRAMME,COO,INGEUS UK LTD,2026256539,"9,600"
Department for Work and Pensions,Employment Programmes,14-Aug-12,EP PROVIDER PAYMENT - WORK PROGRAMME,COO,INGEUS UK LTD,2026345104,"9,600"
Department for Work and Pensions,Employment Programmes,09-Aug-12,EP PROVIDER PAYMENT - WORK PROGRAMME,COO,INGEUS UK LTD,2026329725,"9,600"
Department for Work and Pensions,Employment Programmes,03-Aug-12,EP PROVIDER PAYMENT - WORK PROGRAMME,COO,INGEUS UK LTD,2026256539,"9,600"
Department for Work and Pensions,Employment Programmes,17-Aug-12,EP PROVIDER PAYMENT - WORK PROGRAMME,COO,INGEUS UK LTD,2026415012,"9,600"
Department for Work and Pensions,Employment Programmes,24-Aug-12,EP PROVIDER PAYMENT - WORK PROGRAMME,COO,INGEUS UK LTD,2026496185,"9,600"
Department for Work and Pensions,Employment Programmes,16-Aug-12,EP PROVIDER PAYMENT - WORK PROGRAMME,COO,G4S REGIONAL MANAGEMENT UK & I LTD,2026409697,"9,600"
Department for Work and Pensions,Employment Programmes,30-Aug-12,EP PROVIDER PAYMENT - WORK PROGRAMME,COO,INGEUS UK LTD,2026566082,"9,600"
Department for Work and Pensions,Employment Programmes,29-Aug-12,EP PROVIDER PAYMENT - WORK PROGRAMME,COO,INGEUS UK LTD,2026525340,"9,600"
Department for Work and Pensions,Employment Programmes,17-Aug-12,EP PROVIDER PAYMENT - WORK PROGRAMME,COO,A4E LTD,2026413041,"9,600"
Department for Work and Pensions,Employment Programmes,06-Aug-12,EP PROVIDER PAYMENT - WORK PROGRAMME,COO,INGEUS UK LTD,2026260816,"9,600"
Department for Work and Pensions,Employment Programmes,17-Aug-12,EP PROVIDER PAYMENT - WORK PROGRAMME,COO,MAXIMUS EMPLOYMENT UK LTD,2026415564,"9,600"
Department for Work and Pensions,Employment Programmes,06-Aug-12,EP PROVIDER PAYMENT - WORK PROGRAMME,COO,SERCO LTD,2026262044,"9,600"
Department for Work and Pensions,Employment Programmes,31-Aug-12,EP PROVIDER PAYMENT - WORK PROGRAMME,COO,SEETEC BUSINESS TECHNOLOGY CENTRE LTD,2026570757,"9,600"
Department for Work and Pensions,Employment Programmes,14-Aug-12,EP PROVIDER PAYMENT - WORK PROGRAMME,COO,WORKING LINKS,2026347949,"9,600"
